{"text_format":"3","workbook":"xlsx","n_sheets":14,"sheets":["الإعدادات","يناير","فبراير","مارس","أبريل","مايو","يونيو","يوليو","أغسطس","سبتمبر","أكتوبر","نوفمبر","ديسمبر","أيام العطلات"],"not_rendered":{"defined_names":20},"read":"whole","date_system":"1900"}

{"sheet":"الإعدادات","index":0,"n_rows":34,"n_cols":32,"rows_kept":34,"merged":[[1,17,2,23],[3,1,3,7],[3,8,3,10],[3,17,7,31],[4,1,4,7],[5,1,5,7],[8,1,8,7],[8,9,8,15],[8,17,8,23],[8,25,8,31],[9,1,9,7],[9,9,9,15],[9,17,9,23],[9,25,9,31],[17,1,17,7],[17,9,17,15],[17,17,17,23],[17,25,17,31],[18,1,18,7],[18,9,18,15],[18,17,18,23],[18,25,18,31],[26,1,26,7],[26,9,26,15],[26,17,26,23],[26,25,26,31],[27,1,27,7],[27,9,27,15],[27,17,27,23],[27,25,27,31]]}
[]
[null,"إعدادات التقويم",{"$nulls":15},"السنة"]
[]
[null,"بداية الأسبوع",{"$nulls":6},"الأحد",{"$nulls":8},{"$f":"YEAR(TODAY())","v":2018}]
[null,"إظهار أيام العطلات",{"$nulls":6},true]
[null,"إظهار ما تم تغييره",{"$nulls":6},true]
[{"$nulls":8},{"$f":"IF(ShowHolidays,المتغير,ShowHolidays)","v":true}]
[null,"طريقة العرض السنوية"]
[null,{"$f":"DATE(CalYear,1,1)","v":43101},{"$nulls":7},{"$f":"DATE(CalYear,2,1)","v":43132},{"$nulls":7},{"$f":"DATE(CalYear,3,1)","v":43160},{"$nulls":7},{"$f":"DATE(CalYear,4,1)","v":43191}]
[null,{"$f":"UPPER(TEXT(B9,\"MMMM\"))","v":"يناير"},{"$nulls":7},{"$f":"UPPER(TEXT(J9,\"MMMM\"))","v":"فبراير"},{"$nulls":7},{"$f":"UPPER(TEXT(R9,\"MMMM\"))","v":"مارس"},{"$nulls":7},{"$f":"UPPER(TEXT(Z9,\"MMMM\"))","v":"أبريل"}]
[1,{"$f":"الأيام+DATE(CalYear,MONTH($B$9),1)-WEEKDAY(DATE(CalYear,MONTH($B$9),1),(WeekStart=\"الإثنين\")+1)+$A11*7-6","v":"2017-12-31"},"2018-01-01","2018-01-02","2018-01-03","2018-01-04","2018-01-05","2018-01-06",null,{"$f":"الأيام+DATE(CalYear,MONTH($J$9),1)-WEEKDAY(DATE(CalYear,MONTH($J$9),1),(WeekStart=\"الإثنين\")+1)+$A11*7-6","v":"2018-01-28"},"2018-01-29","2018-01-30","2018-01-31","2018-02-01","2018-02-02","2018-02-03",null,{"$f":"الأيام+DATE(CalYear,MONTH($R$9),1)-WEEKDAY(DATE(CalYear,MONTH($R$9),1),(WeekStart=\"الإثنين\")+1)+$A11*7-6","v":"2018-02-25"},"2018-02-26","2018-02-27","2018-02-28","2018-03-01","2018-03-02","2018-03-03",null,{"$f":"الأيام+DATE(CalYear,MONTH($Z$9),1)-WEEKDAY(DATE(CalYear,MONTH($Z$9),1),(WeekStart=\"الإثنين\")+1)+$A11*7-6","v":"2018-04-01"},"2018-04-02","2018-04-03","2018-04-04","2018-04-05","2018-04-06","2018-04-07"]
[2,{"$f":"الأيام+DATE(CalYear,MONTH($B$9),1)-WEEKDAY(DATE(CalYear,MONTH($B$9),1),(WeekStart=\"الإثنين\")+1)+$A12*7-6","v":"2018-01-07"},"2018-01-08","2018-01-09","2018-01-10","2018-01-11","2018-01-12","2018-01-13",null,{"$f":"الأيام+DATE(CalYear,MONTH($J$9),1)-WEEKDAY(DATE(CalYear,MONTH($J$9),1),(WeekStart=\"الإثنين\")+1)+$A12*7-6","v":"2018-02-04"},"2018-02-05","2018-02-06","2018-02-07","2018-02-08","2018-02-09","2018-02-10",null,{"$f":"الأيام+DATE(CalYear,MONTH($R$9),1)-WEEKDAY(DATE(CalYear,MONTH($R$9),1),(WeekStart=\"الإثنين\")+1)+$A12*7-6","v":"2018-03-04"},"2018-03-05","2018-03-06","2018-03-07","2018-03-08","2018-03-09","2018-03-10",null,{"$f":"الأيام+DATE(CalYear,MONTH($Z$9),1)-WEEKDAY(DATE(CalYear,MONTH($Z$9),1),(WeekStart=\"الإثنين\")+1)+$A12*7-6","v":"2018-04-08"},"2018-04-09","2018-04-10","2018-04-11","2018-04-12","2018-04-13","2018-04-14"]
[3,{"$f":"الأيام+DATE(CalYear,MONTH($B$9),1)-WEEKDAY(DATE(CalYear,MONTH($B$9),1),(WeekStart=\"الإثنين\")+1)+$A13*7-6","v":"2018-01-14"},"2018-01-15","2018-01-16","2018-01-17","2018-01-18","2018-01-19","2018-01-20",null,{"$f":"الأيام+DATE(CalYear,MONTH($J$9),1)-WEEKDAY(DATE(CalYear,MONTH($J$9),1),(WeekStart=\"الإثنين\")+1)+$A13*7-6","v":"2018-02-11"},"2018-02-12","2018-02-13","2018-02-14","2018-02-15","2018-02-16","2018-02-17",null,{"$f":"الأيام+DATE(CalYear,MONTH($R$9),1)-WEEKDAY(DATE(CalYear,MONTH($R$9),1),(WeekStart=\"الإثنين\")+1)+$A13*7-6","v":"2018-03-11"},"2018-03-12","2018-03-13","2018-03-14","2018-03-15","2018-03-16","2018-03-17",null,{"$f":"الأيام+DATE(CalYear,MONTH($Z$9),1)-WEEKDAY(DATE(CalYear,MONTH($Z$9),1),(WeekStart=\"الإثنين\")+1)+$A13*7-6","v":"2018-04-15"},"2018-04-16","2018-04-17","2018-04-18","2018-04-19","2018-04-20","2018-04-21"]
[4,{"$f":"الأيام+DATE(CalYear,MONTH($B$9),1)-WEEKDAY(DATE(CalYear,MONTH($B$9),1),(WeekStart=\"الإثنين\")+1)+$A14*7-6","v":"2018-01-21"},"2018-01-22","2018-01-23","2018-01-24","2018-01-25","2018-01-26","2018-01-27",null,{"$f":"الأيام+DATE(CalYear,MONTH($J$9),1)-WEEKDAY(DATE(CalYear,MONTH($J$9),1),(WeekStart=\"الإثنين\")+1)+$A14*7-6","v":"2018-02-18"},"2018-02-19","2018-02-20","2018-02-21","2018-02-22","2018-02-23","2018-02-24",null,{"$f":"الأيام+DATE(CalYear,MONTH($R$9),1)-WEEKDAY(DATE(CalYear,MONTH($R$9),1),(WeekStart=\"الإثنين\")+1)+$A14*7-6","v":"2018-03-18"},"2018-03-19","2018-03-20","2018-03-21","2018-03-22","2018-03-23","2018-03-24",null,{"$f":"الأيام+DATE(CalYear,MONTH($Z$9),1)-WEEKDAY(DATE(CalYear,MONTH($Z$9),1),(WeekStart=\"الإثنين\")+1)+$A14*7-6","v":"2018-04-22"},"2018-04-23","2018-04-24","2018-04-25","2018-04-26","2018-04-27","2018-04-28"]
[5,{"$f":"الأيام+DATE(CalYear,MONTH($B$9),1)-WEEKDAY(DATE(CalYear,MONTH($B$9),1),(WeekStart=\"الإثنين\")+1)+$A15*7-6","v":"2018-01-28"},"2018-01-29","2018-01-30","2018-01-31","2018-02-01","2018-02-02","2018-02-03",null,{"$f":"الأيام+DATE(CalYear,MONTH($J$9),1)-WEEKDAY(DATE(CalYear,MONTH($J$9),1),(WeekStart=\"الإثنين\")+1)+$A15*7-6","v":"2018-02-25"},"2018-02-26","2018-02-27","2018-02-28","2018-03-01","2018-03-02","2018-03-03",null,{"$f":"الأيام+DATE(CalYear,MONTH($R$9),1)-WEEKDAY(DATE(CalYear,MONTH($R$9),1),(WeekStart=\"الإثنين\")+1)+$A15*7-6","v":"2018-03-25"},"2018-03-26","2018-03-27","2018-03-28","2018-03-29","2018-03-30","2018-03-31",null,{"$f":"الأيام+DATE(CalYear,MONTH($Z$9),1)-WEEKDAY(DATE(CalYear,MONTH($Z$9),1),(WeekStart=\"الإثنين\")+1)+$A15*7-6","v":"2018-04-29"},"2018-04-30","2018-05-01","2018-05-02","2018-05-03","2018-05-04","2018-05-05"]
[6,{"$f":"الأيام+DATE(CalYear,MONTH($B$9),1)-WEEKDAY(DATE(CalYear,MONTH($B$9),1),(WeekStart=\"الإثنين\")+1)+$A16*7-6","v":"2018-02-04"},"2018-02-05","2018-02-06","2018-02-07","2018-02-08","2018-02-09","2018-02-10",null,{"$f":"الأيام+DATE(CalYear,MONTH($J$9),1)-WEEKDAY(DATE(CalYear,MONTH($J$9),1),(WeekStart=\"الإثنين\")+1)+$A16*7-6","v":"2018-03-04"},"2018-03-05","2018-03-06","2018-03-07","2018-03-08","2018-03-09","2018-03-10",null,{"$f":"الأيام+DATE(CalYear,MONTH($R$9),1)-WEEKDAY(DATE(CalYear,MONTH($R$9),1),(WeekStart=\"الإثنين\")+1)+$A16*7-6","v":"2018-04-01"},"2018-04-02","2018-04-03","2018-04-04","2018-04-05","2018-04-06","2018-04-07",null,{"$f":"الأيام+DATE(CalYear,MONTH($Z$9),1)-WEEKDAY(DATE(CalYear,MONTH($Z$9),1),(WeekStart=\"الإثنين\")+1)+$A16*7-6","v":"2018-05-06"},"2018-05-07","2018-05-08","2018-05-09","2018-05-10","2018-05-11","2018-05-12"]
[]
[null,{"$f":"DATE(CalYear,5,1)","v":43221},{"$nulls":7},{"$f":"DATE(CalYear,6,1)","v":43252},{"$nulls":7},{"$f":"DATE(CalYear,7,1)","v":43282},{"$nulls":7},{"$f":"DATE(CalYear,8,1)","v":43313}]
[null,{"$f":"UPPER(TEXT(B18,\"MMMM\"))","v":"مايو"},{"$nulls":7},{"$f":"UPPER(TEXT(J18,\"MMMM\"))","v":"يونيو"},{"$nulls":7},{"$f":"UPPER(TEXT(R18,\"MMMM\"))","v":"يوليو"},{"$nulls":7},{"$f":"UPPER(TEXT(Z18,\"MMMM\"))","v":"أغسطس"}]
[1,{"$f":"الأيام+DATE(CalYear,MONTH($B$18),1)-WEEKDAY(DATE(CalYear,MONTH($B$18),1),(WeekStart=\"الإثنين\")+1)+$A20*7-6","v":"2018-04-29"},"2018-04-30","2018-05-01","2018-05-02","2018-05-03","2018-05-04","2018-05-05",null,{"$f":"الأيام+DATE(CalYear,MONTH($J$18),1)-WEEKDAY(DATE(CalYear,MONTH($J$18),1),(WeekStart=\"الإثنين\")+1)+$A20*7-6","v":"2018-05-27"},"2018-05-28","2018-05-29","2018-05-30","2018-05-31","2018-06-01","2018-06-02",null,{"$f":"الأيام+DATE(CalYear,MONTH($R$18),1)-WEEKDAY(DATE(CalYear,MONTH($R$18),1),(WeekStart=\"الإثنين\")+1)+$A20*7-6","v":"2018-07-01"},"2018-07-02","2018-07-03","2018-07-04","2018-07-05","2018-07-06","2018-07-07",null,{"$f":"الأيام+DATE(CalYear,MONTH($Z$18),1)-WEEKDAY(DATE(CalYear,MONTH($Z$18),1),(WeekStart=\"الإثنين\")+1)+$A20*7-6","v":"2018-07-29"},"2018-07-30","2018-07-31","2018-08-01","2018-08-02","2018-08-03","2018-08-04"]
[2,{"$f":"الأيام+DATE(CalYear,MONTH($B$18),1)-WEEKDAY(DATE(CalYear,MONTH($B$18),1),(WeekStart=\"الإثنين\")+1)+$A21*7-6","v":"2018-05-06"},"2018-05-07","2018-05-08","2018-05-09","2018-05-10","2018-05-11","2018-05-12",null,{"$f":"الأيام+DATE(CalYear,MONTH($J$18),1)-WEEKDAY(DATE(CalYear,MONTH($J$18),1),(WeekStart=\"الإثنين\")+1)+$A21*7-6","v":"2018-06-03"},"2018-06-04","2018-06-05","2018-06-06","2018-06-07","2018-06-08","2018-06-09",null,{"$f":"الأيام+DATE(CalYear,MONTH($R$18),1)-WEEKDAY(DATE(CalYear,MONTH($R$18),1),(WeekStart=\"الإثنين\")+1)+$A21*7-6","v":"2018-07-08"},"2018-07-09","2018-07-10","2018-07-11","2018-07-12","2018-07-13","2018-07-14",null,{"$f":"الأيام+DATE(CalYear,MONTH($Z$18),1)-WEEKDAY(DATE(CalYear,MONTH($Z$18),1),(WeekStart=\"الإثنين\")+1)+$A21*7-6","v":"2018-08-05"},"2018-08-06","2018-08-07","2018-08-08","2018-08-09","2018-08-10","2018-08-11"]
[3,{"$f":"الأيام+DATE(CalYear,MONTH($B$18),1)-WEEKDAY(DATE(CalYear,MONTH($B$18),1),(WeekStart=\"الإثنين\")+1)+$A22*7-6","v":"2018-05-13"},"2018-05-14","2018-05-15","2018-05-16","2018-05-17","2018-05-18","2018-05-19",null,{"$f":"الأيام+DATE(CalYear,MONTH($J$18),1)-WEEKDAY(DATE(CalYear,MONTH($J$18),1),(WeekStart=\"الإثنين\")+1)+$A22*7-6","v":"2018-06-10"},"2018-06-11","2018-06-12","2018-06-13","2018-06-14","2018-06-15","2018-06-16",null,{"$f":"الأيام+DATE(CalYear,MONTH($R$18),1)-WEEKDAY(DATE(CalYear,MONTH($R$18),1),(WeekStart=\"الإثنين\")+1)+$A22*7-6","v":"2018-07-15"},"2018-07-16","2018-07-17","2018-07-18","2018-07-19","2018-07-20","2018-07-21",null,{"$f":"الأيام+DATE(CalYear,MONTH($Z$18),1)-WEEKDAY(DATE(CalYear,MONTH($Z$18),1),(WeekStart=\"الإثنين\")+1)+$A22*7-6","v":"2018-08-12"},"2018-08-13","2018-08-14","2018-08-15","2018-08-16","2018-08-17","2018-08-18"]
[4,{"$f":"الأيام+DATE(CalYear,MONTH($B$18),1)-WEEKDAY(DATE(CalYear,MONTH($B$18),1),(WeekStart=\"الإثنين\")+1)+$A23*7-6","v":"2018-05-20"},"2018-05-21","2018-05-22","2018-05-23","2018-05-24","2018-05-25","2018-05-26",null,{"$f":"الأيام+DATE(CalYear,MONTH($J$18),1)-WEEKDAY(DATE(CalYear,MONTH($J$18),1),(WeekStart=\"الإثنين\")+1)+$A23*7-6","v":"2018-06-17"},"2018-06-18","2018-06-19","2018-06-20","2018-06-21","2018-06-22","2018-06-23",null,{"$f":"الأيام+DATE(CalYear,MONTH($R$18),1)-WEEKDAY(DATE(CalYear,MONTH($R$18),1),(WeekStart=\"الإثنين\")+1)+$A23*7-6","v":"2018-07-22"},"2018-07-23","2018-07-24","2018-07-25","2018-07-26","2018-07-27","2018-07-28",null,{"$f":"الأيام+DATE(CalYear,MONTH($Z$18),1)-WEEKDAY(DATE(CalYear,MONTH($Z$18),1),(WeekStart=\"الإثنين\")+1)+$A23*7-6","v":"2018-08-19"},"2018-08-20","2018-08-21","2018-08-22","2018-08-23","2018-08-24","2018-08-25"]
[5,{"$f":"الأيام+DATE(CalYear,MONTH($B$18),1)-WEEKDAY(DATE(CalYear,MONTH($B$18),1),(WeekStart=\"الإثنين\")+1)+$A24*7-6","v":"2018-05-27"},"2018-05-28","2018-05-29","2018-05-30","2018-05-31","2018-06-01","2018-06-02",null,{"$f":"الأيام+DATE(CalYear,MONTH($J$18),1)-WEEKDAY(DATE(CalYear,MONTH($J$18),1),(WeekStart=\"الإثنين\")+1)+$A24*7-6","v":"2018-06-24"},"2018-06-25","2018-06-26","2018-06-27","2018-06-28","2018-06-29","2018-06-30",null,{"$f":"الأيام+DATE(CalYear,MONTH($R$18),1)-WEEKDAY(DATE(CalYear,MONTH($R$18),1),(WeekStart=\"الإثنين\")+1)+$A24*7-6","v":"2018-07-29"},"2018-07-30","2018-07-31","2018-08-01","2018-08-02","2018-08-03","2018-08-04",null,{"$f":"الأيام+DATE(CalYear,MONTH($Z$18),1)-WEEKDAY(DATE(CalYear,MONTH($Z$18),1),(WeekStart=\"الإثنين\")+1)+$A24*7-6","v":"2018-08-26"},"2018-08-27","2018-08-28","2018-08-29","2018-08-30","2018-08-31","2018-09-01"]
[6,{"$f":"الأيام+DATE(CalYear,MONTH($B$18),1)-WEEKDAY(DATE(CalYear,MONTH($B$18),1),(WeekStart=\"الإثنين\")+1)+$A25*7-6","v":"2018-06-03"},"2018-06-04","2018-06-05","2018-06-06","2018-06-07","2018-06-08","2018-06-09",null,{"$f":"الأيام+DATE(CalYear,MONTH($J$18),1)-WEEKDAY(DATE(CalYear,MONTH($J$18),1),(WeekStart=\"الإثنين\")+1)+$A25*7-6","v":"2018-07-01"},"2018-07-02","2018-07-03","2018-07-04","2018-07-05","2018-07-06","2018-07-07",null,{"$f":"الأيام+DATE(CalYear,MONTH($R$18),1)-WEEKDAY(DATE(CalYear,MONTH($R$18),1),(WeekStart=\"الإثنين\")+1)+$A25*7-6","v":"2018-08-05"},"2018-08-06","2018-08-07","2018-08-08","2018-08-09","2018-08-10","2018-08-11",null,{"$f":"الأيام+DATE(CalYear,MONTH($Z$18),1)-WEEKDAY(DATE(CalYear,MONTH($Z$18),1),(WeekStart=\"الإثنين\")+1)+$A25*7-6","v":"2018-09-02"},"2018-09-03","2018-09-04","2018-09-05","2018-09-06","2018-09-07","2018-09-08"]
[]
[null,{"$f":"DATE(CalYear,9,1)","v":43344},{"$nulls":7},{"$f":"DATE(CalYear,10,1)","v":43374},{"$nulls":7},{"$f":"DATE(CalYear,11,1)","v":43405},{"$nulls":7},{"$f":"DATE(CalYear,12,1)","v":43435}]
[null,{"$f":"UPPER(TEXT(B27,\"MMMM\"))","v":"سبتمبر"},{"$nulls":7},{"$f":"UPPER(TEXT(J27,\"MMMM\"))","v":"أكتوبر"},{"$nulls":7},{"$f":"UPPER(TEXT(R27,\"MMMM\"))","v":"نوفمبر"},{"$nulls":7},{"$f":"UPPER(TEXT(Z27,\"MMMM\"))","v":"ديسمبر"}]
[1,{"$f":"الأيام+DATE(CalYear,MONTH($B$27),1)-WEEKDAY(DATE(CalYear,MONTH($B$27),1),(WeekStart=\"الإثنين\")+1)+$A29*7-6","v":"2018-08-26"},"2018-08-27","2018-08-28","2018-08-29","2018-08-30","2018-08-31","2018-09-01",null,{"$f":"الأيام+DATE(CalYear,MONTH($J$27),1)-WEEKDAY(DATE(CalYear,MONTH($J$27),1),(WeekStart=\"الإثنين\")+1)+$A29*7-6","v":"2018-09-30"},"2018-10-01","2018-10-02","2018-10-03","2018-10-04","2018-10-05","2018-10-06",null,{"$f":"الأيام+DATE(CalYear,MONTH($R$27),1)-WEEKDAY(DATE(CalYear,MONTH($R$27),1),(WeekStart=\"الإثنين\")+1)+$A29*7-6","v":"2018-10-28"},"2018-10-29","2018-10-30","2018-10-31","2018-11-01","2018-11-02","2018-11-03",null,{"$f":"الأيام+DATE(CalYear,MONTH($Z$27),1)-WEEKDAY(DATE(CalYear,MONTH($Z$27),1),(WeekStart=\"الإثنين\")+1)+$A29*7-6","v":"2018-11-25"},"2018-11-26","2018-11-27","2018-11-28","2018-11-29","2018-11-30","2018-12-01"]
[2,{"$f":"الأيام+DATE(CalYear,MONTH($B$27),1)-WEEKDAY(DATE(CalYear,MONTH($B$27),1),(WeekStart=\"الإثنين\")+1)+$A30*7-6","v":"2018-09-02"},"2018-09-03","2018-09-04","2018-09-05","2018-09-06","2018-09-07","2018-09-08",null,{"$f":"الأيام+DATE(CalYear,MONTH($J$27),1)-WEEKDAY(DATE(CalYear,MONTH($J$27),1),(WeekStart=\"الإثنين\")+1)+$A30*7-6","v":"2018-10-07"},"2018-10-08","2018-10-09","2018-10-10","2018-10-11","2018-10-12","2018-10-13",null,{"$f":"الأيام+DATE(CalYear,MONTH($R$27),1)-WEEKDAY(DATE(CalYear,MONTH($R$27),1),(WeekStart=\"الإثنين\")+1)+$A30*7-6","v":"2018-11-04"},"2018-11-05","2018-11-06","2018-11-07","2018-11-08","2018-11-09","2018-11-10",null,{"$f":"الأيام+DATE(CalYear,MONTH($Z$27),1)-WEEKDAY(DATE(CalYear,MONTH($Z$27),1),(WeekStart=\"الإثنين\")+1)+$A30*7-6","v":"2018-12-02"},"2018-12-03","2018-12-04","2018-12-05","2018-12-06","2018-12-07","2018-12-08"]
[3,{"$f":"الأيام+DATE(CalYear,MONTH($B$27),1)-WEEKDAY(DATE(CalYear,MONTH($B$27),1),(WeekStart=\"الإثنين\")+1)+$A31*7-6","v":"2018-09-09"},"2018-09-10","2018-09-11","2018-09-12","2018-09-13","2018-09-14","2018-09-15",null,{"$f":"الأيام+DATE(CalYear,MONTH($J$27),1)-WEEKDAY(DATE(CalYear,MONTH($J$27),1),(WeekStart=\"الإثنين\")+1)+$A31*7-6","v":"2018-10-14"},"2018-10-15","2018-10-16","2018-10-17","2018-10-18","2018-10-19","2018-10-20",null,{"$f":"الأيام+DATE(CalYear,MONTH($R$27),1)-WEEKDAY(DATE(CalYear,MONTH($R$27),1),(WeekStart=\"الإثنين\")+1)+$A31*7-6","v":"2018-11-11"},"2018-11-12","2018-11-13","2018-11-14","2018-11-15","2018-11-16","2018-11-17",null,{"$f":"الأيام+DATE(CalYear,MONTH($Z$27),1)-WEEKDAY(DATE(CalYear,MONTH($Z$27),1),(WeekStart=\"الإثنين\")+1)+$A31*7-6","v":"2018-12-09"},"2018-12-10","2018-12-11","2018-12-12","2018-12-13","2018-12-14","2018-12-15"]
[4,{"$f":"الأيام+DATE(CalYear,MONTH($B$27),1)-WEEKDAY(DATE(CalYear,MONTH($B$27),1),(WeekStart=\"الإثنين\")+1)+$A32*7-6","v":"2018-09-16"},"2018-09-17","2018-09-18","2018-09-19","2018-09-20","2018-09-21","2018-09-22",null,{"$f":"الأيام+DATE(CalYear,MONTH($J$27),1)-WEEKDAY(DATE(CalYear,MONTH($J$27),1),(WeekStart=\"الإثنين\")+1)+$A32*7-6","v":"2018-10-21"},"2018-10-22","2018-10-23","2018-10-24","2018-10-25","2018-10-26","2018-10-27",null,{"$f":"الأيام+DATE(CalYear,MONTH($R$27),1)-WEEKDAY(DATE(CalYear,MONTH($R$27),1),(WeekStart=\"الإثنين\")+1)+$A32*7-6","v":"2018-11-18"},"2018-11-19","2018-11-20","2018-11-21","2018-11-22","2018-11-23","2018-11-24",null,{"$f":"الأيام+DATE(CalYear,MONTH($Z$27),1)-WEEKDAY(DATE(CalYear,MONTH($Z$27),1),(WeekStart=\"الإثنين\")+1)+$A32*7-6","v":"2018-12-16"},"2018-12-17","2018-12-18","2018-12-19","2018-12-20","2018-12-21","2018-12-22"]
[5,{"$f":"الأيام+DATE(CalYear,MONTH($B$27),1)-WEEKDAY(DATE(CalYear,MONTH($B$27),1),(WeekStart=\"الإثنين\")+1)+$A33*7-6","v":"2018-09-23"},"2018-09-24","2018-09-25","2018-09-26","2018-09-27","2018-09-28","2018-09-29",null,{"$f":"الأيام+DATE(CalYear,MONTH($J$27),1)-WEEKDAY(DATE(CalYear,MONTH($J$27),1),(WeekStart=\"الإثنين\")+1)+$A33*7-6","v":"2018-10-28"},"2018-10-29","2018-10-30","2018-10-31","2018-11-01","2018-11-02","2018-11-03",null,{"$f":"الأيام+DATE(CalYear,MONTH($R$27),1)-WEEKDAY(DATE(CalYear,MONTH($R$27),1),(WeekStart=\"الإثنين\")+1)+$A33*7-6","v":"2018-11-25"},"2018-11-26","2018-11-27","2018-11-28","2018-11-29","2018-11-30","2018-12-01",null,{"$f":"الأيام+DATE(CalYear,MONTH($Z$27),1)-WEEKDAY(DATE(CalYear,MONTH($Z$27),1),(WeekStart=\"الإثنين\")+1)+$A33*7-6","v":"2018-12-23"},"2018-12-24","2018-12-25","2018-12-26","2018-12-27","2018-12-28","2018-12-29"]
[6,{"$f":"الأيام+DATE(CalYear,MONTH($B$27),1)-WEEKDAY(DATE(CalYear,MONTH($B$27),1),(WeekStart=\"الإثنين\")+1)+$A34*7-6","v":"2018-09-30"},"2018-10-01","2018-10-02","2018-10-03","2018-10-04","2018-10-05","2018-10-06",null,{"$f":"الأيام+DATE(CalYear,MONTH($J$27),1)-WEEKDAY(DATE(CalYear,MONTH($J$27),1),(WeekStart=\"الإثنين\")+1)+$A34*7-6","v":"2018-11-04"},"2018-11-05","2018-11-06","2018-11-07","2018-11-08","2018-11-09","2018-11-10",null,{"$f":"الأيام+DATE(CalYear,MONTH($R$27),1)-WEEKDAY(DATE(CalYear,MONTH($R$27),1),(WeekStart=\"الإثنين\")+1)+$A34*7-6","v":"2018-12-02"},"2018-12-03","2018-12-04","2018-12-05","2018-12-06","2018-12-07","2018-12-08",null,{"$f":"الأيام+DATE(CalYear,MONTH($Z$27),1)-WEEKDAY(DATE(CalYear,MONTH($Z$27),1),(WeekStart=\"الإثنين\")+1)+$A34*7-6","v":"2018-12-30"},"2018-12-31","2019-01-01","2019-01-02","2019-01-03","2019-01-04","2019-01-05"]

{"sheet":"يناير","index":1,"n_rows":16,"n_cols":8,"rows_kept":16,"merged":[[1,1,1,3],[14,3,14,7],[15,3,15,7],[16,1,16,7]]}
[]
[null,{"$f":"B9","v":"2018-01-14"}]
[]
[null,{"$f":"WeekStart","v":"الأحد"},{"$f":"UPPER(TEXT(C5,\"dddd\"))","v":"الإثنين"},"الثلاثاء","الأربعاء","الخميس","الجمعة","السبت"]
[null,{"$f":"الأيام+DATE(CalYear,1,1)-WEEKDAY(DATE(CalYear,1,1),(WeekStart=\"الإثنين\")+1)+1","v":"2017-12-31"},"2018-01-01","2018-01-02","2018-01-03","2018-01-04","2018-01-05","2018-01-06"]
[null,{"$f":"IFERROR(IF(ShowHolidays,IF(INDEX(tblHolidays[],MATCH(DATE(CalYear-(DAY(B5)>15)+(ROW()>6),MONTH(B5),DAY(B5)),IF(ShowObserved,tblHolidays[الصحيح],tblHolidays[اليوم]),0),6),INDEX(tblHolidays[],MATCH(DATE(CalYear-(DAY(B5)>15)+(ROW()>6),MONTH(B5),DAY(B5)),IF(ShowObserved,tblHolidays[الصحيح],tblHolidays[اليوم]),0),2),\"\"),\"\"),\"\")","v":""},{"$f":"IFERROR(IF(ShowHolidays,IF(INDEX(tblHolidays[],MATCH(DATE(CalYear-(DAY(C5)>15)+(ROW()>6),MONTH(C5),DAY(C5)),IF(ShowObserved,tblHolidays[الصحيح],tblHolidays[اليوم]),0),6),INDEX(tblHolidays[],MATCH(DATE(CalYear-(DAY(C5)>15)+(ROW()>6),MONTH(C5),DAY(C5)),IF(ShowObserved,tblHolidays[الصحيح],tblHolidays[اليوم]),0),2),\"\"),\"\"),\"\")","v":"رأس السنة الجديدة"},{"$f":"IFERROR(IF(ShowHolidays,IF(INDEX(tblHolidays[],MATCH(DATE(CalYear-(DAY(D5)>15)+(ROW()>6),MONTH(D5),DAY(D5)),IF(ShowObserved,tblHolidays[الصحيح],tblHolidays[اليوم]),0),6),INDEX(tblHolidays[],MATCH(DATE(CalYear-(DAY(D5)>15)+(ROW()>6),MONTH(D5),DAY(D5)),IF(ShowObserved,tblHolidays[الصحيح],tblHolidays[اليوم]),0),2),\"\"),\"\"),\"\")","v":""},{"$f":"IFERROR(IF(ShowHolidays,IF(INDEX(tblHolidays[],MATCH(DATE(CalYear-(DAY(E5)>15)+(ROW()>6),MONTH(E5),DAY(E5)),IF(ShowObserved,tblHolidays[الصحيح],tblHolidays[اليوم]),0),6),INDEX(tblHolidays[],MATCH(DATE(CalYear-(DAY(E5)>15)+(ROW()>6),MONTH(E5),DAY(E5)),IF(ShowObserved,tblHolidays[الصحيح],tblHolidays[اليوم]),0),2),\"\"),\"\"),\"\")","v":""},{"$f":"IFERROR(IF(ShowHolidays,IF(INDEX(tblHolidays[],MATCH(DATE(CalYear-(DAY(F5)>15)+(ROW()>6),MONTH(F5),DAY(F5)),IF(ShowObserved,tblHolidays[الصحيح],tblHolidays[اليوم]),0),6),INDEX(tblHolidays[],MATCH(DATE(CalYear-(DAY(F5)>15)+(ROW()>6),MONTH(F5),DAY(F5)),IF(ShowObserved,tblHolidays[الصحيح],tblHolidays[اليوم]),0),2),\"\"),\"\"),\"\")","v":""},{"$f":"IFERROR(IF(ShowHolidays,IF(INDEX(tblHolidays[],MATCH(DATE(CalYear-(DAY(G5)>15)+(ROW()>6),MONTH(G5),DAY(G5)),IF(ShowObserved,tblHolidays[الصحيح],tblHolidays[اليوم]),0),6),INDEX(tblHolidays[],MATCH(DATE(CalYear-(DAY(G5)>15)+(ROW()>6),MONTH(G5),DAY(G5)),IF(ShowObserved,tblHolidays[الصحيح],tblHolidays[اليوم]),0),2),\"\"),\"\"),\"\")","v":""},{"$f":"IFERROR(IF(ShowHolidays,IF(INDEX(tblHolidays[],MATCH(DATE(CalYear-(DAY(H5)>15)+(ROW()>6),MONTH(H5),DAY(H5)),IF(ShowObserved,tblHolidays[الصحيح],tblHolidays[اليوم]),0),6),INDEX(tblHolidays[],MATCH(DATE(CalYear-(DAY(H5)>15)+(ROW()>6),MONTH(H5),DAY(H5)),IF(ShowObserved,tblHolidays[الصحيح],tblHolidays[اليوم]),0),2),\"\"),\"\"),\"\")","v":""}]
[null,{"$f":"الأيام+DATE(CalYear,1,1)-WEEKDAY(DATE(CalYear,1,1),(WeekStart=\"الإثنين\")+1)+8","v":"2018-01-07"},"2018-01-08","2018-01-09","2018-01-10","2018-01-11","2018-01-12","2018-01-13"]
[null,{"$f":"IFERROR(IF(ShowHolidays,IF(INDEX(tblHolidays[],MATCH(DATE(CalYear,MONTH(B7),DAY(B7)),IF(ShowObserved,tblHolidays[الصحيح],tblHolidays[اليوم]),0),6),INDEX(tblHolidays[],MATCH(DATE(CalYear,MONTH(B7),DAY(B7)),IF(ShowObserved,tblHolidays[الصحيح],tblHolidays[اليوم]),0),2),\"\"),\"\"),\"\")","v":""},{"$f":"IFERROR(IF(ShowHolidays,IF(INDEX(tblHolidays[],MATCH(DATE(CalYear,MONTH(C7),DAY(C7)),IF(ShowObserved,tblHolidays[الصحيح],tblHolidays[اليوم]),0),6),INDEX(tblHolidays[],MATCH(DATE(CalYear,MONTH(C7),DAY(C7)),IF(ShowObserved,tblHolidays[الصحيح],tblHolidays[اليوم]),0),2),\"\"),\"\"),\"\")","v":""},{"$f":"IFERROR(IF(ShowHolidays,IF(INDEX(tblHolidays[],MATCH(DATE(CalYear,MONTH(D7),DAY(D7)),IF(ShowObserved,tblHolidays[الصحيح],tblHolidays[اليوم]),0),6),INDEX(tblHolidays[],MATCH(DATE(CalYear,MONTH(D7),DAY(D7)),IF(ShowObserved,tblHolidays[الصحيح],tblHolidays[اليوم]),0),2),\"\"),\"\"),\"\")","v":""},{"$f":"IFERROR(IF(ShowHolidays,IF(INDEX(tblHolidays[],MATCH(DATE(CalYear,MONTH(E7),DAY(E7)),IF(ShowObserved,tblHolidays[الصحيح],tblHolidays[اليوم]),0),6),INDEX(tblHolidays[],MATCH(DATE(CalYear,MONTH(E7),DAY(E7)),IF(ShowObserved,tblHolidays[الصحيح],tblHolidays[اليوم]),0),2),\"\"),\"\"),\"\")","v":""},{"$f":"IFERROR(IF(ShowHolidays,IF(INDEX(tblHolidays[],MATCH(DATE(CalYear,MONTH(F7),DAY(F7)),IF(ShowObserved,tblHolidays[الصحيح],tblHolidays[اليوم]),0),6),INDEX(tblHolidays[],MATCH(DATE(CalYear,MONTH(F7),DAY(F7)),IF(ShowObserved,tblHolidays[الصحيح],tblHolidays[اليوم]),0),2),\"\"),\"\"),\"\")","v":""},{"$f":"IFERROR(IF(ShowHolidays,IF(INDEX(tblHolidays[],MATCH(DATE(CalYear,MONTH(G7),DAY(G7)),IF(ShowObserved,tblHolidays[الصحيح],tblHolidays[اليوم]),0),6),INDEX(tblHolidays[],MATCH(DATE(CalYear,MONTH(G7),DAY(G7)),IF(ShowObserved,tblHolidays[الصحيح],tblHolidays[اليوم]),0),2),\"\"),\"\"),\"\")","v":""},{"$f":"IFERROR(IF(ShowHolidays,IF(INDEX(tblHolidays[],MATCH(DATE(CalYear,MONTH(H7),DAY(H7)),IF(ShowObserved,tblHolidays[الصحيح],tblHolidays[اليوم]),0),6),INDEX(tblHolidays[],MATCH(DATE(CalYear,MONTH(H7),DAY(H7)),IF(ShowObserved,tblHolidays[الصحيح],tblHolidays[اليوم]),0),2),\"\"),\"\"),\"\")","v":""}]
[null,{"$f":"الأيام+DATE(CalYear,1,1)-WEEKDAY(DATE(CalYear,1,1),(WeekStart=\"الإثنين\")+1)+15","v":"2018-01-14"},"2018-01-15","2018-01-16","2018-01-17","2018-01-18","2018-01-19","2018-01-20"]
[null,{"$f":"IFERROR(IF(ShowHolidays,IF(INDEX(tblHolidays[],MATCH(DATE(CalYear,MONTH(B9),DAY(B9)),IF(ShowObserved,tblHolidays[الصحيح],tblHolidays[اليوم]),0),6),INDEX(tblHolidays[],MATCH(DATE(CalYear,MONTH(B9),DAY(B9)),IF(ShowObserved,tblHolidays[الصحيح],tblHolidays[اليوم]),0),2),\"\"),\"\"),\"\")","v":""},{"$f":"IFERROR(IF(ShowHolidays,IF(INDEX(tblHolidays[],MATCH(DATE(CalYear,MONTH(C9),DAY(C9)),IF(ShowObserved,tblHolidays[الصحيح],tblHolidays[اليوم]),0),6),INDEX(tblHolidays[],MATCH(DATE(CalYear,MONTH(C9),DAY(C9)),IF(ShowObserved,tblHolidays[الصحيح],tblHolidays[اليوم]),0),2),\"\"),\"\"),\"\")","v":""},{"$f":"IFERROR(IF(ShowHolidays,IF(INDEX(tblHolidays[],MATCH(DATE(CalYear,MONTH(D9),DAY(D9)),IF(ShowObserved,tblHolidays[الصحيح],tblHolidays[اليوم]),0),6),INDEX(tblHolidays[],MATCH(DATE(CalYear,MONTH(D9),DAY(D9)),IF(ShowObserved,tblHolidays[الصحيح],tblHolidays[اليوم]),0),2),\"\"),\"\"),\"\")","v":""},{"$f":"IFERROR(IF(ShowHolidays,IF(INDEX(tblHolidays[],MATCH(DATE(CalYear,MONTH(E9),DAY(E9)),IF(ShowObserved,tblHolidays[الصحيح],tblHolidays[اليوم]),0),6),INDEX(tblHolidays[],MATCH(DATE(CalYear,MONTH(E9),DAY(E9)),IF(ShowObserved,tblHolidays[الصحيح],tblHolidays[اليوم]),0),2),\"\"),\"\"),\"\")","v":""},{"$f":"IFERROR(IF(ShowHolidays,IF(INDEX(tblHolidays[],MATCH(DATE(CalYear,MONTH(F9),DAY(F9)),IF(ShowObserved,tblHolidays[الصحيح],tblHolidays[اليوم]),0),6),INDEX(tblHolidays[],MATCH(DATE(CalYear,MONTH(F9),DAY(F9)),IF(ShowObserved,tblHolidays[الصحيح],tblHolidays[اليوم]),0),2),\"\"),\"\"),\"\")","v":""},{"$f":"IFERROR(IF(ShowHolidays,IF(INDEX(tblHolidays[],MATCH(DATE(CalYear,MONTH(G9),DAY(G9)),IF(ShowObserved,tblHolidays[الصحيح],tblHolidays[اليوم]),0),6),INDEX(tblHolidays[],MATCH(DATE(CalYear,MONTH(G9),DAY(G9)),IF(ShowObserved,tblHolidays[الصحيح],tblHolidays[اليوم]),0),2),\"\"),\"\"),\"\")","v":""},{"$f":"IFERROR(IF(ShowHolidays,IF(INDEX(tblHolidays[],MATCH(DATE(CalYear,MONTH(H9),DAY(H9)),IF(ShowObserved,tblHolidays[الصحيح],tblHolidays[اليوم]),0),6),INDEX(tblHolidays[],MATCH(DATE(CalYear,MONTH(H9),DAY(H9)),IF(ShowObserved,tblHolidays[الصحيح],tblHolidays[اليوم]),0),2),\"\"),\"\"),\"\")","v":""}]
[null,{"$f":"الأيام+DATE(CalYear,1,1)-WEEKDAY(DATE(CalYear,1,1),(WeekStart=\"الإثنين\")+1)+22","v":"2018-01-21"},"2018-01-22","2018-01-23","2018-01-24","2018-01-25","2018-01-26","2018-01-27"]
[null,{"$f":"IFERROR(IF(ShowHolidays,IF(INDEX(tblHolidays[],MATCH(DATE(CalYear,MONTH(B11),DAY(B11)),IF(ShowObserved,tblHolidays[الصحيح],tblHolidays[اليوم]),0),6),INDEX(tblHolidays[],MATCH(DATE(CalYear,MONTH(B11),DAY(B11)),IF(ShowObserved,tblHolidays[الصحيح],tblHolidays[اليوم]),0),2),\"\"),\"\"),\"\")","v":""},{"$f":"IFERROR(IF(ShowHolidays,IF(INDEX(tblHolidays[],MATCH(DATE(CalYear,MONTH(C11),DAY(C11)),IF(ShowObserved,tblHolidays[الصحيح],tblHolidays[اليوم]),0),6),INDEX(tblHolidays[],MATCH(DATE(CalYear,MONTH(C11),DAY(C11)),IF(ShowObserved,tblHolidays[الصحيح],tblHolidays[اليوم]),0),2),\"\"),\"\"),\"\")","v":""},{"$f":"IFERROR(IF(ShowHolidays,IF(INDEX(tblHolidays[],MATCH(DATE(CalYear,MONTH(D11),DAY(D11)),IF(ShowObserved,tblHolidays[الصحيح],tblHolidays[اليوم]),0),6),INDEX(tblHolidays[],MATCH(DATE(CalYear,MONTH(D11),DAY(D11)),IF(ShowObserved,tblHolidays[الصحيح],tblHolidays[اليوم]),0),2),\"\"),\"\"),\"\")","v":""},{"$f":"IFERROR(IF(ShowHolidays,IF(INDEX(tblHolidays[],MATCH(DATE(CalYear,MONTH(E11),DAY(E11)),IF(ShowObserved,tblHolidays[الصحيح],tblHolidays[اليوم]),0),6),INDEX(tblHolidays[],MATCH(DATE(CalYear,MONTH(E11),DAY(E11)),IF(ShowObserved,tblHolidays[الصحيح],tblHolidays[اليوم]),0),2),\"\"),\"\"),\"\")","v":""},{"$f":"IFERROR(IF(ShowHolidays,IF(INDEX(tblHolidays[],MATCH(DATE(CalYear,MONTH(F11),DAY(F11)),IF(ShowObserved,tblHolidays[الصحيح],tblHolidays[اليوم]),0),6),INDEX(tblHolidays[],MATCH(DATE(CalYear,MONTH(F11),DAY(F11)),IF(ShowObserved,tblHolidays[الصحيح],tblHolidays[اليوم]),0),2),\"\"),\"\"),\"\")","v":""},{"$f":"IFERROR(IF(ShowHolidays,IF(INDEX(tblHolidays[],MATCH(DATE(CalYear,MONTH(G11),DAY(G11)),IF(ShowObserved,tblHolidays[الصحيح],tblHolidays[اليوم]),0),6),INDEX(tblHolidays[],MATCH(DATE(CalYear,MONTH(G11),DAY(G11)),IF(ShowObserved,tblHolidays[الصحيح],tblHolidays[اليوم]),0),2),\"\"),\"\"),\"\")","v":""},{"$f":"IFERROR(IF(ShowHolidays,IF(INDEX(tblHolidays[],MATCH(DATE(CalYear,MONTH(H11),DAY(H11)),IF(ShowObserved,tblHolidays[الصحيح],tblHolidays[اليوم]),0),6),INDEX(tblHolidays[],MATCH(DATE(CalYear,MONTH(H11),DAY(H11)),IF(ShowObserved,tblHolidays[الصحيح],tblHolidays[اليوم]),0),2),\"\"),\"\"),\"\")","v":""}]
[null,{"$f":"الأيام+DATE(CalYear,1,1)-WEEKDAY(DATE(CalYear,1,1),(WeekStart=\"الإثنين\")+1)+29","v":"2018-01-28"},"2018-01-29","2018-01-30","2018-01-31","2018-02-01","2018-02-02","2018-02-03"]
[null,{"$f":"IFERROR(IF(ShowHolidays,IF(INDEX(tblHolidays[],MATCH(DATE(CalYear,MONTH(B13),DAY(B13)),IF(ShowObserved,tblHolidays[الصحيح],tblHolidays[اليوم]),0),6),INDEX(tblHolidays[],MATCH(DATE(CalYear,MONTH(B13),DAY(B13)),IF(ShowObserved,tblHolidays[الصحيح],tblHolidays[اليوم]),0),2),\"\"),\"\"),\"\")","v":""},{"$f":"IFERROR(IF(ShowHolidays,IF(INDEX(tblHolidays[],MATCH(DATE(CalYear,MONTH(C13),DAY(C13)),IF(ShowObserved,tblHolidays[الصحيح],tblHolidays[اليوم]),0),6),INDEX(tblHolidays[],MATCH(DATE(CalYear,MONTH(C13),DAY(C13)),IF(ShowObserved,tblHolidays[الصحيح],tblHolidays[اليوم]),0),2),\"\"),\"\"),\"\")","v":""},{"$f":"IFERROR(IF(ShowHolidays,IF(INDEX(tblHolidays[],MATCH(DATE(CalYear,MONTH(D13),DAY(D13)),IF(ShowObserved,tblHolidays[الصحيح],tblHolidays[اليوم]),0),6),INDEX(tblHolidays[],MATCH(DATE(CalYear,MONTH(D13),DAY(D13)),IF(ShowObserved,tblHolidays[الصحيح],tblHolidays[اليوم]),0),2),\"\"),\"\"),\"\")","v":""},{"$f":"IFERROR(IF(ShowHolidays,IF(INDEX(tblHolidays[],MATCH(DATE(CalYear,MONTH(E13),DAY(E13)),IF(ShowObserved,tblHolidays[الصحيح],tblHolidays[اليوم]),0),6),INDEX(tblHolidays[],MATCH(DATE(CalYear,MONTH(E13),DAY(E13)),IF(ShowObserved,tblHolidays[الصحيح],tblHolidays[اليوم]),0),2),\"\"),\"\"),\"\")","v":""},{"$f":"IFERROR(IF(ShowHolidays,IF(INDEX(tblHolidays[],MATCH(DATE(CalYear,MONTH(F13),DAY(F13)),IF(ShowObserved,tblHolidays[الصحيح],tblHolidays[اليوم]),0),6),INDEX(tblHolidays[],MATCH(DATE(CalYear,MONTH(F13),DAY(F13)),IF(ShowObserved,tblHolidays[الصحيح],tblHolidays[اليوم]),0),2),\"\"),\"\"),\"\")","v":""},{"$f":"IFERROR(IF(ShowHolidays,IF(INDEX(tblHolidays[],MATCH(DATE(CalYear,MONTH(G13),DAY(G13)),IF(ShowObserved,tblHolidays[الصحيح],tblHolidays[اليوم]),0),6),INDEX(tblHolidays[],MATCH(DATE(CalYear,MONTH(G13),DAY(G13)),IF(ShowObserved,tblHolidays[الصحيح],tblHolidays[اليوم]),0),2),\"\"),\"\"),\"\")","v":""},{"$f":"IFERROR(IF(ShowHolidays,IF(INDEX(tblHolidays[],MATCH(DATE(CalYear,MONTH(H13),DAY(H13)),IF(ShowObserved,tblHolidays[الصحيح],tblHolidays[اليوم]),0),6),INDEX(tblHolidays[],MATCH(DATE(CalYear,MONTH(H13),DAY(H13)),IF(ShowObserved,tblHolidays[الصحيح],tblHolidays[اليوم]),0),2),\"\"),\"\"),\"\")","v":""}]
[null,{"$f":"الأيام+DATE(CalYear,1,1)-WEEKDAY(DATE(CalYear,1,1),(WeekStart=\"الإثنين\")+1)+36","v":"2018-02-04"},"2018-02-05","الملاحظات"]
[null,{"$f":"IFERROR(IF(ShowHolidays,IF(INDEX(tblHolidays[],MATCH(DATE(CalYear,MONTH(B15),DAY(B15)),IF(ShowObserved,tblHolidays[الصحيح],tblHolidays[اليوم]),0),6),INDEX(tblHolidays[],MATCH(DATE(CalYear,MONTH(B15),DAY(B15)),IF(ShowObserved,tblHolidays[الصحيح],tblHolidays[اليوم]),0),2),\"\"),\"\"),\"\")","v":""},{"$f":"IFERROR(IF(ShowHolidays,IF(INDEX(tblHolidays[],MATCH(DATE(CalYear,MONTH(C15),DAY(C15)),IF(ShowObserved,tblHolidays[الصحيح],tblHolidays[اليوم]),0),6),INDEX(tblHolidays[],MATCH(DATE(CalYear,MONTH(C15),DAY(C15)),IF(ShowObserved,tblHolidays[الصحيح],tblHolidays[اليوم]),0),2),\"\"),\"\"),\"\")","v":""}]

{"sheet":"فبراير","index":2,"n_rows":16,"n_cols":8,"rows_kept":16,"merged":[[1,1,1,3],[14,3,14,7],[15,3,15,7],[16,1,16,7]]}
[]
[null,{"$f":"B9","v":"2018-02-11"}]
[]
[null,{"$f":"WeekStart","v":"الأحد"},{"$f":"UPPER(TEXT(C5,\"dddd\"))","v":"الإثنين"},"الثلاثاء","الأربعاء","الخميس","الجمعة","السبت"]
[null,{"$f":"الأيام+DATE(CalYear,2,1)-WEEKDAY(DATE(CalYear,2,1),(WeekStart=\"الإثنين\")+1)+1","v":"2018-01-28"},"2018-01-29","2018-01-30","2018-01-31","2018-02-01","2018-02-02","2018-02-03"]
[null,{"$f":"IFERROR(IF(ShowHolidays,IF(INDEX(tblHolidays[],MATCH(DATE(CalYear-(DAY(B5)>15)+(ROW()>6),MONTH(B5),DAY(B5)),IF(ShowObserved,tblHolidays[الصحيح],tblHolidays[اليوم]),0),6),INDEX(tblHolidays[],MATCH(DATE(CalYear-(DAY(B5)>15)+(ROW()>6),MONTH(B5),DAY(B5)),IF(ShowObserved,tblHolidays[الصحيح],tblHolidays[اليوم]),0),2),\"\"),\"\"),\"\")","v":""},{"$f":"IFERROR(IF(ShowHolidays,IF(INDEX(tblHolidays[],MATCH(DATE(CalYear-(DAY(C5)>15)+(ROW()>6),MONTH(C5),DAY(C5)),IF(ShowObserved,tblHolidays[الصحيح],tblHolidays[اليوم]),0),6),INDEX(tblHolidays[],MATCH(DATE(CalYear-(DAY(C5)>15)+(ROW()>6),MONTH(C5),DAY(C5)),IF(ShowObserved,tblHolidays[الصحيح],tblHolidays[اليوم]),0),2),\"\"),\"\"),\"\")","v":""},{"$f":"IFERROR(IF(ShowHolidays,IF(INDEX(tblHolidays[],MATCH(DATE(CalYear-(DAY(D5)>15)+(ROW()>6),MONTH(D5),DAY(D5)),IF(ShowObserved,tblHolidays[الصحيح],tblHolidays[اليوم]),0),6),INDEX(tblHolidays[],MATCH(DATE(CalYear-(DAY(D5)>15)+(ROW()>6),MONTH(D5),DAY(D5)),IF(ShowObserved,tblHolidays[الصحيح],tblHolidays[اليوم]),0),2),\"\"),\"\"),\"\")","v":""},{"$f":"IFERROR(IF(ShowHolidays,IF(INDEX(tblHolidays[],MATCH(DATE(CalYear-(DAY(E5)>15)+(ROW()>6),MONTH(E5),DAY(E5)),IF(ShowObserved,tblHolidays[الصحيح],tblHolidays[اليوم]),0),6),INDEX(tblHolidays[],MATCH(DATE(CalYear-(DAY(E5)>15)+(ROW()>6),MONTH(E5),DAY(E5)),IF(ShowObserved,tblHolidays[الصحيح],tblHolidays[اليوم]),0),2),\"\"),\"\"),\"\")","v":""},{"$f":"IFERROR(IF(ShowHolidays,IF(INDEX(tblHolidays[],MATCH(DATE(CalYear-(DAY(F5)>15)+(ROW()>6),MONTH(F5),DAY(F5)),IF(ShowObserved,tblHolidays[الصحيح],tblHolidays[اليوم]),0),6),INDEX(tblHolidays[],MATCH(DATE(CalYear-(DAY(F5)>15)+(ROW()>6),MONTH(F5),DAY(F5)),IF(ShowObserved,tblHolidays[الصحيح],tblHolidays[اليوم]),0),2),\"\"),\"\"),\"\")","v":""},{"$f":"IFERROR(IF(ShowHolidays,IF(INDEX(tblHolidays[],MATCH(DATE(CalYear-(DAY(G5)>15)+(ROW()>6),MONTH(G5),DAY(G5)),IF(ShowObserved,tblHolidays[الصحيح],tblHolidays[اليوم]),0),6),INDEX(tblHolidays[],MATCH(DATE(CalYear-(DAY(G5)>15)+(ROW()>6),MONTH(G5),DAY(G5)),IF(ShowObserved,tblHolidays[الصحيح],tblHolidays[اليوم]),0),2),\"\"),\"\"),\"\")","v":""},{"$f":"IFERROR(IF(ShowHolidays,IF(INDEX(tblHolidays[],MATCH(DATE(CalYear-(DAY(H5)>15)+(ROW()>6),MONTH(H5),DAY(H5)),IF(ShowObserved,tblHolidays[الصحيح],tblHolidays[اليوم]),0),6),INDEX(tblHolidays[],MATCH(DATE(CalYear-(DAY(H5)>15)+(ROW()>6),MONTH(H5),DAY(H5)),IF(ShowObserved,tblHolidays[الصحيح],tblHolidays[اليوم]),0),2),\"\"),\"\"),\"\")","v":""}]
[null,{"$f":"الأيام+DATE(CalYear,2,1)-WEEKDAY(DATE(CalYear,2,1),(WeekStart=\"الإثنين\")+1)+8","v":"2018-02-04"},"2018-02-05","2018-02-06","2018-02-07","2018-02-08","2018-02-09","2018-02-10"]
[null,{"$f":"IFERROR(IF(ShowHolidays,IF(INDEX(tblHolidays[],MATCH(DATE(CalYear,MONTH(B7),DAY(B7)),IF(ShowObserved,tblHolidays[الصحيح],tblHolidays[اليوم]),0),6),INDEX(tblHolidays[],MATCH(DATE(CalYear,MONTH(B7),DAY(B7)),IF(ShowObserved,tblHolidays[الصحيح],tblHolidays[اليوم]),0),2),\"\"),\"\"),\"\")","v":""},{"$f":"IFERROR(IF(ShowHolidays,IF(INDEX(tblHolidays[],MATCH(DATE(CalYear,MONTH(C7),DAY(C7)),IF(ShowObserved,tblHolidays[الصحيح],tblHolidays[اليوم]),0),6),INDEX(tblHolidays[],MATCH(DATE(CalYear,MONTH(C7),DAY(C7)),IF(ShowObserved,tblHolidays[الصحيح],tblHolidays[اليوم]),0),2),\"\"),\"\"),\"\")","v":""},{"$f":"IFERROR(IF(ShowHolidays,IF(INDEX(tblHolidays[],MATCH(DATE(CalYear,MONTH(D7),DAY(D7)),IF(ShowObserved,tblHolidays[الصحيح],tblHolidays[اليوم]),0),6),INDEX(tblHolidays[],MATCH(DATE(CalYear,MONTH(D7),DAY(D7)),IF(ShowObserved,tblHolidays[الصحيح],tblHolidays[اليوم]),0),2),\"\"),\"\"),\"\")","v":""},{"$f":"IFERROR(IF(ShowHolidays,IF(INDEX(tblHolidays[],MATCH(DATE(CalYear,MONTH(E7),DAY(E7)),IF(ShowObserved,tblHolidays[الصحيح],tblHolidays[اليوم]),0),6),INDEX(tblHolidays[],MATCH(DATE(CalYear,MONTH(E7),DAY(E7)),IF(ShowObserved,tblHolidays[الصحيح],tblHolidays[اليوم]),0),2),\"\"),\"\"),\"\")","v":""},{"$f":"IFERROR(IF(ShowHolidays,IF(INDEX(tblHolidays[],MATCH(DATE(CalYear,MONTH(F7),DAY(F7)),IF(ShowObserved,tblHolidays[الصحيح],tblHolidays[اليوم]),0),6),INDEX(tblHolidays[],MATCH(DATE(CalYear,MONTH(F7),DAY(F7)),IF(ShowObserved,tblHolidays[الصحيح],tblHolidays[اليوم]),0),2),\"\"),\"\"),\"\")","v":""},{"$f":"IFERROR(IF(ShowHolidays,IF(INDEX(tblHolidays[],MATCH(DATE(CalYear,MONTH(G7),DAY(G7)),IF(ShowObserved,tblHolidays[الصحيح],tblHolidays[اليوم]),0),6),INDEX(tblHolidays[],MATCH(DATE(CalYear,MONTH(G7),DAY(G7)),IF(ShowObserved,tblHolidays[الصحيح],tblHolidays[اليوم]),0),2),\"\"),\"\"),\"\")","v":""},{"$f":"IFERROR(IF(ShowHolidays,IF(INDEX(tblHolidays[],MATCH(DATE(CalYear,MONTH(H7),DAY(H7)),IF(ShowObserved,tblHolidays[الصحيح],tblHolidays[اليوم]),0),6),INDEX(tblHolidays[],MATCH(DATE(CalYear,MONTH(H7),DAY(H7)),IF(ShowObserved,tblHolidays[الصحيح],tblHolidays[اليوم]),0),2),\"\"),\"\"),\"\")","v":""}]
[null,{"$f":"الأيام+DATE(CalYear,2,1)-WEEKDAY(DATE(CalYear,2,1),(WeekStart=\"الإثنين\")+1)+15","v":"2018-02-11"},"2018-02-12","2018-02-13","2018-02-14","2018-02-15","2018-02-16","2018-02-17"]
[null,{"$f":"IFERROR(IF(ShowHolidays,IF(INDEX(tblHolidays[],MATCH(DATE(CalYear,MONTH(B9),DAY(B9)),IF(ShowObserved,tblHolidays[الصحيح],tblHolidays[اليوم]),0),6),INDEX(tblHolidays[],MATCH(DATE(CalYear,MONTH(B9),DAY(B9)),IF(ShowObserved,tblHolidays[الصحيح],tblHolidays[اليوم]),0),2),\"\"),\"\"),\"\")","v":""},{"$f":"IFERROR(IF(ShowHolidays,IF(INDEX(tblHolidays[],MATCH(DATE(CalYear,MONTH(C9),DAY(C9)),IF(ShowObserved,tblHolidays[الصحيح],tblHolidays[اليوم]),0),6),INDEX(tblHolidays[],MATCH(DATE(CalYear,MONTH(C9),DAY(C9)),IF(ShowObserved,tblHolidays[الصحيح],tblHolidays[اليوم]),0),2),\"\"),\"\"),\"\")","v":""},{"$f":"IFERROR(IF(ShowHolidays,IF(INDEX(tblHolidays[],MATCH(DATE(CalYear,MONTH(D9),DAY(D9)),IF(ShowObserved,tblHolidays[الصحيح],tblHolidays[اليوم]),0),6),INDEX(tblHolidays[],MATCH(DATE(CalYear,MONTH(D9),DAY(D9)),IF(ShowObserved,tblHolidays[الصحيح],tblHolidays[اليوم]),0),2),\"\"),\"\"),\"\")","v":""},{"$f":"IFERROR(IF(ShowHolidays,IF(INDEX(tblHolidays[],MATCH(DATE(CalYear,MONTH(E9),DAY(E9)),IF(ShowObserved,tblHolidays[الصحيح],tblHolidays[اليوم]),0),6),INDEX(tblHolidays[],MATCH(DATE(CalYear,MONTH(E9),DAY(E9)),IF(ShowObserved,tblHolidays[الصحيح],tblHolidays[اليوم]),0),2),\"\"),\"\"),\"\")","v":""},{"$f":"IFERROR(IF(ShowHolidays,IF(INDEX(tblHolidays[],MATCH(DATE(CalYear,MONTH(F9),DAY(F9)),IF(ShowObserved,tblHolidays[الصحيح],tblHolidays[اليوم]),0),6),INDEX(tblHolidays[],MATCH(DATE(CalYear,MONTH(F9),DAY(F9)),IF(ShowObserved,tblHolidays[الصحيح],tblHolidays[اليوم]),0),2),\"\"),\"\"),\"\")","v":""},{"$f":"IFERROR(IF(ShowHolidays,IF(INDEX(tblHolidays[],MATCH(DATE(CalYear,MONTH(G9),DAY(G9)),IF(ShowObserved,tblHolidays[الصحيح],tblHolidays[اليوم]),0),6),INDEX(tblHolidays[],MATCH(DATE(CalYear,MONTH(G9),DAY(G9)),IF(ShowObserved,tblHolidays[الصحيح],tblHolidays[اليوم]),0),2),\"\"),\"\"),\"\")","v":""},{"$f":"IFERROR(IF(ShowHolidays,IF(INDEX(tblHolidays[],MATCH(DATE(CalYear,MONTH(H9),DAY(H9)),IF(ShowObserved,tblHolidays[الصحيح],tblHolidays[اليوم]),0),6),INDEX(tblHolidays[],MATCH(DATE(CalYear,MONTH(H9),DAY(H9)),IF(ShowObserved,tblHolidays[الصحيح],tblHolidays[اليوم]),0),2),\"\"),\"\"),\"\")","v":""}]
[null,{"$f":"الأيام+DATE(CalYear,2,1)-WEEKDAY(DATE(CalYear,2,1),(WeekStart=\"الإثنين\")+1)+22","v":"2018-02-18"},"2018-02-19","2018-02-20","2018-02-21","2018-02-22","2018-02-23","2018-02-24"]
[null,{"$f":"IFERROR(IF(ShowHolidays,IF(INDEX(tblHolidays[],MATCH(DATE(CalYear,MONTH(B11),DAY(B11)),IF(ShowObserved,tblHolidays[الصحيح],tblHolidays[اليوم]),0),6),INDEX(tblHolidays[],MATCH(DATE(CalYear,MONTH(B11),DAY(B11)),IF(ShowObserved,tblHolidays[الصحيح],tblHolidays[اليوم]),0),2),\"\"),\"\"),\"\")","v":""},{"$f":"IFERROR(IF(ShowHolidays,IF(INDEX(tblHolidays[],MATCH(DATE(CalYear,MONTH(C11),DAY(C11)),IF(ShowObserved,tblHolidays[الصحيح],tblHolidays[اليوم]),0),6),INDEX(tblHolidays[],MATCH(DATE(CalYear,MONTH(C11),DAY(C11)),IF(ShowObserved,tblHolidays[الصحيح],tblHolidays[اليوم]),0),2),\"\"),\"\"),\"\")","v":"يوم الرؤساء"},{"$f":"IFERROR(IF(ShowHolidays,IF(INDEX(tblHolidays[],MATCH(DATE(CalYear,MONTH(D11),DAY(D11)),IF(ShowObserved,tblHolidays[الصحيح],tblHolidays[اليوم]),0),6),INDEX(tblHolidays[],MATCH(DATE(CalYear,MONTH(D11),DAY(D11)),IF(ShowObserved,tblHolidays[الصحيح],tblHolidays[اليوم]),0),2),\"\"),\"\"),\"\")","v":""},{"$f":"IFERROR(IF(ShowHolidays,IF(INDEX(tblHolidays[],MATCH(DATE(CalYear,MONTH(E11),DAY(E11)),IF(ShowObserved,tblHolidays[الصحيح],tblHolidays[اليوم]),0),6),INDEX(tblHolidays[],MATCH(DATE(CalYear,MONTH(E11),DAY(E11)),IF(ShowObserved,tblHolidays[الصحيح],tblHolidays[اليوم]),0),2),\"\"),\"\"),\"\")","v":""},{"$f":"IFERROR(IF(ShowHolidays,IF(INDEX(tblHolidays[],MATCH(DATE(CalYear,MONTH(F11),DAY(F11)),IF(ShowObserved,tblHolidays[الصحيح],tblHolidays[اليوم]),0),6),INDEX(tblHolidays[],MATCH(DATE(CalYear,MONTH(F11),DAY(F11)),IF(ShowObserved,tblHolidays[الصحيح],tblHolidays[اليوم]),0),2),\"\"),\"\"),\"\")","v":""},{"$f":"IFERROR(IF(ShowHolidays,IF(INDEX(tblHolidays[],MATCH(DATE(CalYear,MONTH(G11),DAY(G11)),IF(ShowObserved,tblHolidays[الصحيح],tblHolidays[اليوم]),0),6),INDEX(tblHolidays[],MATCH(DATE(CalYear,MONTH(G11),DAY(G11)),IF(ShowObserved,tblHolidays[الصحيح],tblHolidays[اليوم]),0),2),\"\"),\"\"),\"\")","v":""},{"$f":"IFERROR(IF(ShowHolidays,IF(INDEX(tblHolidays[],MATCH(DATE(CalYear,MONTH(H11),DAY(H11)),IF(ShowObserved,tblHolidays[الصحيح],tblHolidays[اليوم]),0),6),INDEX(tblHolidays[],MATCH(DATE(CalYear,MONTH(H11),DAY(H11)),IF(ShowObserved,tblHolidays[الصحيح],tblHolidays[اليوم]),0),2),\"\"),\"\"),\"\")","v":""}]
[null,{"$f":"الأيام+DATE(CalYear,2,1)-WEEKDAY(DATE(CalYear,2,1),(WeekStart=\"الإثنين\")+1)+29","v":"2018-02-25"},"2018-02-26","2018-02-27","2018-02-28","2018-03-01","2018-03-02","2018-03-03"]
[null,{"$f":"IFERROR(IF(ShowHolidays,IF(INDEX(tblHolidays[],MATCH(DATE(CalYear,MONTH(B13),DAY(B13)),IF(ShowObserved,tblHolidays[الصحيح],tblHolidays[اليوم]),0),6),INDEX(tblHolidays[],MATCH(DATE(CalYear,MONTH(B13),DAY(B13)),IF(ShowObserved,tblHolidays[الصحيح],tblHolidays[اليوم]),0),2),\"\"),\"\"),\"\")","v":""},{"$f":"IFERROR(IF(ShowHolidays,IF(INDEX(tblHolidays[],MATCH(DATE(CalYear,MONTH(C13),DAY(C13)),IF(ShowObserved,tblHolidays[الصحيح],tblHolidays[اليوم]),0),6),INDEX(tblHolidays[],MATCH(DATE(CalYear,MONTH(C13),DAY(C13)),IF(ShowObserved,tblHolidays[الصحيح],tblHolidays[اليوم]),0),2),\"\"),\"\"),\"\")","v":""},{"$f":"IFERROR(IF(ShowHolidays,IF(INDEX(tblHolidays[],MATCH(DATE(CalYear,MONTH(D13),DAY(D13)),IF(ShowObserved,tblHolidays[الصحيح],tblHolidays[اليوم]),0),6),INDEX(tblHolidays[],MATCH(DATE(CalYear,MONTH(D13),DAY(D13)),IF(ShowObserved,tblHolidays[الصحيح],tblHolidays[اليوم]),0),2),\"\"),\"\"),\"\")","v":""},{"$f":"IFERROR(IF(ShowHolidays,IF(INDEX(tblHolidays[],MATCH(DATE(CalYear,MONTH(E13),DAY(E13)),IF(ShowObserved,tblHolidays[الصحيح],tblHolidays[اليوم]),0),6),INDEX(tblHolidays[],MATCH(DATE(CalYear,MONTH(E13),DAY(E13)),IF(ShowObserved,tblHolidays[الصحيح],tblHolidays[اليوم]),0),2),\"\"),\"\"),\"\")","v":""},{"$f":"IFERROR(IF(ShowHolidays,IF(INDEX(tblHolidays[],MATCH(DATE(CalYear,MONTH(F13),DAY(F13)),IF(ShowObserved,tblHolidays[الصحيح],tblHolidays[اليوم]),0),6),INDEX(tblHolidays[],MATCH(DATE(CalYear,MONTH(F13),DAY(F13)),IF(ShowObserved,tblHolidays[الصحيح],tblHolidays[اليوم]),0),2),\"\"),\"\"),\"\")","v":""},{"$f":"IFERROR(IF(ShowHolidays,IF(INDEX(tblHolidays[],MATCH(DATE(CalYear,MONTH(G13),DAY(G13)),IF(ShowObserved,tblHolidays[الصحيح],tblHolidays[اليوم]),0),6),INDEX(tblHolidays[],MATCH(DATE(CalYear,MONTH(G13),DAY(G13)),IF(ShowObserved,tblHolidays[الصحيح],tblHolidays[اليوم]),0),2),\"\"),\"\"),\"\")","v":""},{"$f":"IFERROR(IF(ShowHolidays,IF(INDEX(tblHolidays[],MATCH(DATE(CalYear,MONTH(H13),DAY(H13)),IF(ShowObserved,tblHolidays[الصحيح],tblHolidays[اليوم]),0),6),INDEX(tblHolidays[],MATCH(DATE(CalYear,MONTH(H13),DAY(H13)),IF(ShowObserved,tblHolidays[الصحيح],tblHolidays[اليوم]),0),2),\"\"),\"\"),\"\")","v":""}]
[null,{"$f":"الأيام+DATE(CalYear,2,1)-WEEKDAY(DATE(CalYear,2,1),(WeekStart=\"الإثنين\")+1)+36","v":"2018-03-04"},"2018-03-05","الملاحظات"]
[null,{"$f":"IFERROR(IF(ShowHolidays,IF(INDEX(tblHolidays[],MATCH(DATE(CalYear,MONTH(B15),DAY(B15)),IF(ShowObserved,tblHolidays[الصحيح],tblHolidays[اليوم]),0),6),INDEX(tblHolidays[],MATCH(DATE(CalYear,MONTH(B15),DAY(B15)),IF(ShowObserved,tblHolidays[الصحيح],tblHolidays[اليوم]),0),2),\"\"),\"\"),\"\")","v":""},{"$f":"IFERROR(IF(ShowHolidays,IF(INDEX(tblHolidays[],MATCH(DATE(CalYear,MONTH(C15),DAY(C15)),IF(ShowObserved,tblHolidays[الصحيح],tblHolidays[اليوم]),0),6),INDEX(tblHolidays[],MATCH(DATE(CalYear,MONTH(C15),DAY(C15)),IF(ShowObserved,tblHolidays[الصحيح],tblHolidays[اليوم]),0),2),\"\"),\"\"),\"\")","v":""}]

{"sheet":"مارس","index":3,"n_rows":16,"n_cols":8,"rows_kept":16,"merged":[[1,1,1,3],[14,3,14,7],[15,3,15,7],[16,1,16,7]]}
[]
[null,{"$f":"B9","v":"2018-03-11"}]
[]
[null,{"$f":"WeekStart","v":"الأحد"},{"$f":"UPPER(TEXT(C5,\"dddd\"))","v":"الإثنين"},"الثلاثاء","الأربعاء","الخميس","الجمعة","السبت"]
[null,{"$f":"الأيام+DATE(CalYear,3,1)-WEEKDAY(DATE(CalYear,3,1),(WeekStart=\"الإثنين\")+1)+1","v":"2018-02-25"},"2018-02-26","2018-02-27","2018-02-28","2018-03-01","2018-03-02","2018-03-03"]
[null,{"$f":"IFERROR(IF(ShowHolidays,IF(INDEX(tblHolidays[],MATCH(DATE(CalYear-(DAY(B5)>15)+(ROW()>6),MONTH(B5),DAY(B5)),IF(ShowObserved,tblHolidays[الصحيح],tblHolidays[اليوم]),0),6),INDEX(tblHolidays[],MATCH(DATE(CalYear-(DAY(B5)>15)+(ROW()>6),MONTH(B5),DAY(B5)),IF(ShowObserved,tblHolidays[الصحيح],tblHolidays[اليوم]),0),2),\"\"),\"\"),\"\")","v":""},{"$f":"IFERROR(IF(ShowHolidays,IF(INDEX(tblHolidays[],MATCH(DATE(CalYear-(DAY(C5)>15)+(ROW()>6),MONTH(C5),DAY(C5)),IF(ShowObserved,tblHolidays[الصحيح],tblHolidays[اليوم]),0),6),INDEX(tblHolidays[],MATCH(DATE(CalYear-(DAY(C5)>15)+(ROW()>6),MONTH(C5),DAY(C5)),IF(ShowObserved,tblHolidays[الصحيح],tblHolidays[اليوم]),0),2),\"\"),\"\"),\"\")","v":""},{"$f":"IFERROR(IF(ShowHolidays,IF(INDEX(tblHolidays[],MATCH(DATE(CalYear-(DAY(D5)>15)+(ROW()>6),MONTH(D5),DAY(D5)),IF(ShowObserved,tblHolidays[الصحيح],tblHolidays[اليوم]),0),6),INDEX(tblHolidays[],MATCH(DATE(CalYear-(DAY(D5)>15)+(ROW()>6),MONTH(D5),DAY(D5)),IF(ShowObserved,tblHolidays[الصحيح],tblHolidays[اليوم]),0),2),\"\"),\"\"),\"\")","v":""},{"$f":"IFERROR(IF(ShowHolidays,IF(INDEX(tblHolidays[],MATCH(DATE(CalYear-(DAY(E5)>15)+(ROW()>6),MONTH(E5),DAY(E5)),IF(ShowObserved,tblHolidays[الصحيح],tblHolidays[اليوم]),0),6),INDEX(tblHolidays[],MATCH(DATE(CalYear-(DAY(E5)>15)+(ROW()>6),MONTH(E5),DAY(E5)),IF(ShowObserved,tblHolidays[الصحيح],tblHolidays[اليوم]),0),2),\"\"),\"\"),\"\")","v":""},{"$f":"IFERROR(IF(ShowHolidays,IF(INDEX(tblHolidays[],MATCH(DATE(CalYear-(DAY(F5)>15)+(ROW()>6),MONTH(F5),DAY(F5)),IF(ShowObserved,tblHolidays[الصحيح],tblHolidays[اليوم]),0),6),INDEX(tblHolidays[],MATCH(DATE(CalYear-(DAY(F5)>15)+(ROW()>6),MONTH(F5),DAY(F5)),IF(ShowObserved,tblHolidays[الصحيح],tblHolidays[اليوم]),0),2),\"\"),\"\"),\"\")","v":""},{"$f":"IFERROR(IF(ShowHolidays,IF(INDEX(tblHolidays[],MATCH(DATE(CalYear-(DAY(G5)>15)+(ROW()>6),MONTH(G5),DAY(G5)),IF(ShowObserved,tblHolidays[الصحيح],tblHolidays[اليوم]),0),6),INDEX(tblHolidays[],MATCH(DATE(CalYear-(DAY(G5)>15)+(ROW()>6),MONTH(G5),DAY(G5)),IF(ShowObserved,tblHolidays[الصحيح],tblHolidays[اليوم]),0),2),\"\"),\"\"),\"\")","v":""},{"$f":"IFERROR(IF(ShowHolidays,IF(INDEX(tblHolidays[],MATCH(DATE(CalYear-(DAY(H5)>15)+(ROW()>6),MONTH(H5),DAY(H5)),IF(ShowObserved,tblHolidays[الصحيح],tblHolidays[اليوم]),0),6),INDEX(tblHolidays[],MATCH(DATE(CalYear-(DAY(H5)>15)+(ROW()>6),MONTH(H5),DAY(H5)),IF(ShowObserved,tblHolidays[الصحيح],tblHolidays[اليوم]),0),2),\"\"),\"\"),\"\")","v":""}]
[null,{"$f":"الأيام+DATE(CalYear,3,1)-WEEKDAY(DATE(CalYear,3,1),(WeekStart=\"الإثنين\")+1)+8","v":"2018-03-04"},"2018-03-05","2018-03-06","2018-03-07","2018-03-08","2018-03-09","2018-03-10"]
[null,{"$f":"IFERROR(IF(ShowHolidays,IF(INDEX(tblHolidays[],MATCH(DATE(CalYear,MONTH(B7),DAY(B7)),IF(ShowObserved,tblHolidays[الصحيح],tblHolidays[اليوم]),0),6),INDEX(tblHolidays[],MATCH(DATE(CalYear,MONTH(B7),DAY(B7)),IF(ShowObserved,tblHolidays[الصحيح],tblHolidays[اليوم]),0),2),\"\"),\"\"),\"\")","v":""},{"$f":"IFERROR(IF(ShowHolidays,IF(INDEX(tblHolidays[],MATCH(DATE(CalYear,MONTH(C7),DAY(C7)),IF(ShowObserved,tblHolidays[الصحيح],tblHolidays[اليوم]),0),6),INDEX(tblHolidays[],MATCH(DATE(CalYear,MONTH(C7),DAY(C7)),IF(ShowObserved,tblHolidays[الصحيح],tblHolidays[اليوم]),0),2),\"\"),\"\"),\"\")","v":""},{"$f":"IFERROR(IF(ShowHolidays,IF(INDEX(tblHolidays[],MATCH(DATE(CalYear,MONTH(D7),DAY(D7)),IF(ShowObserved,tblHolidays[الصحيح],tblHolidays[اليوم]),0),6),INDEX(tblHolidays[],MATCH(DATE(CalYear,MONTH(D7),DAY(D7)),IF(ShowObserved,tblHolidays[الصحيح],tblHolidays[اليوم]),0),2),\"\"),\"\"),\"\")","v":""},{"$f":"IFERROR(IF(ShowHolidays,IF(INDEX(tblHolidays[],MATCH(DATE(CalYear,MONTH(E7),DAY(E7)),IF(ShowObserved,tblHolidays[الصحيح],tblHolidays[اليوم]),0),6),INDEX(tblHolidays[],MATCH(DATE(CalYear,MONTH(E7),DAY(E7)),IF(ShowObserved,tblHolidays[الصحيح],tblHolidays[اليوم]),0),2),\"\"),\"\"),\"\")","v":""},{"$f":"IFERROR(IF(ShowHolidays,IF(INDEX(tblHolidays[],MATCH(DATE(CalYear,MONTH(F7),DAY(F7)),IF(ShowObserved,tblHolidays[الصحيح],tblHolidays[اليوم]),0),6),INDEX(tblHolidays[],MATCH(DATE(CalYear,MONTH(F7),DAY(F7)),IF(ShowObserved,tblHolidays[الصحيح],tblHolidays[اليوم]),0),2),\"\"),\"\"),\"\")","v":""},{"$f":"IFERROR(IF(ShowHolidays,IF(INDEX(tblHolidays[],MATCH(DATE(CalYear,MONTH(G7),DAY(G7)),IF(ShowObserved,tblHolidays[الصحيح],tblHolidays[اليوم]),0),6),INDEX(tblHolidays[],MATCH(DATE(CalYear,MONTH(G7),DAY(G7)),IF(ShowObserved,tblHolidays[الصحيح],tblHolidays[اليوم]),0),2),\"\"),\"\"),\"\")","v":""},{"$f":"IFERROR(IF(ShowHolidays,IF(INDEX(tblHolidays[],MATCH(DATE(CalYear,MONTH(H7),DAY(H7)),IF(ShowObserved,tblHolidays[الصحيح],tblHolidays[اليوم]),0),6),INDEX(tblHolidays[],MATCH(DATE(CalYear,MONTH(H7),DAY(H7)),IF(ShowObserved,tblHolidays[الصحيح],tblHolidays[اليوم]),0),2),\"\"),\"\"),\"\")","v":""}]
[null,{"$f":"الأيام+DATE(CalYear,3,1)-WEEKDAY(DATE(CalYear,3,1),(WeekStart=\"الإثنين\")+1)+15","v":"2018-03-11"},"2018-03-12","2018-03-13","2018-03-14","2018-03-15","2018-03-16","2018-03-17"]
[null,{"$f":"IFERROR(IF(ShowHolidays,IF(INDEX(tblHolidays[],MATCH(DATE(CalYear,MONTH(B9),DAY(B9)),IF(ShowObserved,tblHolidays[الصحيح],tblHolidays[اليوم]),0),6),INDEX(tblHolidays[],MATCH(DATE(CalYear,MONTH(B9),DAY(B9)),IF(ShowObserved,tblHolidays[الصحيح],tblHolidays[اليوم]),0),2),\"\"),\"\"),\"\")","v":""},{"$f":"IFERROR(IF(ShowHolidays,IF(INDEX(tblHolidays[],MATCH(DATE(CalYear,MONTH(C9),DAY(C9)),IF(ShowObserved,tblHolidays[الصحيح],tblHolidays[اليوم]),0),6),INDEX(tblHolidays[],MATCH(DATE(CalYear,MONTH(C9),DAY(C9)),IF(ShowObserved,tblHolidays[الصحيح],tblHolidays[اليوم]),0),2),\"\"),\"\"),\"\")","v":""},{"$f":"IFERROR(IF(ShowHolidays,IF(INDEX(tblHolidays[],MATCH(DATE(CalYear,MONTH(D9),DAY(D9)),IF(ShowObserved,tblHolidays[الصحيح],tblHolidays[اليوم]),0),6),INDEX(tblHolidays[],MATCH(DATE(CalYear,MONTH(D9),DAY(D9)),IF(ShowObserved,tblHolidays[الصحيح],tblHolidays[اليوم]),0),2),\"\"),\"\"),\"\")","v":""},{"$f":"IFERROR(IF(ShowHolidays,IF(INDEX(tblHolidays[],MATCH(DATE(CalYear,MONTH(E9),DAY(E9)),IF(ShowObserved,tblHolidays[الصحيح],tblHolidays[اليوم]),0),6),INDEX(tblHolidays[],MATCH(DATE(CalYear,MONTH(E9),DAY(E9)),IF(ShowObserved,tblHolidays[الصحيح],tblHolidays[اليوم]),0),2),\"\"),\"\"),\"\")","v":""},{"$f":"IFERROR(IF(ShowHolidays,IF(INDEX(tblHolidays[],MATCH(DATE(CalYear,MONTH(F9),DAY(F9)),IF(ShowObserved,tblHolidays[الصحيح],tblHolidays[اليوم]),0),6),INDEX(tblHolidays[],MATCH(DATE(CalYear,MONTH(F9),DAY(F9)),IF(ShowObserved,tblHolidays[الصحيح],tblHolidays[اليوم]),0),2),\"\"),\"\"),\"\")","v":""},{"$f":"IFERROR(IF(ShowHolidays,IF(INDEX(tblHolidays[],MATCH(DATE(CalYear,MONTH(G9),DAY(G9)),IF(ShowObserved,tblHolidays[الصحيح],tblHolidays[اليوم]),0),6),INDEX(tblHolidays[],MATCH(DATE(CalYear,MONTH(G9),DAY(G9)),IF(ShowObserved,tblHolidays[الصحيح],tblHolidays[اليوم]),0),2),\"\"),\"\"),\"\")","v":""},{"$f":"IFERROR(IF(ShowHolidays,IF(INDEX(tblHolidays[],MATCH(DATE(CalYear,MONTH(H9),DAY(H9)),IF(ShowObserved,tblHolidays[الصحيح],tblHolidays[اليوم]),0),6),INDEX(tblHolidays[],MATCH(DATE(CalYear,MONTH(H9),DAY(H9)),IF(ShowObserved,tblHolidays[الصحيح],tblHolidays[اليوم]),0),2),\"\"),\"\"),\"\")","v":""}]
[null,{"$f":"الأيام+DATE(CalYear,3,1)-WEEKDAY(DATE(CalYear,3,1),(WeekStart=\"الإثنين\")+1)+22","v":"2018-03-18"},"2018-03-19","2018-03-20","2018-03-21","2018-03-22","2018-03-23","2018-03-24"]
[null,{"$f":"IFERROR(IF(ShowHolidays,IF(INDEX(tblHolidays[],MATCH(DATE(CalYear,MONTH(B11),DAY(B11)),IF(ShowObserved,tblHolidays[الصحيح],tblHolidays[اليوم]),0),6),INDEX(tblHolidays[],MATCH(DATE(CalYear,MONTH(B11),DAY(B11)),IF(ShowObserved,tblHolidays[الصحيح],tblHolidays[اليوم]),0),2),\"\"),\"\"),\"\")","v":""},{"$f":"IFERROR(IF(ShowHolidays,IF(INDEX(tblHolidays[],MATCH(DATE(CalYear,MONTH(C11),DAY(C11)),IF(ShowObserved,tblHolidays[الصحيح],tblHolidays[اليوم]),0),6),INDEX(tblHolidays[],MATCH(DATE(CalYear,MONTH(C11),DAY(C11)),IF(ShowObserved,tblHolidays[الصحيح],tblHolidays[اليوم]),0),2),\"\"),\"\"),\"\")","v":""},{"$f":"IFERROR(IF(ShowHolidays,IF(INDEX(tblHolidays[],MATCH(DATE(CalYear,MONTH(D11),DAY(D11)),IF(ShowObserved,tblHolidays[الصحيح],tblHolidays[اليوم]),0),6),INDEX(tblHolidays[],MATCH(DATE(CalYear,MONTH(D11),DAY(D11)),IF(ShowObserved,tblHolidays[الصحيح],tblHolidays[اليوم]),0),2),\"\"),\"\"),\"\")","v":""},{"$f":"IFERROR(IF(ShowHolidays,IF(INDEX(tblHolidays[],MATCH(DATE(CalYear,MONTH(E11),DAY(E11)),IF(ShowObserved,tblHolidays[الصحيح],tblHolidays[اليوم]),0),6),INDEX(tblHolidays[],MATCH(DATE(CalYear,MONTH(E11),DAY(E11)),IF(ShowObserved,tblHolidays[الصحيح],tblHolidays[اليوم]),0),2),\"\"),\"\"),\"\")","v":""},{"$f":"IFERROR(IF(ShowHolidays,IF(INDEX(tblHolidays[],MATCH(DATE(CalYear,MONTH(F11),DAY(F11)),IF(ShowObserved,tblHolidays[الصحيح],tblHolidays[اليوم]),0),6),INDEX(tblHolidays[],MATCH(DATE(CalYear,MONTH(F11),DAY(F11)),IF(ShowObserved,tblHolidays[الصحيح],tblHolidays[اليوم]),0),2),\"\"),\"\"),\"\")","v":""},{"$f":"IFERROR(IF(ShowHolidays,IF(INDEX(tblHolidays[],MATCH(DATE(CalYear,MONTH(G11),DAY(G11)),IF(ShowObserved,tblHolidays[الصحيح],tblHolidays[اليوم]),0),6),INDEX(tblHolidays[],MATCH(DATE(CalYear,MONTH(G11),DAY(G11)),IF(ShowObserved,tblHolidays[الصحيح],tblHolidays[اليوم]),0),2),\"\"),\"\"),\"\")","v":""},{"$f":"IFERROR(IF(ShowHolidays,IF(INDEX(tblHolidays[],MATCH(DATE(CalYear,MONTH(H11),DAY(H11)),IF(ShowObserved,tblHolidays[الصحيح],tblHolidays[اليوم]),0),6),INDEX(tblHolidays[],MATCH(DATE(CalYear,MONTH(H11),DAY(H11)),IF(ShowObserved,tblHolidays[الصحيح],tblHolidays[اليوم]),0),2),\"\"),\"\"),\"\")","v":""}]
[null,{"$f":"الأيام+DATE(CalYear,3,1)-WEEKDAY(DATE(CalYear,3,1),(WeekStart=\"الإثنين\")+1)+29","v":"2018-03-25"},"2018-03-26","2018-03-27","2018-03-28","2018-03-29","2018-03-30","2018-03-31"]
[null,{"$f":"IFERROR(IF(ShowHolidays,IF(INDEX(tblHolidays[],MATCH(DATE(CalYear,MONTH(B13),DAY(B13)),IF(ShowObserved,tblHolidays[الصحيح],tblHolidays[اليوم]),0),6),INDEX(tblHolidays[],MATCH(DATE(CalYear,MONTH(B13),DAY(B13)),IF(ShowObserved,tblHolidays[الصحيح],tblHolidays[اليوم]),0),2),\"\"),\"\"),\"\")","v":""},{"$f":"IFERROR(IF(ShowHolidays,IF(INDEX(tblHolidays[],MATCH(DATE(CalYear,MONTH(C13),DAY(C13)),IF(ShowObserved,tblHolidays[الصحيح],tblHolidays[اليوم]),0),6),INDEX(tblHolidays[],MATCH(DATE(CalYear,MONTH(C13),DAY(C13)),IF(ShowObserved,tblHolidays[الصحيح],tblHolidays[اليوم]),0),2),\"\"),\"\"),\"\")","v":""},{"$f":"IFERROR(IF(ShowHolidays,IF(INDEX(tblHolidays[],MATCH(DATE(CalYear,MONTH(D13),DAY(D13)),IF(ShowObserved,tblHolidays[الصحيح],tblHolidays[اليوم]),0),6),INDEX(tblHolidays[],MATCH(DATE(CalYear,MONTH(D13),DAY(D13)),IF(ShowObserved,tblHolidays[الصحيح],tblHolidays[اليوم]),0),2),\"\"),\"\"),\"\")","v":""},{"$f":"IFERROR(IF(ShowHolidays,IF(INDEX(tblHolidays[],MATCH(DATE(CalYear,MONTH(E13),DAY(E13)),IF(ShowObserved,tblHolidays[الصحيح],tblHolidays[اليوم]),0),6),INDEX(tblHolidays[],MATCH(DATE(CalYear,MONTH(E13),DAY(E13)),IF(ShowObserved,tblHolidays[الصحيح],tblHolidays[اليوم]),0),2),\"\"),\"\"),\"\")","v":""},{"$f":"IFERROR(IF(ShowHolidays,IF(INDEX(tblHolidays[],MATCH(DATE(CalYear,MONTH(F13),DAY(F13)),IF(ShowObserved,tblHolidays[الصحيح],tblHolidays[اليوم]),0),6),INDEX(tblHolidays[],MATCH(DATE(CalYear,MONTH(F13),DAY(F13)),IF(ShowObserved,tblHolidays[الصحيح],tblHolidays[اليوم]),0),2),\"\"),\"\"),\"\")","v":""},{"$f":"IFERROR(IF(ShowHolidays,IF(INDEX(tblHolidays[],MATCH(DATE(CalYear,MONTH(G13),DAY(G13)),IF(ShowObserved,tblHolidays[الصحيح],tblHolidays[اليوم]),0),6),INDEX(tblHolidays[],MATCH(DATE(CalYear,MONTH(G13),DAY(G13)),IF(ShowObserved,tblHolidays[الصحيح],tblHolidays[اليوم]),0),2),\"\"),\"\"),\"\")","v":""},{"$f":"IFERROR(IF(ShowHolidays,IF(INDEX(tblHolidays[],MATCH(DATE(CalYear,MONTH(H13),DAY(H13)),IF(ShowObserved,tblHolidays[الصحيح],tblHolidays[اليوم]),0),6),INDEX(tblHolidays[],MATCH(DATE(CalYear,MONTH(H13),DAY(H13)),IF(ShowObserved,tblHolidays[الصحيح],tblHolidays[اليوم]),0),2),\"\"),\"\"),\"\")","v":""}]
[null,{"$f":"الأيام+DATE(CalYear,3,1)-WEEKDAY(DATE(CalYear,3,1),(WeekStart=\"الإثنين\")+1)+36","v":"2018-04-01"},"2018-04-02","الملاحظات"]
[null,{"$f":"IFERROR(IF(ShowHolidays,IF(INDEX(tblHolidays[],MATCH(DATE(CalYear,MONTH(B15),DAY(B15)),IF(ShowObserved,tblHolidays[الصحيح],tblHolidays[اليوم]),0),6),INDEX(tblHolidays[],MATCH(DATE(CalYear,MONTH(B15),DAY(B15)),IF(ShowObserved,tblHolidays[الصحيح],tblHolidays[اليوم]),0),2),\"\"),\"\"),\"\")","v":""},{"$f":"IFERROR(IF(ShowHolidays,IF(INDEX(tblHolidays[],MATCH(DATE(CalYear,MONTH(C15),DAY(C15)),IF(ShowObserved,tblHolidays[الصحيح],tblHolidays[اليوم]),0),6),INDEX(tblHolidays[],MATCH(DATE(CalYear,MONTH(C15),DAY(C15)),IF(ShowObserved,tblHolidays[الصحيح],tblHolidays[اليوم]),0),2),\"\"),\"\"),\"\")","v":""}]

{"sheet":"أبريل","index":4,"n_rows":16,"n_cols":8,"rows_kept":16,"merged":[[1,1,1,3],[14,3,14,7],[15,3,15,7],[16,1,16,7]]}
[]
[null,{"$f":"B9","v":"2018-04-15"}]
[]
[null,{"$f":"WeekStart","v":"الأحد"},{"$f":"UPPER(TEXT(C5,\"dddd\"))","v":"الإثنين"},"الثلاثاء","الأربعاء","الخميس","الجمعة","السبت"]
[null,{"$f":"الأيام+DATE(CalYear,4,1)-WEEKDAY(DATE(CalYear,4,1),(WeekStart=\"الإثنين\")+1)+1","v":"2018-04-01"},"2018-04-02","2018-04-03","2018-04-04","2018-04-05","2018-04-06","2018-04-07"]
[null,{"$f":"IFERROR(IF(ShowHolidays,IF(INDEX(tblHolidays[],MATCH(DATE(CalYear-(DAY(B5)>15)+(ROW()>6),MONTH(B5),DAY(B5)),IF(ShowObserved,tblHolidays[الصحيح],tblHolidays[اليوم]),0),6),INDEX(tblHolidays[],MATCH(DATE(CalYear-(DAY(B5)>15)+(ROW()>6),MONTH(B5),DAY(B5)),IF(ShowObserved,tblHolidays[الصحيح],tblHolidays[اليوم]),0),2),\"\"),\"\"),\"\")","v":""},{"$f":"IFERROR(IF(ShowHolidays,IF(INDEX(tblHolidays[],MATCH(DATE(CalYear-(DAY(C5)>15)+(ROW()>6),MONTH(C5),DAY(C5)),IF(ShowObserved,tblHolidays[الصحيح],tblHolidays[اليوم]),0),6),INDEX(tblHolidays[],MATCH(DATE(CalYear-(DAY(C5)>15)+(ROW()>6),MONTH(C5),DAY(C5)),IF(ShowObserved,tblHolidays[الصحيح],tblHolidays[اليوم]),0),2),\"\"),\"\"),\"\")","v":""},{"$f":"IFERROR(IF(ShowHolidays,IF(INDEX(tblHolidays[],MATCH(DATE(CalYear-(DAY(D5)>15)+(ROW()>6),MONTH(D5),DAY(D5)),IF(ShowObserved,tblHolidays[الصحيح],tblHolidays[اليوم]),0),6),INDEX(tblHolidays[],MATCH(DATE(CalYear-(DAY(D5)>15)+(ROW()>6),MONTH(D5),DAY(D5)),IF(ShowObserved,tblHolidays[الصحيح],tblHolidays[اليوم]),0),2),\"\"),\"\"),\"\")","v":""},{"$f":"IFERROR(IF(ShowHolidays,IF(INDEX(tblHolidays[],MATCH(DATE(CalYear-(DAY(E5)>15)+(ROW()>6),MONTH(E5),DAY(E5)),IF(ShowObserved,tblHolidays[الصحيح],tblHolidays[اليوم]),0),6),INDEX(tblHolidays[],MATCH(DATE(CalYear-(DAY(E5)>15)+(ROW()>6),MONTH(E5),DAY(E5)),IF(ShowObserved,tblHolidays[الصحيح],tblHolidays[اليوم]),0),2),\"\"),\"\"),\"\")","v":""},{"$f":"IFERROR(IF(ShowHolidays,IF(INDEX(tblHolidays[],MATCH(DATE(CalYear-(DAY(F5)>15)+(ROW()>6),MONTH(F5),DAY(F5)),IF(ShowObserved,tblHolidays[الصحيح],tblHolidays[اليوم]),0),6),INDEX(tblHolidays[],MATCH(DATE(CalYear-(DAY(F5)>15)+(ROW()>6),MONTH(F5),DAY(F5)),IF(ShowObserved,tblHolidays[الصحيح],tblHolidays[اليوم]),0),2),\"\"),\"\"),\"\")","v":""},{"$f":"IFERROR(IF(ShowHolidays,IF(INDEX(tblHolidays[],MATCH(DATE(CalYear-(DAY(G5)>15)+(ROW()>6),MONTH(G5),DAY(G5)),IF(ShowObserved,tblHolidays[الصحيح],tblHolidays[اليوم]),0),6),INDEX(tblHolidays[],MATCH(DATE(CalYear-(DAY(G5)>15)+(ROW()>6),MONTH(G5),DAY(G5)),IF(ShowObserved,tblHolidays[الصحيح],tblHolidays[اليوم]),0),2),\"\"),\"\"),\"\")","v":""},{"$f":"IFERROR(IF(ShowHolidays,IF(INDEX(tblHolidays[],MATCH(DATE(CalYear-(DAY(H5)>15)+(ROW()>6),MONTH(H5),DAY(H5)),IF(ShowObserved,tblHolidays[الصحيح],tblHolidays[اليوم]),0),6),INDEX(tblHolidays[],MATCH(DATE(CalYear-(DAY(H5)>15)+(ROW()>6),MONTH(H5),DAY(H5)),IF(ShowObserved,tblHolidays[الصحيح],tblHolidays[اليوم]),0),2),\"\"),\"\"),\"\")","v":""}]
[null,{"$f":"الأيام+DATE(CalYear,4,1)-WEEKDAY(DATE(CalYear,4,1),(WeekStart=\"الإثنين\")+1)+8","v":"2018-04-08"},"2018-04-09","2018-04-10","2018-04-11","2018-04-12","2018-04-13","2018-04-14"]
[null,{"$f":"IFERROR(IF(ShowHolidays,IF(INDEX(tblHolidays[],MATCH(DATE(CalYear,MONTH(B7),DAY(B7)),IF(ShowObserved,tblHolidays[الصحيح],tblHolidays[اليوم]),0),6),INDEX(tblHolidays[],MATCH(DATE(CalYear,MONTH(B7),DAY(B7)),IF(ShowObserved,tblHolidays[الصحيح],tblHolidays[اليوم]),0),2),\"\"),\"\"),\"\")","v":""},{"$f":"IFERROR(IF(ShowHolidays,IF(INDEX(tblHolidays[],MATCH(DATE(CalYear,MONTH(C7),DAY(C7)),IF(ShowObserved,tblHolidays[الصحيح],tblHolidays[اليوم]),0),6),INDEX(tblHolidays[],MATCH(DATE(CalYear,MONTH(C7),DAY(C7)),IF(ShowObserved,tblHolidays[الصحيح],tblHolidays[اليوم]),0),2),\"\"),\"\"),\"\")","v":""},{"$f":"IFERROR(IF(ShowHolidays,IF(INDEX(tblHolidays[],MATCH(DATE(CalYear,MONTH(D7),DAY(D7)),IF(ShowObserved,tblHolidays[الصحيح],tblHolidays[اليوم]),0),6),INDEX(tblHolidays[],MATCH(DATE(CalYear,MONTH(D7),DAY(D7)),IF(ShowObserved,tblHolidays[الصحيح],tblHolidays[اليوم]),0),2),\"\"),\"\"),\"\")","v":""},{"$f":"IFERROR(IF(ShowHolidays,IF(INDEX(tblHolidays[],MATCH(DATE(CalYear,MONTH(E7),DAY(E7)),IF(ShowObserved,tblHolidays[الصحيح],tblHolidays[اليوم]),0),6),INDEX(tblHolidays[],MATCH(DATE(CalYear,MONTH(E7),DAY(E7)),IF(ShowObserved,tblHolidays[الصحيح],tblHolidays[اليوم]),0),2),\"\"),\"\"),\"\")","v":""},{"$f":"IFERROR(IF(ShowHolidays,IF(INDEX(tblHolidays[],MATCH(DATE(CalYear,MONTH(F7),DAY(F7)),IF(ShowObserved,tblHolidays[الصحيح],tblHolidays[اليوم]),0),6),INDEX(tblHolidays[],MATCH(DATE(CalYear,MONTH(F7),DAY(F7)),IF(ShowObserved,tblHolidays[الصحيح],tblHolidays[اليوم]),0),2),\"\"),\"\"),\"\")","v":""},{"$f":"IFERROR(IF(ShowHolidays,IF(INDEX(tblHolidays[],MATCH(DATE(CalYear,MONTH(G7),DAY(G7)),IF(ShowObserved,tblHolidays[الصحيح],tblHolidays[اليوم]),0),6),INDEX(tblHolidays[],MATCH(DATE(CalYear,MONTH(G7),DAY(G7)),IF(ShowObserved,tblHolidays[الصحيح],tblHolidays[اليوم]),0),2),\"\"),\"\"),\"\")","v":""},{"$f":"IFERROR(IF(ShowHolidays,IF(INDEX(tblHolidays[],MATCH(DATE(CalYear,MONTH(H7),DAY(H7)),IF(ShowObserved,tblHolidays[الصحيح],tblHolidays[اليوم]),0),6),INDEX(tblHolidays[],MATCH(DATE(CalYear,MONTH(H7),DAY(H7)),IF(ShowObserved,tblHolidays[الصحيح],tblHolidays[اليوم]),0),2),\"\"),\"\"),\"\")","v":""}]
[null,{"$f":"الأيام+DATE(CalYear,4,1)-WEEKDAY(DATE(CalYear,4,1),(WeekStart=\"الإثنين\")+1)+15","v":"2018-04-15"},"2018-04-16","2018-04-17","2018-04-18","2018-04-19","2018-04-20","2018-04-21"]
[null,{"$f":"IFERROR(IF(ShowHolidays,IF(INDEX(tblHolidays[],MATCH(DATE(CalYear,MONTH(B9),DAY(B9)),IF(ShowObserved,tblHolidays[الصحيح],tblHolidays[اليوم]),0),6),INDEX(tblHolidays[],MATCH(DATE(CalYear,MONTH(B9),DAY(B9)),IF(ShowObserved,tblHolidays[الصحيح],tblHolidays[اليوم]),0),2),\"\"),\"\"),\"\")","v":""},{"$f":"IFERROR(IF(ShowHolidays,IF(INDEX(tblHolidays[],MATCH(DATE(CalYear,MONTH(C9),DAY(C9)),IF(ShowObserved,tblHolidays[الصحيح],tblHolidays[اليوم]),0),6),INDEX(tblHolidays[],MATCH(DATE(CalYear,MONTH(C9),DAY(C9)),IF(ShowObserved,tblHolidays[الصحيح],tblHolidays[اليوم]),0),2),\"\"),\"\"),\"\")","v":""},{"$f":"IFERROR(IF(ShowHolidays,IF(INDEX(tblHolidays[],MATCH(DATE(CalYear,MONTH(D9),DAY(D9)),IF(ShowObserved,tblHolidays[الصحيح],tblHolidays[اليوم]),0),6),INDEX(tblHolidays[],MATCH(DATE(CalYear,MONTH(D9),DAY(D9)),IF(ShowObserved,tblHolidays[الصحيح],tblHolidays[اليوم]),0),2),\"\"),\"\"),\"\")","v":""},{"$f":"IFERROR(IF(ShowHolidays,IF(INDEX(tblHolidays[],MATCH(DATE(CalYear,MONTH(E9),DAY(E9)),IF(ShowObserved,tblHolidays[الصحيح],tblHolidays[اليوم]),0),6),INDEX(tblHolidays[],MATCH(DATE(CalYear,MONTH(E9),DAY(E9)),IF(ShowObserved,tblHolidays[الصحيح],tblHolidays[اليوم]),0),2),\"\"),\"\"),\"\")","v":""},{"$f":"IFERROR(IF(ShowHolidays,IF(INDEX(tblHolidays[],MATCH(DATE(CalYear,MONTH(F9),DAY(F9)),IF(ShowObserved,tblHolidays[الصحيح],tblHolidays[اليوم]),0),6),INDEX(tblHolidays[],MATCH(DATE(CalYear,MONTH(F9),DAY(F9)),IF(ShowObserved,tblHolidays[الصحيح],tblHolidays[اليوم]),0),2),\"\"),\"\"),\"\")","v":""},{"$f":"IFERROR(IF(ShowHolidays,IF(INDEX(tblHolidays[],MATCH(DATE(CalYear,MONTH(G9),DAY(G9)),IF(ShowObserved,tblHolidays[الصحيح],tblHolidays[اليوم]),0),6),INDEX(tblHolidays[],MATCH(DATE(CalYear,MONTH(G9),DAY(G9)),IF(ShowObserved,tblHolidays[الصحيح],tblHolidays[اليوم]),0),2),\"\"),\"\"),\"\")","v":""},{"$f":"IFERROR(IF(ShowHolidays,IF(INDEX(tblHolidays[],MATCH(DATE(CalYear,MONTH(H9),DAY(H9)),IF(ShowObserved,tblHolidays[الصحيح],tblHolidays[اليوم]),0),6),INDEX(tblHolidays[],MATCH(DATE(CalYear,MONTH(H9),DAY(H9)),IF(ShowObserved,tblHolidays[الصحيح],tblHolidays[اليوم]),0),2),\"\"),\"\"),\"\")","v":""}]
[null,{"$f":"الأيام+DATE(CalYear,4,1)-WEEKDAY(DATE(CalYear,4,1),(WeekStart=\"الإثنين\")+1)+22","v":"2018-04-22"},"2018-04-23","2018-04-24","2018-04-25","2018-04-26","2018-04-27","2018-04-28"]
[null,{"$f":"IFERROR(IF(ShowHolidays,IF(INDEX(tblHolidays[],MATCH(DATE(CalYear,MONTH(B11),DAY(B11)),IF(ShowObserved,tblHolidays[الصحيح],tblHolidays[اليوم]),0),6),INDEX(tblHolidays[],MATCH(DATE(CalYear,MONTH(B11),DAY(B11)),IF(ShowObserved,tblHolidays[الصحيح],tblHolidays[اليوم]),0),2),\"\"),\"\"),\"\")","v":""},{"$f":"IFERROR(IF(ShowHolidays,IF(INDEX(tblHolidays[],MATCH(DATE(CalYear,MONTH(C11),DAY(C11)),IF(ShowObserved,tblHolidays[الصحيح],tblHolidays[اليوم]),0),6),INDEX(tblHolidays[],MATCH(DATE(CalYear,MONTH(C11),DAY(C11)),IF(ShowObserved,tblHolidays[الصحيح],tblHolidays[اليوم]),0),2),\"\"),\"\"),\"\")","v":""},{"$f":"IFERROR(IF(ShowHolidays,IF(INDEX(tblHolidays[],MATCH(DATE(CalYear,MONTH(D11),DAY(D11)),IF(ShowObserved,tblHolidays[الصحيح],tblHolidays[اليوم]),0),6),INDEX(tblHolidays[],MATCH(DATE(CalYear,MONTH(D11),DAY(D11)),IF(ShowObserved,tblHolidays[الصحيح],tblHolidays[اليوم]),0),2),\"\"),\"\"),\"\")","v":""},{"$f":"IFERROR(IF(ShowHolidays,IF(INDEX(tblHolidays[],MATCH(DATE(CalYear,MONTH(E11),DAY(E11)),IF(ShowObserved,tblHolidays[الصحيح],tblHolidays[اليوم]),0),6),INDEX(tblHolidays[],MATCH(DATE(CalYear,MONTH(E11),DAY(E11)),IF(ShowObserved,tblHolidays[الصحيح],tblHolidays[اليوم]),0),2),\"\"),\"\"),\"\")","v":""},{"$f":"IFERROR(IF(ShowHolidays,IF(INDEX(tblHolidays[],MATCH(DATE(CalYear,MONTH(F11),DAY(F11)),IF(ShowObserved,tblHolidays[الصحيح],tblHolidays[اليوم]),0),6),INDEX(tblHolidays[],MATCH(DATE(CalYear,MONTH(F11),DAY(F11)),IF(ShowObserved,tblHolidays[الصحيح],tblHolidays[اليوم]),0),2),\"\"),\"\"),\"\")","v":""},{"$f":"IFERROR(IF(ShowHolidays,IF(INDEX(tblHolidays[],MATCH(DATE(CalYear,MONTH(G11),DAY(G11)),IF(ShowObserved,tblHolidays[الصحيح],tblHolidays[اليوم]),0),6),INDEX(tblHolidays[],MATCH(DATE(CalYear,MONTH(G11),DAY(G11)),IF(ShowObserved,tblHolidays[الصحيح],tblHolidays[اليوم]),0),2),\"\"),\"\"),\"\")","v":""},{"$f":"IFERROR(IF(ShowHolidays,IF(INDEX(tblHolidays[],MATCH(DATE(CalYear,MONTH(H11),DAY(H11)),IF(ShowObserved,tblHolidays[الصحيح],tblHolidays[اليوم]),0),6),INDEX(tblHolidays[],MATCH(DATE(CalYear,MONTH(H11),DAY(H11)),IF(ShowObserved,tblHolidays[الصحيح],tblHolidays[اليوم]),0),2),\"\"),\"\"),\"\")","v":""}]
[null,{"$f":"الأيام+DATE(CalYear,4,1)-WEEKDAY(DATE(CalYear,4,1),(WeekStart=\"الإثنين\")+1)+29","v":"2018-04-29"},"2018-04-30","2018-05-01","2018-05-02","2018-05-03","2018-05-04","2018-05-05"]
[null,{"$f":"IFERROR(IF(ShowHolidays,IF(INDEX(tblHolidays[],MATCH(DATE(CalYear,MONTH(B13),DAY(B13)),IF(ShowObserved,tblHolidays[الصحيح],tblHolidays[اليوم]),0),6),INDEX(tblHolidays[],MATCH(DATE(CalYear,MONTH(B13),DAY(B13)),IF(ShowObserved,tblHolidays[الصحيح],tblHolidays[اليوم]),0),2),\"\"),\"\"),\"\")","v":""},{"$f":"IFERROR(IF(ShowHolidays,IF(INDEX(tblHolidays[],MATCH(DATE(CalYear,MONTH(C13),DAY(C13)),IF(ShowObserved,tblHolidays[الصحيح],tblHolidays[اليوم]),0),6),INDEX(tblHolidays[],MATCH(DATE(CalYear,MONTH(C13),DAY(C13)),IF(ShowObserved,tblHolidays[الصحيح],tblHolidays[اليوم]),0),2),\"\"),\"\"),\"\")","v":""},{"$f":"IFERROR(IF(ShowHolidays,IF(INDEX(tblHolidays[],MATCH(DATE(CalYear,MONTH(D13),DAY(D13)),IF(ShowObserved,tblHolidays[الصحيح],tblHolidays[اليوم]),0),6),INDEX(tblHolidays[],MATCH(DATE(CalYear,MONTH(D13),DAY(D13)),IF(ShowObserved,tblHolidays[الصحيح],tblHolidays[اليوم]),0),2),\"\"),\"\"),\"\")","v":""},{"$f":"IFERROR(IF(ShowHolidays,IF(INDEX(tblHolidays[],MATCH(DATE(CalYear,MONTH(E13),DAY(E13)),IF(ShowObserved,tblHolidays[الصحيح],tblHolidays[اليوم]),0),6),INDEX(tblHolidays[],MATCH(DATE(CalYear,MONTH(E13),DAY(E13)),IF(ShowObserved,tblHolidays[الصحيح],tblHolidays[اليوم]),0),2),\"\"),\"\"),\"\")","v":""},{"$f":"IFERROR(IF(ShowHolidays,IF(INDEX(tblHolidays[],MATCH(DATE(CalYear,MONTH(F13),DAY(F13)),IF(ShowObserved,tblHolidays[الصحيح],tblHolidays[اليوم]),0),6),INDEX(tblHolidays[],MATCH(DATE(CalYear,MONTH(F13),DAY(F13)),IF(ShowObserved,tblHolidays[الصحيح],tblHolidays[اليوم]),0),2),\"\"),\"\"),\"\")","v":""},{"$f":"IFERROR(IF(ShowHolidays,IF(INDEX(tblHolidays[],MATCH(DATE(CalYear,MONTH(G13),DAY(G13)),IF(ShowObserved,tblHolidays[الصحيح],tblHolidays[اليوم]),0),6),INDEX(tblHolidays[],MATCH(DATE(CalYear,MONTH(G13),DAY(G13)),IF(ShowObserved,tblHolidays[الصحيح],tblHolidays[اليوم]),0),2),\"\"),\"\"),\"\")","v":""},{"$f":"IFERROR(IF(ShowHolidays,IF(INDEX(tblHolidays[],MATCH(DATE(CalYear,MONTH(H13),DAY(H13)),IF(ShowObserved,tblHolidays[الصحيح],tblHolidays[اليوم]),0),6),INDEX(tblHolidays[],MATCH(DATE(CalYear,MONTH(H13),DAY(H13)),IF(ShowObserved,tblHolidays[الصحيح],tblHolidays[اليوم]),0),2),\"\"),\"\"),\"\")","v":""}]
[null,{"$f":"الأيام+DATE(CalYear,4,1)-WEEKDAY(DATE(CalYear,4,1),(WeekStart=\"الإثنين\")+1)+36","v":"2018-05-06"},"2018-05-07","الملاحظات"]
[null,{"$f":"IFERROR(IF(ShowHolidays,IF(INDEX(tblHolidays[],MATCH(DATE(CalYear,MONTH(B15),DAY(B15)),IF(ShowObserved,tblHolidays[الصحيح],tblHolidays[اليوم]),0),6),INDEX(tblHolidays[],MATCH(DATE(CalYear,MONTH(B15),DAY(B15)),IF(ShowObserved,tblHolidays[الصحيح],tblHolidays[اليوم]),0),2),\"\"),\"\"),\"\")","v":""},{"$f":"IFERROR(IF(ShowHolidays,IF(INDEX(tblHolidays[],MATCH(DATE(CalYear,MONTH(C15),DAY(C15)),IF(ShowObserved,tblHolidays[الصحيح],tblHolidays[اليوم]),0),6),INDEX(tblHolidays[],MATCH(DATE(CalYear,MONTH(C15),DAY(C15)),IF(ShowObserved,tblHolidays[الصحيح],tblHolidays[اليوم]),0),2),\"\"),\"\"),\"\")","v":""}]

{"sheet":"مايو","index":5,"n_rows":16,"n_cols":8,"rows_kept":16,"merged":[[1,1,1,3],[14,3,14,7],[15,3,15,7],[16,1,16,7]]}
[]
[null,{"$f":"B9","v":"2018-05-13"}]
[]
[null,{"$f":"WeekStart","v":"الأحد"},{"$f":"UPPER(TEXT(C5,\"dddd\"))","v":"الإثنين"},"الثلاثاء","الأربعاء","الخميس","الجمعة","السبت"]
[null,{"$f":"الأيام+DATE(CalYear,5,1)-WEEKDAY(DATE(CalYear,5,1),(WeekStart=\"الإثنين\")+1)+1","v":"2018-04-29"},"2018-04-30","2018-05-01","2018-05-02","2018-05-03","2018-05-04","2018-05-05"]
[null,{"$f":"IFERROR(IF(ShowHolidays,IF(INDEX(tblHolidays[],MATCH(DATE(CalYear-(DAY(B5)>15)+(ROW()>6),MONTH(B5),DAY(B5)),IF(ShowObserved,tblHolidays[الصحيح],tblHolidays[اليوم]),0),6),INDEX(tblHolidays[],MATCH(DATE(CalYear-(DAY(B5)>15)+(ROW()>6),MONTH(B5),DAY(B5)),IF(ShowObserved,tblHolidays[الصحيح],tblHolidays[اليوم]),0),2),\"\"),\"\"),\"\")","v":""},{"$f":"IFERROR(IF(ShowHolidays,IF(INDEX(tblHolidays[],MATCH(DATE(CalYear-(DAY(C5)>15)+(ROW()>6),MONTH(C5),DAY(C5)),IF(ShowObserved,tblHolidays[الصحيح],tblHolidays[اليوم]),0),6),INDEX(tblHolidays[],MATCH(DATE(CalYear-(DAY(C5)>15)+(ROW()>6),MONTH(C5),DAY(C5)),IF(ShowObserved,tblHolidays[الصحيح],tblHolidays[اليوم]),0),2),\"\"),\"\"),\"\")","v":""},{"$f":"IFERROR(IF(ShowHolidays,IF(INDEX(tblHolidays[],MATCH(DATE(CalYear-(DAY(D5)>15)+(ROW()>6),MONTH(D5),DAY(D5)),IF(ShowObserved,tblHolidays[الصحيح],tblHolidays[اليوم]),0),6),INDEX(tblHolidays[],MATCH(DATE(CalYear-(DAY(D5)>15)+(ROW()>6),MONTH(D5),DAY(D5)),IF(ShowObserved,tblHolidays[الصحيح],tblHolidays[اليوم]),0),2),\"\"),\"\"),\"\")","v":""},{"$f":"IFERROR(IF(ShowHolidays,IF(INDEX(tblHolidays[],MATCH(DATE(CalYear-(DAY(E5)>15)+(ROW()>6),MONTH(E5),DAY(E5)),IF(ShowObserved,tblHolidays[الصحيح],tblHolidays[اليوم]),0),6),INDEX(tblHolidays[],MATCH(DATE(CalYear-(DAY(E5)>15)+(ROW()>6),MONTH(E5),DAY(E5)),IF(ShowObserved,tblHolidays[الصحيح],tblHolidays[اليوم]),0),2),\"\"),\"\"),\"\")","v":""},{"$f":"IFERROR(IF(ShowHolidays,IF(INDEX(tblHolidays[],MATCH(DATE(CalYear-(DAY(F5)>15)+(ROW()>6),MONTH(F5),DAY(F5)),IF(ShowObserved,tblHolidays[الصحيح],tblHolidays[اليوم]),0),6),INDEX(tblHolidays[],MATCH(DATE(CalYear-(DAY(F5)>15)+(ROW()>6),MONTH(F5),DAY(F5)),IF(ShowObserved,tblHolidays[الصحيح],tblHolidays[اليوم]),0),2),\"\"),\"\"),\"\")","v":""},{"$f":"IFERROR(IF(ShowHolidays,IF(INDEX(tblHolidays[],MATCH(DATE(CalYear-(DAY(G5)>15)+(ROW()>6),MONTH(G5),DAY(G5)),IF(ShowObserved,tblHolidays[الصحيح],tblHolidays[اليوم]),0),6),INDEX(tblHolidays[],MATCH(DATE(CalYear-(DAY(G5)>15)+(ROW()>6),MONTH(G5),DAY(G5)),IF(ShowObserved,tblHolidays[الصحيح],tblHolidays[اليوم]),0),2),\"\"),\"\"),\"\")","v":""},{"$f":"IFERROR(IF(ShowHolidays,IF(INDEX(tblHolidays[],MATCH(DATE(CalYear-(DAY(H5)>15)+(ROW()>6),MONTH(H5),DAY(H5)),IF(ShowObserved,tblHolidays[الصحيح],tblHolidays[اليوم]),0),6),INDEX(tblHolidays[],MATCH(DATE(CalYear-(DAY(H5)>15)+(ROW()>6),MONTH(H5),DAY(H5)),IF(ShowObserved,tblHolidays[الصحيح],tblHolidays[اليوم]),0),2),\"\"),\"\"),\"\")","v":""}]
[null,{"$f":"الأيام+DATE(CalYear,5,1)-WEEKDAY(DATE(CalYear,5,1),(WeekStart=\"الإثنين\")+1)+8","v":"2018-05-06"},"2018-05-07","2018-05-08","2018-05-09","2018-05-10","2018-05-11","2018-05-12"]
[null,{"$f":"IFERROR(IF(ShowHolidays,IF(INDEX(tblHolidays[],MATCH(DATE(CalYear,MONTH(B7),DAY(B7)),IF(ShowObserved,tblHolidays[الصحيح],tblHolidays[اليوم]),0),6),INDEX(tblHolidays[],MATCH(DATE(CalYear,MONTH(B7),DAY(B7)),IF(ShowObserved,tblHolidays[الصحيح],tblHolidays[اليوم]),0),2),\"\"),\"\"),\"\")","v":""},{"$f":"IFERROR(IF(ShowHolidays,IF(INDEX(tblHolidays[],MATCH(DATE(CalYear,MONTH(C7),DAY(C7)),IF(ShowObserved,tblHolidays[الصحيح],tblHolidays[اليوم]),0),6),INDEX(tblHolidays[],MATCH(DATE(CalYear,MONTH(C7),DAY(C7)),IF(ShowObserved,tblHolidays[الصحيح],tblHolidays[اليوم]),0),2),\"\"),\"\"),\"\")","v":""},{"$f":"IFERROR(IF(ShowHolidays,IF(INDEX(tblHolidays[],MATCH(DATE(CalYear,MONTH(D7),DAY(D7)),IF(ShowObserved,tblHolidays[الصحيح],tblHolidays[اليوم]),0),6),INDEX(tblHolidays[],MATCH(DATE(CalYear,MONTH(D7),DAY(D7)),IF(ShowObserved,tblHolidays[الصحيح],tblHolidays[اليوم]),0),2),\"\"),\"\"),\"\")","v":""},{"$f":"IFERROR(IF(ShowHolidays,IF(INDEX(tblHolidays[],MATCH(DATE(CalYear,MONTH(E7),DAY(E7)),IF(ShowObserved,tblHolidays[الصحيح],tblHolidays[اليوم]),0),6),INDEX(tblHolidays[],MATCH(DATE(CalYear,MONTH(E7),DAY(E7)),IF(ShowObserved,tblHolidays[الصحيح],tblHolidays[اليوم]),0),2),\"\"),\"\"),\"\")","v":""},{"$f":"IFERROR(IF(ShowHolidays,IF(INDEX(tblHolidays[],MATCH(DATE(CalYear,MONTH(F7),DAY(F7)),IF(ShowObserved,tblHolidays[الصحيح],tblHolidays[اليوم]),0),6),INDEX(tblHolidays[],MATCH(DATE(CalYear,MONTH(F7),DAY(F7)),IF(ShowObserved,tblHolidays[الصحيح],tblHolidays[اليوم]),0),2),\"\"),\"\"),\"\")","v":""},{"$f":"IFERROR(IF(ShowHolidays,IF(INDEX(tblHolidays[],MATCH(DATE(CalYear,MONTH(G7),DAY(G7)),IF(ShowObserved,tblHolidays[الصحيح],tblHolidays[اليوم]),0),6),INDEX(tblHolidays[],MATCH(DATE(CalYear,MONTH(G7),DAY(G7)),IF(ShowObserved,tblHolidays[الصحيح],tblHolidays[اليوم]),0),2),\"\"),\"\"),\"\")","v":""},{"$f":"IFERROR(IF(ShowHolidays,IF(INDEX(tblHolidays[],MATCH(DATE(CalYear,MONTH(H7),DAY(H7)),IF(ShowObserved,tblHolidays[الصحيح],tblHolidays[اليوم]),0),6),INDEX(tblHolidays[],MATCH(DATE(CalYear,MONTH(H7),DAY(H7)),IF(ShowObserved,tblHolidays[الصحيح],tblHolidays[اليوم]),0),2),\"\"),\"\"),\"\")","v":""}]
[null,{"$f":"الأيام+DATE(CalYear,5,1)-WEEKDAY(DATE(CalYear,5,1),(WeekStart=\"الإثنين\")+1)+15","v":"2018-05-13"},"2018-05-14","2018-05-15","2018-05-16","2018-05-17","2018-05-18","2018-05-19"]
[null,{"$f":"IFERROR(IF(ShowHolidays,IF(INDEX(tblHolidays[],MATCH(DATE(CalYear,MONTH(B9),DAY(B9)),IF(ShowObserved,tblHolidays[الصحيح],tblHolidays[اليوم]),0),6),INDEX(tblHolidays[],MATCH(DATE(CalYear,MONTH(B9),DAY(B9)),IF(ShowObserved,tblHolidays[الصحيح],tblHolidays[اليوم]),0),2),\"\"),\"\"),\"\")","v":""},{"$f":"IFERROR(IF(ShowHolidays,IF(INDEX(tblHolidays[],MATCH(DATE(CalYear,MONTH(C9),DAY(C9)),IF(ShowObserved,tblHolidays[الصحيح],tblHolidays[اليوم]),0),6),INDEX(tblHolidays[],MATCH(DATE(CalYear,MONTH(C9),DAY(C9)),IF(ShowObserved,tblHolidays[الصحيح],tblHolidays[اليوم]),0),2),\"\"),\"\"),\"\")","v":""},{"$f":"IFERROR(IF(ShowHolidays,IF(INDEX(tblHolidays[],MATCH(DATE(CalYear,MONTH(D9),DAY(D9)),IF(ShowObserved,tblHolidays[الصحيح],tblHolidays[اليوم]),0),6),INDEX(tblHolidays[],MATCH(DATE(CalYear,MONTH(D9),DAY(D9)),IF(ShowObserved,tblHolidays[الصحيح],tblHolidays[اليوم]),0),2),\"\"),\"\"),\"\")","v":""},{"$f":"IFERROR(IF(ShowHolidays,IF(INDEX(tblHolidays[],MATCH(DATE(CalYear,MONTH(E9),DAY(E9)),IF(ShowObserved,tblHolidays[الصحيح],tblHolidays[اليوم]),0),6),INDEX(tblHolidays[],MATCH(DATE(CalYear,MONTH(E9),DAY(E9)),IF(ShowObserved,tblHolidays[الصحيح],tblHolidays[اليوم]),0),2),\"\"),\"\"),\"\")","v":""},{"$f":"IFERROR(IF(ShowHolidays,IF(INDEX(tblHolidays[],MATCH(DATE(CalYear,MONTH(F9),DAY(F9)),IF(ShowObserved,tblHolidays[الصحيح],tblHolidays[اليوم]),0),6),INDEX(tblHolidays[],MATCH(DATE(CalYear,MONTH(F9),DAY(F9)),IF(ShowObserved,tblHolidays[الصحيح],tblHolidays[اليوم]),0),2),\"\"),\"\"),\"\")","v":""},{"$f":"IFERROR(IF(ShowHolidays,IF(INDEX(tblHolidays[],MATCH(DATE(CalYear,MONTH(G9),DAY(G9)),IF(ShowObserved,tblHolidays[الصحيح],tblHolidays[اليوم]),0),6),INDEX(tblHolidays[],MATCH(DATE(CalYear,MONTH(G9),DAY(G9)),IF(ShowObserved,tblHolidays[الصحيح],tblHolidays[اليوم]),0),2),\"\"),\"\"),\"\")","v":""},{"$f":"IFERROR(IF(ShowHolidays,IF(INDEX(tblHolidays[],MATCH(DATE(CalYear,MONTH(H9),DAY(H9)),IF(ShowObserved,tblHolidays[الصحيح],tblHolidays[اليوم]),0),6),INDEX(tblHolidays[],MATCH(DATE(CalYear,MONTH(H9),DAY(H9)),IF(ShowObserved,tblHolidays[الصحيح],tblHolidays[اليوم]),0),2),\"\"),\"\"),\"\")","v":""}]
[null,{"$f":"الأيام+DATE(CalYear,5,1)-WEEKDAY(DATE(CalYear,5,1),(WeekStart=\"الإثنين\")+1)+22","v":"2018-05-20"},"2018-05-21","2018-05-22","2018-05-23","2018-05-24","2018-05-25","2018-05-26"]
[null,{"$f":"IFERROR(IF(ShowHolidays,IF(INDEX(tblHolidays[],MATCH(DATE(CalYear,MONTH(B11),DAY(B11)),IF(ShowObserved,tblHolidays[الصحيح],tblHolidays[اليوم]),0),6),INDEX(tblHolidays[],MATCH(DATE(CalYear,MONTH(B11),DAY(B11)),IF(ShowObserved,tblHolidays[الصحيح],tblHolidays[اليوم]),0),2),\"\"),\"\"),\"\")","v":""},{"$f":"IFERROR(IF(ShowHolidays,IF(INDEX(tblHolidays[],MATCH(DATE(CalYear,MONTH(C11),DAY(C11)),IF(ShowObserved,tblHolidays[الصحيح],tblHolidays[اليوم]),0),6),INDEX(tblHolidays[],MATCH(DATE(CalYear,MONTH(C11),DAY(C11)),IF(ShowObserved,tblHolidays[الصحيح],tblHolidays[اليوم]),0),2),\"\"),\"\"),\"\")","v":""},{"$f":"IFERROR(IF(ShowHolidays,IF(INDEX(tblHolidays[],MATCH(DATE(CalYear,MONTH(D11),DAY(D11)),IF(ShowObserved,tblHolidays[الصحيح],tblHolidays[اليوم]),0),6),INDEX(tblHolidays[],MATCH(DATE(CalYear,MONTH(D11),DAY(D11)),IF(ShowObserved,tblHolidays[الصحيح],tblHolidays[اليوم]),0),2),\"\"),\"\"),\"\")","v":""},{"$f":"IFERROR(IF(ShowHolidays,IF(INDEX(tblHolidays[],MATCH(DATE(CalYear,MONTH(E11),DAY(E11)),IF(ShowObserved,tblHolidays[الصحيح],tblHolidays[اليوم]),0),6),INDEX(tblHolidays[],MATCH(DATE(CalYear,MONTH(E11),DAY(E11)),IF(ShowObserved,tblHolidays[الصحيح],tblHolidays[اليوم]),0),2),\"\"),\"\"),\"\")","v":""},{"$f":"IFERROR(IF(ShowHolidays,IF(INDEX(tblHolidays[],MATCH(DATE(CalYear,MONTH(F11),DAY(F11)),IF(ShowObserved,tblHolidays[الصحيح],tblHolidays[اليوم]),0),6),INDEX(tblHolidays[],MATCH(DATE(CalYear,MONTH(F11),DAY(F11)),IF(ShowObserved,tblHolidays[الصحيح],tblHolidays[اليوم]),0),2),\"\"),\"\"),\"\")","v":""},{"$f":"IFERROR(IF(ShowHolidays,IF(INDEX(tblHolidays[],MATCH(DATE(CalYear,MONTH(G11),DAY(G11)),IF(ShowObserved,tblHolidays[الصحيح],tblHolidays[اليوم]),0),6),INDEX(tblHolidays[],MATCH(DATE(CalYear,MONTH(G11),DAY(G11)),IF(ShowObserved,tblHolidays[الصحيح],tblHolidays[اليوم]),0),2),\"\"),\"\"),\"\")","v":""},{"$f":"IFERROR(IF(ShowHolidays,IF(INDEX(tblHolidays[],MATCH(DATE(CalYear,MONTH(H11),DAY(H11)),IF(ShowObserved,tblHolidays[الصحيح],tblHolidays[اليوم]),0),6),INDEX(tblHolidays[],MATCH(DATE(CalYear,MONTH(H11),DAY(H11)),IF(ShowObserved,tblHolidays[الصحيح],tblHolidays[اليوم]),0),2),\"\"),\"\"),\"\")","v":""}]
[null,{"$f":"الأيام+DATE(CalYear,5,1)-WEEKDAY(DATE(CalYear,5,1),(WeekStart=\"الإثنين\")+1)+29","v":"2018-05-27"},"2018-05-28","2018-05-29","2018-05-30","2018-05-31","2018-06-01","2018-06-02"]
[null,{"$f":"IFERROR(IF(ShowHolidays,IF(INDEX(tblHolidays[],MATCH(DATE(CalYear,MONTH(B13),DAY(B13)),IF(ShowObserved,tblHolidays[الصحيح],tblHolidays[اليوم]),0),6),INDEX(tblHolidays[],MATCH(DATE(CalYear,MONTH(B13),DAY(B13)),IF(ShowObserved,tblHolidays[الصحيح],tblHolidays[اليوم]),0),2),\"\"),\"\"),\"\")","v":""},{"$f":"IFERROR(IF(ShowHolidays,IF(INDEX(tblHolidays[],MATCH(DATE(CalYear,MONTH(C13),DAY(C13)),IF(ShowObserved,tblHolidays[الصحيح],tblHolidays[اليوم]),0),6),INDEX(tblHolidays[],MATCH(DATE(CalYear,MONTH(C13),DAY(C13)),IF(ShowObserved,tblHolidays[الصحيح],tblHolidays[اليوم]),0),2),\"\"),\"\"),\"\")","v":"يوم الذكرى"},{"$f":"IFERROR(IF(ShowHolidays,IF(INDEX(tblHolidays[],MATCH(DATE(CalYear,MONTH(D13),DAY(D13)),IF(ShowObserved,tblHolidays[الصحيح],tblHolidays[اليوم]),0),6),INDEX(tblHolidays[],MATCH(DATE(CalYear,MONTH(D13),DAY(D13)),IF(ShowObserved,tblHolidays[الصحيح],tblHolidays[اليوم]),0),2),\"\"),\"\"),\"\")","v":""},{"$f":"IFERROR(IF(ShowHolidays,IF(INDEX(tblHolidays[],MATCH(DATE(CalYear,MONTH(E13),DAY(E13)),IF(ShowObserved,tblHolidays[الصحيح],tblHolidays[اليوم]),0),6),INDEX(tblHolidays[],MATCH(DATE(CalYear,MONTH(E13),DAY(E13)),IF(ShowObserved,tblHolidays[الصحيح],tblHolidays[اليوم]),0),2),\"\"),\"\"),\"\")","v":""},{"$f":"IFERROR(IF(ShowHolidays,IF(INDEX(tblHolidays[],MATCH(DATE(CalYear,MONTH(F13),DAY(F13)),IF(ShowObserved,tblHolidays[الصحيح],tblHolidays[اليوم]),0),6),INDEX(tblHolidays[],MATCH(DATE(CalYear,MONTH(F13),DAY(F13)),IF(ShowObserved,tblHolidays[الصحيح],tblHolidays[اليوم]),0),2),\"\"),\"\"),\"\")","v":""},{"$f":"IFERROR(IF(ShowHolidays,IF(INDEX(tblHolidays[],MATCH(DATE(CalYear,MONTH(G13),DAY(G13)),IF(ShowObserved,tblHolidays[الصحيح],tblHolidays[اليوم]),0),6),INDEX(tblHolidays[],MATCH(DATE(CalYear,MONTH(G13),DAY(G13)),IF(ShowObserved,tblHolidays[الصحيح],tblHolidays[اليوم]),0),2),\"\"),\"\"),\"\")","v":""},{"$f":"IFERROR(IF(ShowHolidays,IF(INDEX(tblHolidays[],MATCH(DATE(CalYear,MONTH(H13),DAY(H13)),IF(ShowObserved,tblHolidays[الصحيح],tblHolidays[اليوم]),0),6),INDEX(tblHolidays[],MATCH(DATE(CalYear,MONTH(H13),DAY(H13)),IF(ShowObserved,tblHolidays[الصحيح],tblHolidays[اليوم]),0),2),\"\"),\"\"),\"\")","v":""}]
[null,{"$f":"الأيام+DATE(CalYear,5,1)-WEEKDAY(DATE(CalYear,5,1),(WeekStart=\"الإثنين\")+1)+36","v":"2018-06-03"},"2018-06-04","الملاحظات"]
[null,{"$f":"IFERROR(IF(ShowHolidays,IF(INDEX(tblHolidays[],MATCH(DATE(CalYear,MONTH(B15),DAY(B15)),IF(ShowObserved,tblHolidays[الصحيح],tblHolidays[اليوم]),0),6),INDEX(tblHolidays[],MATCH(DATE(CalYear,MONTH(B15),DAY(B15)),IF(ShowObserved,tblHolidays[الصحيح],tblHolidays[اليوم]),0),2),\"\"),\"\"),\"\")","v":""},{"$f":"IFERROR(IF(ShowHolidays,IF(INDEX(tblHolidays[],MATCH(DATE(CalYear,MONTH(C15),DAY(C15)),IF(ShowObserved,tblHolidays[الصحيح],tblHolidays[اليوم]),0),6),INDEX(tblHolidays[],MATCH(DATE(CalYear,MONTH(C15),DAY(C15)),IF(ShowObserved,tblHolidays[الصحيح],tblHolidays[اليوم]),0),2),\"\"),\"\"),\"\")","v":""}]

{"sheet":"يونيو","index":6,"n_rows":16,"n_cols":8,"rows_kept":16,"merged":[[1,1,1,3],[14,3,14,7],[15,3,15,7],[16,1,16,7]]}
[]
[null,{"$f":"B9","v":"2018-06-10"}]
[]
[null,{"$f":"WeekStart","v":"الأحد"},{"$f":"UPPER(TEXT(C5,\"dddd\"))","v":"الإثنين"},"الثلاثاء","الأربعاء","الخميس","الجمعة","السبت"]
[null,{"$f":"الأيام+DATE(CalYear,6,1)-WEEKDAY(DATE(CalYear,6,1),(WeekStart=\"الإثنين\")+1)+1","v":"2018-05-27"},"2018-05-28","2018-05-29","2018-05-30","2018-05-31","2018-06-01","2018-06-02"]
[null,{"$f":"IFERROR(IF(ShowHolidays,IF(INDEX(tblHolidays[],MATCH(DATE(CalYear-(DAY(B5)>15)+(ROW()>6),MONTH(B5),DAY(B5)),IF(ShowObserved,tblHolidays[الصحيح],tblHolidays[اليوم]),0),6),INDEX(tblHolidays[],MATCH(DATE(CalYear-(DAY(B5)>15)+(ROW()>6),MONTH(B5),DAY(B5)),IF(ShowObserved,tblHolidays[الصحيح],tblHolidays[اليوم]),0),2),\"\"),\"\"),\"\")","v":""},{"$f":"IFERROR(IF(ShowHolidays,IF(INDEX(tblHolidays[],MATCH(DATE(CalYear-(DAY(C5)>15)+(ROW()>6),MONTH(C5),DAY(C5)),IF(ShowObserved,tblHolidays[الصحيح],tblHolidays[اليوم]),0),6),INDEX(tblHolidays[],MATCH(DATE(CalYear-(DAY(C5)>15)+(ROW()>6),MONTH(C5),DAY(C5)),IF(ShowObserved,tblHolidays[الصحيح],tblHolidays[اليوم]),0),2),\"\"),\"\"),\"\")","v":""},{"$f":"IFERROR(IF(ShowHolidays,IF(INDEX(tblHolidays[],MATCH(DATE(CalYear-(DAY(D5)>15)+(ROW()>6),MONTH(D5),DAY(D5)),IF(ShowObserved,tblHolidays[الصحيح],tblHolidays[اليوم]),0),6),INDEX(tblHolidays[],MATCH(DATE(CalYear-(DAY(D5)>15)+(ROW()>6),MONTH(D5),DAY(D5)),IF(ShowObserved,tblHolidays[الصحيح],tblHolidays[اليوم]),0),2),\"\"),\"\"),\"\")","v":""},{"$f":"IFERROR(IF(ShowHolidays,IF(INDEX(tblHolidays[],MATCH(DATE(CalYear-(DAY(E5)>15)+(ROW()>6),MONTH(E5),DAY(E5)),IF(ShowObserved,tblHolidays[الصحيح],tblHolidays[اليوم]),0),6),INDEX(tblHolidays[],MATCH(DATE(CalYear-(DAY(E5)>15)+(ROW()>6),MONTH(E5),DAY(E5)),IF(ShowObserved,tblHolidays[الصحيح],tblHolidays[اليوم]),0),2),\"\"),\"\"),\"\")","v":""},{"$f":"IFERROR(IF(ShowHolidays,IF(INDEX(tblHolidays[],MATCH(DATE(CalYear-(DAY(F5)>15)+(ROW()>6),MONTH(F5),DAY(F5)),IF(ShowObserved,tblHolidays[الصحيح],tblHolidays[اليوم]),0),6),INDEX(tblHolidays[],MATCH(DATE(CalYear-(DAY(F5)>15)+(ROW()>6),MONTH(F5),DAY(F5)),IF(ShowObserved,tblHolidays[الصحيح],tblHolidays[اليوم]),0),2),\"\"),\"\"),\"\")","v":""},{"$f":"IFERROR(IF(ShowHolidays,IF(INDEX(tblHolidays[],MATCH(DATE(CalYear-(DAY(G5)>15)+(ROW()>6),MONTH(G5),DAY(G5)),IF(ShowObserved,tblHolidays[الصحيح],tblHolidays[اليوم]),0),6),INDEX(tblHolidays[],MATCH(DATE(CalYear-(DAY(G5)>15)+(ROW()>6),MONTH(G5),DAY(G5)),IF(ShowObserved,tblHolidays[الصحيح],tblHolidays[اليوم]),0),2),\"\"),\"\"),\"\")","v":""},{"$f":"IFERROR(IF(ShowHolidays,IF(INDEX(tblHolidays[],MATCH(DATE(CalYear-(DAY(H5)>15)+(ROW()>6),MONTH(H5),DAY(H5)),IF(ShowObserved,tblHolidays[الصحيح],tblHolidays[اليوم]),0),6),INDEX(tblHolidays[],MATCH(DATE(CalYear-(DAY(H5)>15)+(ROW()>6),MONTH(H5),DAY(H5)),IF(ShowObserved,tblHolidays[الصحيح],tblHolidays[اليوم]),0),2),\"\"),\"\"),\"\")","v":""}]
[null,{"$f":"الأيام+DATE(CalYear,6,1)-WEEKDAY(DATE(CalYear,6,1),(WeekStart=\"الإثنين\")+1)+8","v":"2018-06-03"},"2018-06-04","2018-06-05","2018-06-06","2018-06-07","2018-06-08","2018-06-09"]
[null,{"$f":"IFERROR(IF(ShowHolidays,IF(INDEX(tblHolidays[],MATCH(DATE(CalYear,MONTH(B7),DAY(B7)),IF(ShowObserved,tblHolidays[الصحيح],tblHolidays[اليوم]),0),6),INDEX(tblHolidays[],MATCH(DATE(CalYear,MONTH(B7),DAY(B7)),IF(ShowObserved,tblHolidays[الصحيح],tblHolidays[اليوم]),0),2),\"\"),\"\"),\"\")","v":""},{"$f":"IFERROR(IF(ShowHolidays,IF(INDEX(tblHolidays[],MATCH(DATE(CalYear,MONTH(C7),DAY(C7)),IF(ShowObserved,tblHolidays[الصحيح],tblHolidays[اليوم]),0),6),INDEX(tblHolidays[],MATCH(DATE(CalYear,MONTH(C7),DAY(C7)),IF(ShowObserved,tblHolidays[الصحيح],tblHolidays[اليوم]),0),2),\"\"),\"\"),\"\")","v":""},{"$f":"IFERROR(IF(ShowHolidays,IF(INDEX(tblHolidays[],MATCH(DATE(CalYear,MONTH(D7),DAY(D7)),IF(ShowObserved,tblHolidays[الصحيح],tblHolidays[اليوم]),0),6),INDEX(tblHolidays[],MATCH(DATE(CalYear,MONTH(D7),DAY(D7)),IF(ShowObserved,tblHolidays[الصحيح],tblHolidays[اليوم]),0),2),\"\"),\"\"),\"\")","v":""},{"$f":"IFERROR(IF(ShowHolidays,IF(INDEX(tblHolidays[],MATCH(DATE(CalYear,MONTH(E7),DAY(E7)),IF(ShowObserved,tblHolidays[الصحيح],tblHolidays[اليوم]),0),6),INDEX(tblHolidays[],MATCH(DATE(CalYear,MONTH(E7),DAY(E7)),IF(ShowObserved,tblHolidays[الصحيح],tblHolidays[اليوم]),0),2),\"\"),\"\"),\"\")","v":""},{"$f":"IFERROR(IF(ShowHolidays,IF(INDEX(tblHolidays[],MATCH(DATE(CalYear,MONTH(F7),DAY(F7)),IF(ShowObserved,tblHolidays[الصحيح],tblHolidays[اليوم]),0),6),INDEX(tblHolidays[],MATCH(DATE(CalYear,MONTH(F7),DAY(F7)),IF(ShowObserved,tblHolidays[الصحيح],tblHolidays[اليوم]),0),2),\"\"),\"\"),\"\")","v":""},{"$f":"IFERROR(IF(ShowHolidays,IF(INDEX(tblHolidays[],MATCH(DATE(CalYear,MONTH(G7),DAY(G7)),IF(ShowObserved,tblHolidays[الصحيح],tblHolidays[اليوم]),0),6),INDEX(tblHolidays[],MATCH(DATE(CalYear,MONTH(G7),DAY(G7)),IF(ShowObserved,tblHolidays[الصحيح],tblHolidays[اليوم]),0),2),\"\"),\"\"),\"\")","v":""},{"$f":"IFERROR(IF(ShowHolidays,IF(INDEX(tblHolidays[],MATCH(DATE(CalYear,MONTH(H7),DAY(H7)),IF(ShowObserved,tblHolidays[الصحيح],tblHolidays[اليوم]),0),6),INDEX(tblHolidays[],MATCH(DATE(CalYear,MONTH(H7),DAY(H7)),IF(ShowObserved,tblHolidays[الصحيح],tblHolidays[اليوم]),0),2),\"\"),\"\"),\"\")","v":""}]
[null,{"$f":"الأيام+DATE(CalYear,6,1)-WEEKDAY(DATE(CalYear,6,1),(WeekStart=\"الإثنين\")+1)+15","v":"2018-06-10"},"2018-06-11","2018-06-12","2018-06-13","2018-06-14","2018-06-15","2018-06-16"]
[null,{"$f":"IFERROR(IF(ShowHolidays,IF(INDEX(tblHolidays[],MATCH(DATE(CalYear,MONTH(B9),DAY(B9)),IF(ShowObserved,tblHolidays[الصحيح],tblHolidays[اليوم]),0),6),INDEX(tblHolidays[],MATCH(DATE(CalYear,MONTH(B9),DAY(B9)),IF(ShowObserved,tblHolidays[الصحيح],tblHolidays[اليوم]),0),2),\"\"),\"\"),\"\")","v":""},{"$f":"IFERROR(IF(ShowHolidays,IF(INDEX(tblHolidays[],MATCH(DATE(CalYear,MONTH(C9),DAY(C9)),IF(ShowObserved,tblHolidays[الصحيح],tblHolidays[اليوم]),0),6),INDEX(tblHolidays[],MATCH(DATE(CalYear,MONTH(C9),DAY(C9)),IF(ShowObserved,tblHolidays[الصحيح],tblHolidays[اليوم]),0),2),\"\"),\"\"),\"\")","v":""},{"$f":"IFERROR(IF(ShowHolidays,IF(INDEX(tblHolidays[],MATCH(DATE(CalYear,MONTH(D9),DAY(D9)),IF(ShowObserved,tblHolidays[الصحيح],tblHolidays[اليوم]),0),6),INDEX(tblHolidays[],MATCH(DATE(CalYear,MONTH(D9),DAY(D9)),IF(ShowObserved,tblHolidays[الصحيح],tblHolidays[اليوم]),0),2),\"\"),\"\"),\"\")","v":""},{"$f":"IFERROR(IF(ShowHolidays,IF(INDEX(tblHolidays[],MATCH(DATE(CalYear,MONTH(E9),DAY(E9)),IF(ShowObserved,tblHolidays[الصحيح],tblHolidays[اليوم]),0),6),INDEX(tblHolidays[],MATCH(DATE(CalYear,MONTH(E9),DAY(E9)),IF(ShowObserved,tblHolidays[الصحيح],tblHolidays[اليوم]),0),2),\"\"),\"\"),\"\")","v":""},{"$f":"IFERROR(IF(ShowHolidays,IF(INDEX(tblHolidays[],MATCH(DATE(CalYear,MONTH(F9),DAY(F9)),IF(ShowObserved,tblHolidays[الصحيح],tblHolidays[اليوم]),0),6),INDEX(tblHolidays[],MATCH(DATE(CalYear,MONTH(F9),DAY(F9)),IF(ShowObserved,tblHolidays[الصحيح],tblHolidays[اليوم]),0),2),\"\"),\"\"),\"\")","v":""},{"$f":"IFERROR(IF(ShowHolidays,IF(INDEX(tblHolidays[],MATCH(DATE(CalYear,MONTH(G9),DAY(G9)),IF(ShowObserved,tblHolidays[الصحيح],tblHolidays[اليوم]),0),6),INDEX(tblHolidays[],MATCH(DATE(CalYear,MONTH(G9),DAY(G9)),IF(ShowObserved,tblHolidays[الصحيح],tblHolidays[اليوم]),0),2),\"\"),\"\"),\"\")","v":""},{"$f":"IFERROR(IF(ShowHolidays,IF(INDEX(tblHolidays[],MATCH(DATE(CalYear,MONTH(H9),DAY(H9)),IF(ShowObserved,tblHolidays[الصحيح],tblHolidays[اليوم]),0),6),INDEX(tblHolidays[],MATCH(DATE(CalYear,MONTH(H9),DAY(H9)),IF(ShowObserved,tblHolidays[الصحيح],tblHolidays[اليوم]),0),2),\"\"),\"\"),\"\")","v":""}]
[null,{"$f":"الأيام+DATE(CalYear,6,1)-WEEKDAY(DATE(CalYear,6,1),(WeekStart=\"الإثنين\")+1)+22","v":"2018-06-17"},"2018-06-18","2018-06-19","2018-06-20","2018-06-21","2018-06-22","2018-06-23"]
[null,{"$f":"IFERROR(IF(ShowHolidays,IF(INDEX(tblHolidays[],MATCH(DATE(CalYear,MONTH(B11),DAY(B11)),IF(ShowObserved,tblHolidays[الصحيح],tblHolidays[اليوم]),0),6),INDEX(tblHolidays[],MATCH(DATE(CalYear,MONTH(B11),DAY(B11)),IF(ShowObserved,tblHolidays[الصحيح],tblHolidays[اليوم]),0),2),\"\"),\"\"),\"\")","v":""},{"$f":"IFERROR(IF(ShowHolidays,IF(INDEX(tblHolidays[],MATCH(DATE(CalYear,MONTH(C11),DAY(C11)),IF(ShowObserved,tblHolidays[الصحيح],tblHolidays[اليوم]),0),6),INDEX(tblHolidays[],MATCH(DATE(CalYear,MONTH(C11),DAY(C11)),IF(ShowObserved,tblHolidays[الصحيح],tblHolidays[اليوم]),0),2),\"\"),\"\"),\"\")","v":""},{"$f":"IFERROR(IF(ShowHolidays,IF(INDEX(tblHolidays[],MATCH(DATE(CalYear,MONTH(D11),DAY(D11)),IF(ShowObserved,tblHolidays[الصحيح],tblHolidays[اليوم]),0),6),INDEX(tblHolidays[],MATCH(DATE(CalYear,MONTH(D11),DAY(D11)),IF(ShowObserved,tblHolidays[الصحيح],tblHolidays[اليوم]),0),2),\"\"),\"\"),\"\")","v":""},{"$f":"IFERROR(IF(ShowHolidays,IF(INDEX(tblHolidays[],MATCH(DATE(CalYear,MONTH(E11),DAY(E11)),IF(ShowObserved,tblHolidays[الصحيح],tblHolidays[اليوم]),0),6),INDEX(tblHolidays[],MATCH(DATE(CalYear,MONTH(E11),DAY(E11)),IF(ShowObserved,tblHolidays[الصحيح],tblHolidays[اليوم]),0),2),\"\"),\"\"),\"\")","v":""},{"$f":"IFERROR(IF(ShowHolidays,IF(INDEX(tblHolidays[],MATCH(DATE(CalYear,MONTH(F11),DAY(F11)),IF(ShowObserved,tblHolidays[الصحيح],tblHolidays[اليوم]),0),6),INDEX(tblHolidays[],MATCH(DATE(CalYear,MONTH(F11),DAY(F11)),IF(ShowObserved,tblHolidays[الصحيح],tblHolidays[اليوم]),0),2),\"\"),\"\"),\"\")","v":""},{"$f":"IFERROR(IF(ShowHolidays,IF(INDEX(tblHolidays[],MATCH(DATE(CalYear,MONTH(G11),DAY(G11)),IF(ShowObserved,tblHolidays[الصحيح],tblHolidays[اليوم]),0),6),INDEX(tblHolidays[],MATCH(DATE(CalYear,MONTH(G11),DAY(G11)),IF(ShowObserved,tblHolidays[الصحيح],tblHolidays[اليوم]),0),2),\"\"),\"\"),\"\")","v":""},{"$f":"IFERROR(IF(ShowHolidays,IF(INDEX(tblHolidays[],MATCH(DATE(CalYear,MONTH(H11),DAY(H11)),IF(ShowObserved,tblHolidays[الصحيح],tblHolidays[اليوم]),0),6),INDEX(tblHolidays[],MATCH(DATE(CalYear,MONTH(H11),DAY(H11)),IF(ShowObserved,tblHolidays[الصحيح],tblHolidays[اليوم]),0),2),\"\"),\"\"),\"\")","v":""}]
[null,{"$f":"الأيام+DATE(CalYear,6,1)-WEEKDAY(DATE(CalYear,6,1),(WeekStart=\"الإثنين\")+1)+29","v":"2018-06-24"},"2018-06-25","2018-06-26","2018-06-27","2018-06-28","2018-06-29","2018-06-30"]
[null,{"$f":"IFERROR(IF(ShowHolidays,IF(INDEX(tblHolidays[],MATCH(DATE(CalYear,MONTH(B13),DAY(B13)),IF(ShowObserved,tblHolidays[الصحيح],tblHolidays[اليوم]),0),6),INDEX(tblHolidays[],MATCH(DATE(CalYear,MONTH(B13),DAY(B13)),IF(ShowObserved,tblHolidays[الصحيح],tblHolidays[اليوم]),0),2),\"\"),\"\"),\"\")","v":""},{"$f":"IFERROR(IF(ShowHolidays,IF(INDEX(tblHolidays[],MATCH(DATE(CalYear,MONTH(C13),DAY(C13)),IF(ShowObserved,tblHolidays[الصحيح],tblHolidays[اليوم]),0),6),INDEX(tblHolidays[],MATCH(DATE(CalYear,MONTH(C13),DAY(C13)),IF(ShowObserved,tblHolidays[الصحيح],tblHolidays[اليوم]),0),2),\"\"),\"\"),\"\")","v":""},{"$f":"IFERROR(IF(ShowHolidays,IF(INDEX(tblHolidays[],MATCH(DATE(CalYear,MONTH(D13),DAY(D13)),IF(ShowObserved,tblHolidays[الصحيح],tblHolidays[اليوم]),0),6),INDEX(tblHolidays[],MATCH(DATE(CalYear,MONTH(D13),DAY(D13)),IF(ShowObserved,tblHolidays[الصحيح],tblHolidays[اليوم]),0),2),\"\"),\"\"),\"\")","v":""},{"$f":"IFERROR(IF(ShowHolidays,IF(INDEX(tblHolidays[],MATCH(DATE(CalYear,MONTH(E13),DAY(E13)),IF(ShowObserved,tblHolidays[الصحيح],tblHolidays[اليوم]),0),6),INDEX(tblHolidays[],MATCH(DATE(CalYear,MONTH(E13),DAY(E13)),IF(ShowObserved,tblHolidays[الصحيح],tblHolidays[اليوم]),0),2),\"\"),\"\"),\"\")","v":""},{"$f":"IFERROR(IF(ShowHolidays,IF(INDEX(tblHolidays[],MATCH(DATE(CalYear,MONTH(F13),DAY(F13)),IF(ShowObserved,tblHolidays[الصحيح],tblHolidays[اليوم]),0),6),INDEX(tblHolidays[],MATCH(DATE(CalYear,MONTH(F13),DAY(F13)),IF(ShowObserved,tblHolidays[الصحيح],tblHolidays[اليوم]),0),2),\"\"),\"\"),\"\")","v":""},{"$f":"IFERROR(IF(ShowHolidays,IF(INDEX(tblHolidays[],MATCH(DATE(CalYear,MONTH(G13),DAY(G13)),IF(ShowObserved,tblHolidays[الصحيح],tblHolidays[اليوم]),0),6),INDEX(tblHolidays[],MATCH(DATE(CalYear,MONTH(G13),DAY(G13)),IF(ShowObserved,tblHolidays[الصحيح],tblHolidays[اليوم]),0),2),\"\"),\"\"),\"\")","v":""},{"$f":"IFERROR(IF(ShowHolidays,IF(INDEX(tblHolidays[],MATCH(DATE(CalYear,MONTH(H13),DAY(H13)),IF(ShowObserved,tblHolidays[الصحيح],tblHolidays[اليوم]),0),6),INDEX(tblHolidays[],MATCH(DATE(CalYear,MONTH(H13),DAY(H13)),IF(ShowObserved,tblHolidays[الصحيح],tblHolidays[اليوم]),0),2),\"\"),\"\"),\"\")","v":""}]
[null,{"$f":"الأيام+DATE(CalYear,6,1)-WEEKDAY(DATE(CalYear,6,1),(WeekStart=\"الإثنين\")+1)+36","v":"2018-07-01"},"2018-07-02","الملاحظات"]
[null,{"$f":"IFERROR(IF(ShowHolidays,IF(INDEX(tblHolidays[],MATCH(DATE(CalYear,MONTH(B15),DAY(B15)),IF(ShowObserved,tblHolidays[الصحيح],tblHolidays[اليوم]),0),6),INDEX(tblHolidays[],MATCH(DATE(CalYear,MONTH(B15),DAY(B15)),IF(ShowObserved,tblHolidays[الصحيح],tblHolidays[اليوم]),0),2),\"\"),\"\"),\"\")","v":""},{"$f":"IFERROR(IF(ShowHolidays,IF(INDEX(tblHolidays[],MATCH(DATE(CalYear,MONTH(C15),DAY(C15)),IF(ShowObserved,tblHolidays[الصحيح],tblHolidays[اليوم]),0),6),INDEX(tblHolidays[],MATCH(DATE(CalYear,MONTH(C15),DAY(C15)),IF(ShowObserved,tblHolidays[الصحيح],tblHolidays[اليوم]),0),2),\"\"),\"\"),\"\")","v":""}]

{"sheet":"يوليو","index":7,"n_rows":16,"n_cols":8,"rows_kept":16,"merged":[[1,1,1,3],[14,3,14,7],[15,3,15,7],[16,1,16,7]]}
[]
[null,{"$f":"B9","v":"2018-07-15"}]
[]
[null,{"$f":"WeekStart","v":"الأحد"},{"$f":"UPPER(TEXT(C5,\"dddd\"))","v":"الإثنين"},"الثلاثاء","الأربعاء","الخميس","الجمعة","السبت"]
[null,{"$f":"الأيام+DATE(CalYear,7,1)-WEEKDAY(DATE(CalYear,7,1),(WeekStart=\"الإثنين\")+1)+1","v":"2018-07-01"},"2018-07-02","2018-07-03","2018-07-04","2018-07-05","2018-07-06","2018-07-07"]
[null,{"$f":"IFERROR(IF(ShowHolidays,IF(INDEX(tblHolidays[],MATCH(DATE(CalYear-(DAY(B5)>15)+(ROW()>6),MONTH(B5),DAY(B5)),IF(ShowObserved,tblHolidays[الصحيح],tblHolidays[اليوم]),0),6),INDEX(tblHolidays[],MATCH(DATE(CalYear-(DAY(B5)>15)+(ROW()>6),MONTH(B5),DAY(B5)),IF(ShowObserved,tblHolidays[الصحيح],tblHolidays[اليوم]),0),2),\"\"),\"\"),\"\")","v":""},{"$f":"IFERROR(IF(ShowHolidays,IF(INDEX(tblHolidays[],MATCH(DATE(CalYear-(DAY(C5)>15)+(ROW()>6),MONTH(C5),DAY(C5)),IF(ShowObserved,tblHolidays[الصحيح],tblHolidays[اليوم]),0),6),INDEX(tblHolidays[],MATCH(DATE(CalYear-(DAY(C5)>15)+(ROW()>6),MONTH(C5),DAY(C5)),IF(ShowObserved,tblHolidays[الصحيح],tblHolidays[اليوم]),0),2),\"\"),\"\"),\"\")","v":""},{"$f":"IFERROR(IF(ShowHolidays,IF(INDEX(tblHolidays[],MATCH(DATE(CalYear-(DAY(D5)>15)+(ROW()>6),MONTH(D5),DAY(D5)),IF(ShowObserved,tblHolidays[الصحيح],tblHolidays[اليوم]),0),6),INDEX(tblHolidays[],MATCH(DATE(CalYear-(DAY(D5)>15)+(ROW()>6),MONTH(D5),DAY(D5)),IF(ShowObserved,tblHolidays[الصحيح],tblHolidays[اليوم]),0),2),\"\"),\"\"),\"\")","v":""},{"$f":"IFERROR(IF(ShowHolidays,IF(INDEX(tblHolidays[],MATCH(DATE(CalYear-(DAY(E5)>15)+(ROW()>6),MONTH(E5),DAY(E5)),IF(ShowObserved,tblHolidays[الصحيح],tblHolidays[اليوم]),0),6),INDEX(tblHolidays[],MATCH(DATE(CalYear-(DAY(E5)>15)+(ROW()>6),MONTH(E5),DAY(E5)),IF(ShowObserved,tblHolidays[الصحيح],tblHolidays[اليوم]),0),2),\"\"),\"\"),\"\")","v":"يوم عيد الاستقلال"},{"$f":"IFERROR(IF(ShowHolidays,IF(INDEX(tblHolidays[],MATCH(DATE(CalYear-(DAY(F5)>15)+(ROW()>6),MONTH(F5),DAY(F5)),IF(ShowObserved,tblHolidays[الصحيح],tblHolidays[اليوم]),0),6),INDEX(tblHolidays[],MATCH(DATE(CalYear-(DAY(F5)>15)+(ROW()>6),MONTH(F5),DAY(F5)),IF(ShowObserved,tblHolidays[الصحيح],tblHolidays[اليوم]),0),2),\"\"),\"\"),\"\")","v":""},{"$f":"IFERROR(IF(ShowHolidays,IF(INDEX(tblHolidays[],MATCH(DATE(CalYear-(DAY(G5)>15)+(ROW()>6),MONTH(G5),DAY(G5)),IF(ShowObserved,tblHolidays[الصحيح],tblHolidays[اليوم]),0),6),INDEX(tblHolidays[],MATCH(DATE(CalYear-(DAY(G5)>15)+(ROW()>6),MONTH(G5),DAY(G5)),IF(ShowObserved,tblHolidays[الصحيح],tblHolidays[اليوم]),0),2),\"\"),\"\"),\"\")","v":""},{"$f":"IFERROR(IF(ShowHolidays,IF(INDEX(tblHolidays[],MATCH(DATE(CalYear-(DAY(H5)>15)+(ROW()>6),MONTH(H5),DAY(H5)),IF(ShowObserved,tblHolidays[الصحيح],tblHolidays[اليوم]),0),6),INDEX(tblHolidays[],MATCH(DATE(CalYear-(DAY(H5)>15)+(ROW()>6),MONTH(H5),DAY(H5)),IF(ShowObserved,tblHolidays[الصحيح],tblHolidays[اليوم]),0),2),\"\"),\"\"),\"\")","v":""}]
[null,{"$f":"الأيام+DATE(CalYear,7,1)-WEEKDAY(DATE(CalYear,7,1),(WeekStart=\"الإثنين\")+1)+8","v":"2018-07-08"},"2018-07-09","2018-07-10","2018-07-11","2018-07-12","2018-07-13","2018-07-14"]
[null,{"$f":"IFERROR(IF(ShowHolidays,IF(INDEX(tblHolidays[],MATCH(DATE(CalYear,MONTH(B7),DAY(B7)),IF(ShowObserved,tblHolidays[الصحيح],tblHolidays[اليوم]),0),6),INDEX(tblHolidays[],MATCH(DATE(CalYear,MONTH(B7),DAY(B7)),IF(ShowObserved,tblHolidays[الصحيح],tblHolidays[اليوم]),0),2),\"\"),\"\"),\"\")","v":""},{"$f":"IFERROR(IF(ShowHolidays,IF(INDEX(tblHolidays[],MATCH(DATE(CalYear,MONTH(C7),DAY(C7)),IF(ShowObserved,tblHolidays[الصحيح],tblHolidays[اليوم]),0),6),INDEX(tblHolidays[],MATCH(DATE(CalYear,MONTH(C7),DAY(C7)),IF(ShowObserved,tblHolidays[الصحيح],tblHolidays[اليوم]),0),2),\"\"),\"\"),\"\")","v":""},{"$f":"IFERROR(IF(ShowHolidays,IF(INDEX(tblHolidays[],MATCH(DATE(CalYear,MONTH(D7),DAY(D7)),IF(ShowObserved,tblHolidays[الصحيح],tblHolidays[اليوم]),0),6),INDEX(tblHolidays[],MATCH(DATE(CalYear,MONTH(D7),DAY(D7)),IF(ShowObserved,tblHolidays[الصحيح],tblHolidays[اليوم]),0),2),\"\"),\"\"),\"\")","v":""},{"$f":"IFERROR(IF(ShowHolidays,IF(INDEX(tblHolidays[],MATCH(DATE(CalYear,MONTH(E7),DAY(E7)),IF(ShowObserved,tblHolidays[الصحيح],tblHolidays[اليوم]),0),6),INDEX(tblHolidays[],MATCH(DATE(CalYear,MONTH(E7),DAY(E7)),IF(ShowObserved,tblHolidays[الصحيح],tblHolidays[اليوم]),0),2),\"\"),\"\"),\"\")","v":""},{"$f":"IFERROR(IF(ShowHolidays,IF(INDEX(tblHolidays[],MATCH(DATE(CalYear,MONTH(F7),DAY(F7)),IF(ShowObserved,tblHolidays[الصحيح],tblHolidays[اليوم]),0),6),INDEX(tblHolidays[],MATCH(DATE(CalYear,MONTH(F7),DAY(F7)),IF(ShowObserved,tblHolidays[الصحيح],tblHolidays[اليوم]),0),2),\"\"),\"\"),\"\")","v":""},{"$f":"IFERROR(IF(ShowHolidays,IF(INDEX(tblHolidays[],MATCH(DATE(CalYear,MONTH(G7),DAY(G7)),IF(ShowObserved,tblHolidays[الصحيح],tblHolidays[اليوم]),0),6),INDEX(tblHolidays[],MATCH(DATE(CalYear,MONTH(G7),DAY(G7)),IF(ShowObserved,tblHolidays[الصحيح],tblHolidays[اليوم]),0),2),\"\"),\"\"),\"\")","v":""},{"$f":"IFERROR(IF(ShowHolidays,IF(INDEX(tblHolidays[],MATCH(DATE(CalYear,MONTH(H7),DAY(H7)),IF(ShowObserved,tblHolidays[الصحيح],tblHolidays[اليوم]),0),6),INDEX(tblHolidays[],MATCH(DATE(CalYear,MONTH(H7),DAY(H7)),IF(ShowObserved,tblHolidays[الصحيح],tblHolidays[اليوم]),0),2),\"\"),\"\"),\"\")","v":""}]
[null,{"$f":"الأيام+DATE(CalYear,7,1)-WEEKDAY(DATE(CalYear,7,1),(WeekStart=\"الإثنين\")+1)+15","v":"2018-07-15"},"2018-07-16","2018-07-17","2018-07-18","2018-07-19","2018-07-20","2018-07-21"]
[null,{"$f":"IFERROR(IF(ShowHolidays,IF(INDEX(tblHolidays[],MATCH(DATE(CalYear,MONTH(B9),DAY(B9)),IF(ShowObserved,tblHolidays[الصحيح],tblHolidays[اليوم]),0),6),INDEX(tblHolidays[],MATCH(DATE(CalYear,MONTH(B9),DAY(B9)),IF(ShowObserved,tblHolidays[الصحيح],tblHolidays[اليوم]),0),2),\"\"),\"\"),\"\")","v":""},{"$f":"IFERROR(IF(ShowHolidays,IF(INDEX(tblHolidays[],MATCH(DATE(CalYear,MONTH(C9),DAY(C9)),IF(ShowObserved,tblHolidays[الصحيح],tblHolidays[اليوم]),0),6),INDEX(tblHolidays[],MATCH(DATE(CalYear,MONTH(C9),DAY(C9)),IF(ShowObserved,tblHolidays[الصحيح],tblHolidays[اليوم]),0),2),\"\"),\"\"),\"\")","v":""},{"$f":"IFERROR(IF(ShowHolidays,IF(INDEX(tblHolidays[],MATCH(DATE(CalYear,MONTH(D9),DAY(D9)),IF(ShowObserved,tblHolidays[الصحيح],tblHolidays[اليوم]),0),6),INDEX(tblHolidays[],MATCH(DATE(CalYear,MONTH(D9),DAY(D9)),IF(ShowObserved,tblHolidays[الصحيح],tblHolidays[اليوم]),0),2),\"\"),\"\"),\"\")","v":""},{"$f":"IFERROR(IF(ShowHolidays,IF(INDEX(tblHolidays[],MATCH(DATE(CalYear,MONTH(E9),DAY(E9)),IF(ShowObserved,tblHolidays[الصحيح],tblHolidays[اليوم]),0),6),INDEX(tblHolidays[],MATCH(DATE(CalYear,MONTH(E9),DAY(E9)),IF(ShowObserved,tblHolidays[الصحيح],tblHolidays[اليوم]),0),2),\"\"),\"\"),\"\")","v":""},{"$f":"IFERROR(IF(ShowHolidays,IF(INDEX(tblHolidays[],MATCH(DATE(CalYear,MONTH(F9),DAY(F9)),IF(ShowObserved,tblHolidays[الصحيح],tblHolidays[اليوم]),0),6),INDEX(tblHolidays[],MATCH(DATE(CalYear,MONTH(F9),DAY(F9)),IF(ShowObserved,tblHolidays[الصحيح],tblHolidays[اليوم]),0),2),\"\"),\"\"),\"\")","v":""},{"$f":"IFERROR(IF(ShowHolidays,IF(INDEX(tblHolidays[],MATCH(DATE(CalYear,MONTH(G9),DAY(G9)),IF(ShowObserved,tblHolidays[الصحيح],tblHolidays[اليوم]),0),6),INDEX(tblHolidays[],MATCH(DATE(CalYear,MONTH(G9),DAY(G9)),IF(ShowObserved,tblHolidays[الصحيح],tblHolidays[اليوم]),0),2),\"\"),\"\"),\"\")","v":""},{"$f":"IFERROR(IF(ShowHolidays,IF(INDEX(tblHolidays[],MATCH(DATE(CalYear,MONTH(H9),DAY(H9)),IF(ShowObserved,tblHolidays[الصحيح],tblHolidays[اليوم]),0),6),INDEX(tblHolidays[],MATCH(DATE(CalYear,MONTH(H9),DAY(H9)),IF(ShowObserved,tblHolidays[الصحيح],tblHolidays[اليوم]),0),2),\"\"),\"\"),\"\")","v":""}]
[null,{"$f":"الأيام+DATE(CalYear,7,1)-WEEKDAY(DATE(CalYear,7,1),(WeekStart=\"الإثنين\")+1)+22","v":"2018-07-22"},"2018-07-23","2018-07-24","2018-07-25","2018-07-26","2018-07-27","2018-07-28"]
[null,{"$f":"IFERROR(IF(ShowHolidays,IF(INDEX(tblHolidays[],MATCH(DATE(CalYear,MONTH(B11),DAY(B11)),IF(ShowObserved,tblHolidays[الصحيح],tblHolidays[اليوم]),0),6),INDEX(tblHolidays[],MATCH(DATE(CalYear,MONTH(B11),DAY(B11)),IF(ShowObserved,tblHolidays[الصحيح],tblHolidays[اليوم]),0),2),\"\"),\"\"),\"\")","v":""},{"$f":"IFERROR(IF(ShowHolidays,IF(INDEX(tblHolidays[],MATCH(DATE(CalYear,MONTH(C11),DAY(C11)),IF(ShowObserved,tblHolidays[الصحيح],tblHolidays[اليوم]),0),6),INDEX(tblHolidays[],MATCH(DATE(CalYear,MONTH(C11),DAY(C11)),IF(ShowObserved,tblHolidays[الصحيح],tblHolidays[اليوم]),0),2),\"\"),\"\"),\"\")","v":""},{"$f":"IFERROR(IF(ShowHolidays,IF(INDEX(tblHolidays[],MATCH(DATE(CalYear,MONTH(D11),DAY(D11)),IF(ShowObserved,tblHolidays[الصحيح],tblHolidays[اليوم]),0),6),INDEX(tblHolidays[],MATCH(DATE(CalYear,MONTH(D11),DAY(D11)),IF(ShowObserved,tblHolidays[الصحيح],tblHolidays[اليوم]),0),2),\"\"),\"\"),\"\")","v":""},{"$f":"IFERROR(IF(ShowHolidays,IF(INDEX(tblHolidays[],MATCH(DATE(CalYear,MONTH(E11),DAY(E11)),IF(ShowObserved,tblHolidays[الصحيح],tblHolidays[اليوم]),0),6),INDEX(tblHolidays[],MATCH(DATE(CalYear,MONTH(E11),DAY(E11)),IF(ShowObserved,tblHolidays[الصحيح],tblHolidays[اليوم]),0),2),\"\"),\"\"),\"\")","v":""},{"$f":"IFERROR(IF(ShowHolidays,IF(INDEX(tblHolidays[],MATCH(DATE(CalYear,MONTH(F11),DAY(F11)),IF(ShowObserved,tblHolidays[الصحيح],tblHolidays[اليوم]),0),6),INDEX(tblHolidays[],MATCH(DATE(CalYear,MONTH(F11),DAY(F11)),IF(ShowObserved,tblHolidays[الصحيح],tblHolidays[اليوم]),0),2),\"\"),\"\"),\"\")","v":""},{"$f":"IFERROR(IF(ShowHolidays,IF(INDEX(tblHolidays[],MATCH(DATE(CalYear,MONTH(G11),DAY(G11)),IF(ShowObserved,tblHolidays[الصحيح],tblHolidays[اليوم]),0),6),INDEX(tblHolidays[],MATCH(DATE(CalYear,MONTH(G11),DAY(G11)),IF(ShowObserved,tblHolidays[الصحيح],tblHolidays[اليوم]),0),2),\"\"),\"\"),\"\")","v":""},{"$f":"IFERROR(IF(ShowHolidays,IF(INDEX(tblHolidays[],MATCH(DATE(CalYear,MONTH(H11),DAY(H11)),IF(ShowObserved,tblHolidays[الصحيح],tblHolidays[اليوم]),0),6),INDEX(tblHolidays[],MATCH(DATE(CalYear,MONTH(H11),DAY(H11)),IF(ShowObserved,tblHolidays[الصحيح],tblHolidays[اليوم]),0),2),\"\"),\"\"),\"\")","v":""}]
[null,{"$f":"الأيام+DATE(CalYear,7,1)-WEEKDAY(DATE(CalYear,7,1),(WeekStart=\"الإثنين\")+1)+29","v":"2018-07-29"},"2018-07-30","2018-07-31","2018-08-01","2018-08-02","2018-08-03","2018-08-04"]
[null,{"$f":"IFERROR(IF(ShowHolidays,IF(INDEX(tblHolidays[],MATCH(DATE(CalYear,MONTH(B13),DAY(B13)),IF(ShowObserved,tblHolidays[الصحيح],tblHolidays[اليوم]),0),6),INDEX(tblHolidays[],MATCH(DATE(CalYear,MONTH(B13),DAY(B13)),IF(ShowObserved,tblHolidays[الصحيح],tblHolidays[اليوم]),0),2),\"\"),\"\"),\"\")","v":""},{"$f":"IFERROR(IF(ShowHolidays,IF(INDEX(tblHolidays[],MATCH(DATE(CalYear,MONTH(C13),DAY(C13)),IF(ShowObserved,tblHolidays[الصحيح],tblHolidays[اليوم]),0),6),INDEX(tblHolidays[],MATCH(DATE(CalYear,MONTH(C13),DAY(C13)),IF(ShowObserved,tblHolidays[الصحيح],tblHolidays[اليوم]),0),2),\"\"),\"\"),\"\")","v":""},{"$f":"IFERROR(IF(ShowHolidays,IF(INDEX(tblHolidays[],MATCH(DATE(CalYear,MONTH(D13),DAY(D13)),IF(ShowObserved,tblHolidays[الصحيح],tblHolidays[اليوم]),0),6),INDEX(tblHolidays[],MATCH(DATE(CalYear,MONTH(D13),DAY(D13)),IF(ShowObserved,tblHolidays[الصحيح],tblHolidays[اليوم]),0),2),\"\"),\"\"),\"\")","v":""},{"$f":"IFERROR(IF(ShowHolidays,IF(INDEX(tblHolidays[],MATCH(DATE(CalYear,MONTH(E13),DAY(E13)),IF(ShowObserved,tblHolidays[الصحيح],tblHolidays[اليوم]),0),6),INDEX(tblHolidays[],MATCH(DATE(CalYear,MONTH(E13),DAY(E13)),IF(ShowObserved,tblHolidays[الصحيح],tblHolidays[اليوم]),0),2),\"\"),\"\"),\"\")","v":""},{"$f":"IFERROR(IF(ShowHolidays,IF(INDEX(tblHolidays[],MATCH(DATE(CalYear,MONTH(F13),DAY(F13)),IF(ShowObserved,tblHolidays[الصحيح],tblHolidays[اليوم]),0),6),INDEX(tblHolidays[],MATCH(DATE(CalYear,MONTH(F13),DAY(F13)),IF(ShowObserved,tblHolidays[الصحيح],tblHolidays[اليوم]),0),2),\"\"),\"\"),\"\")","v":""},{"$f":"IFERROR(IF(ShowHolidays,IF(INDEX(tblHolidays[],MATCH(DATE(CalYear,MONTH(G13),DAY(G13)),IF(ShowObserved,tblHolidays[الصحيح],tblHolidays[اليوم]),0),6),INDEX(tblHolidays[],MATCH(DATE(CalYear,MONTH(G13),DAY(G13)),IF(ShowObserved,tblHolidays[الصحيح],tblHolidays[اليوم]),0),2),\"\"),\"\"),\"\")","v":""},{"$f":"IFERROR(IF(ShowHolidays,IF(INDEX(tblHolidays[],MATCH(DATE(CalYear,MONTH(H13),DAY(H13)),IF(ShowObserved,tblHolidays[الصحيح],tblHolidays[اليوم]),0),6),INDEX(tblHolidays[],MATCH(DATE(CalYear,MONTH(H13),DAY(H13)),IF(ShowObserved,tblHolidays[الصحيح],tblHolidays[اليوم]),0),2),\"\"),\"\"),\"\")","v":""}]
[null,{"$f":"الأيام+DATE(CalYear,7,1)-WEEKDAY(DATE(CalYear,7,1),(WeekStart=\"الإثنين\")+1)+36","v":"2018-08-05"},"2018-08-06","الملاحظات"]
[null,{"$f":"IFERROR(IF(ShowHolidays,IF(INDEX(tblHolidays[],MATCH(DATE(CalYear,MONTH(B15),DAY(B15)),IF(ShowObserved,tblHolidays[الصحيح],tblHolidays[اليوم]),0),6),INDEX(tblHolidays[],MATCH(DATE(CalYear,MONTH(B15),DAY(B15)),IF(ShowObserved,tblHolidays[الصحيح],tblHolidays[اليوم]),0),2),\"\"),\"\"),\"\")","v":""},{"$f":"IFERROR(IF(ShowHolidays,IF(INDEX(tblHolidays[],MATCH(DATE(CalYear,MONTH(C15),DAY(C15)),IF(ShowObserved,tblHolidays[الصحيح],tblHolidays[اليوم]),0),6),INDEX(tblHolidays[],MATCH(DATE(CalYear,MONTH(C15),DAY(C15)),IF(ShowObserved,tblHolidays[الصحيح],tblHolidays[اليوم]),0),2),\"\"),\"\"),\"\")","v":""}]

{"sheet":"أغسطس","index":8,"n_rows":16,"n_cols":8,"rows_kept":16,"merged":[[1,1,1,3],[14,3,14,7],[15,3,15,7],[16,1,16,7]]}
[]
[null,{"$f":"B9","v":"2018-08-12"}]
[]
[null,{"$f":"WeekStart","v":"الأحد"},{"$f":"UPPER(TEXT(C5,\"dddd\"))","v":"الإثنين"},"الثلاثاء","الأربعاء","الخميس","الجمعة","السبت"]
[null,{"$f":"الأيام+DATE(CalYear,8,1)-WEEKDAY(DATE(CalYear,8,1),(WeekStart=\"الإثنين\")+1)+1","v":"2018-07-29"},"2018-07-30","2018-07-31","2018-08-01","2018-08-02","2018-08-03","2018-08-04"]
[null,{"$f":"IFERROR(IF(ShowHolidays,IF(INDEX(tblHolidays[],MATCH(DATE(CalYear-(DAY(B5)>15)+(ROW()>6),MONTH(B5),DAY(B5)),IF(ShowObserved,tblHolidays[الصحيح],tblHolidays[اليوم]),0),6),INDEX(tblHolidays[],MATCH(DATE(CalYear-(DAY(B5)>15)+(ROW()>6),MONTH(B5),DAY(B5)),IF(ShowObserved,tblHolidays[الصحيح],tblHolidays[اليوم]),0),2),\"\"),\"\"),\"\")","v":""},{"$f":"IFERROR(IF(ShowHolidays,IF(INDEX(tblHolidays[],MATCH(DATE(CalYear-(DAY(C5)>15)+(ROW()>6),MONTH(C5),DAY(C5)),IF(ShowObserved,tblHolidays[الصحيح],tblHolidays[اليوم]),0),6),INDEX(tblHolidays[],MATCH(DATE(CalYear-(DAY(C5)>15)+(ROW()>6),MONTH(C5),DAY(C5)),IF(ShowObserved,tblHolidays[الصحيح],tblHolidays[اليوم]),0),2),\"\"),\"\"),\"\")","v":""},{"$f":"IFERROR(IF(ShowHolidays,IF(INDEX(tblHolidays[],MATCH(DATE(CalYear-(DAY(D5)>15)+(ROW()>6),MONTH(D5),DAY(D5)),IF(ShowObserved,tblHolidays[الصحيح],tblHolidays[اليوم]),0),6),INDEX(tblHolidays[],MATCH(DATE(CalYear-(DAY(D5)>15)+(ROW()>6),MONTH(D5),DAY(D5)),IF(ShowObserved,tblHolidays[الصحيح],tblHolidays[اليوم]),0),2),\"\"),\"\"),\"\")","v":""},{"$f":"IFERROR(IF(ShowHolidays,IF(INDEX(tblHolidays[],MATCH(DATE(CalYear-(DAY(E5)>15)+(ROW()>6),MONTH(E5),DAY(E5)),IF(ShowObserved,tblHolidays[الصحيح],tblHolidays[اليوم]),0),6),INDEX(tblHolidays[],MATCH(DATE(CalYear-(DAY(E5)>15)+(ROW()>6),MONTH(E5),DAY(E5)),IF(ShowObserved,tblHolidays[الصحيح],tblHolidays[اليوم]),0),2),\"\"),\"\"),\"\")","v":""},{"$f":"IFERROR(IF(ShowHolidays,IF(INDEX(tblHolidays[],MATCH(DATE(CalYear-(DAY(F5)>15)+(ROW()>6),MONTH(F5),DAY(F5)),IF(ShowObserved,tblHolidays[الصحيح],tblHolidays[اليوم]),0),6),INDEX(tblHolidays[],MATCH(DATE(CalYear-(DAY(F5)>15)+(ROW()>6),MONTH(F5),DAY(F5)),IF(ShowObserved,tblHolidays[الصحيح],tblHolidays[اليوم]),0),2),\"\"),\"\"),\"\")","v":""},{"$f":"IFERROR(IF(ShowHolidays,IF(INDEX(tblHolidays[],MATCH(DATE(CalYear-(DAY(G5)>15)+(ROW()>6),MONTH(G5),DAY(G5)),IF(ShowObserved,tblHolidays[الصحيح],tblHolidays[اليوم]),0),6),INDEX(tblHolidays[],MATCH(DATE(CalYear-(DAY(G5)>15)+(ROW()>6),MONTH(G5),DAY(G5)),IF(ShowObserved,tblHolidays[الصحيح],tblHolidays[اليوم]),0),2),\"\"),\"\"),\"\")","v":""},{"$f":"IFERROR(IF(ShowHolidays,IF(INDEX(tblHolidays[],MATCH(DATE(CalYear-(DAY(H5)>15)+(ROW()>6),MONTH(H5),DAY(H5)),IF(ShowObserved,tblHolidays[الصحيح],tblHolidays[اليوم]),0),6),INDEX(tblHolidays[],MATCH(DATE(CalYear-(DAY(H5)>15)+(ROW()>6),MONTH(H5),DAY(H5)),IF(ShowObserved,tblHolidays[الصحيح],tblHolidays[اليوم]),0),2),\"\"),\"\"),\"\")","v":""}]
[null,{"$f":"الأيام+DATE(CalYear,8,1)-WEEKDAY(DATE(CalYear,8,1),(WeekStart=\"الإثنين\")+1)+8","v":"2018-08-05"},"2018-08-06","2018-08-07","2018-08-08","2018-08-09","2018-08-10","2018-08-11"]
[null,{"$f":"IFERROR(IF(ShowHolidays,IF(INDEX(tblHolidays[],MATCH(DATE(CalYear,MONTH(B7),DAY(B7)),IF(ShowObserved,tblHolidays[الصحيح],tblHolidays[اليوم]),0),6),INDEX(tblHolidays[],MATCH(DATE(CalYear,MONTH(B7),DAY(B7)),IF(ShowObserved,tblHolidays[الصحيح],tblHolidays[اليوم]),0),2),\"\"),\"\"),\"\")","v":""},{"$f":"IFERROR(IF(ShowHolidays,IF(INDEX(tblHolidays[],MATCH(DATE(CalYear,MONTH(C7),DAY(C7)),IF(ShowObserved,tblHolidays[الصحيح],tblHolidays[اليوم]),0),6),INDEX(tblHolidays[],MATCH(DATE(CalYear,MONTH(C7),DAY(C7)),IF(ShowObserved,tblHolidays[الصحيح],tblHolidays[اليوم]),0),2),\"\"),\"\"),\"\")","v":""},{"$f":"IFERROR(IF(ShowHolidays,IF(INDEX(tblHolidays[],MATCH(DATE(CalYear,MONTH(D7),DAY(D7)),IF(ShowObserved,tblHolidays[الصحيح],tblHolidays[اليوم]),0),6),INDEX(tblHolidays[],MATCH(DATE(CalYear,MONTH(D7),DAY(D7)),IF(ShowObserved,tblHolidays[الصحيح],tblHolidays[اليوم]),0),2),\"\"),\"\"),\"\")","v":""},{"$f":"IFERROR(IF(ShowHolidays,IF(INDEX(tblHolidays[],MATCH(DATE(CalYear,MONTH(E7),DAY(E7)),IF(ShowObserved,tblHolidays[الصحيح],tblHolidays[اليوم]),0),6),INDEX(tblHolidays[],MATCH(DATE(CalYear,MONTH(E7),DAY(E7)),IF(ShowObserved,tblHolidays[الصحيح],tblHolidays[اليوم]),0),2),\"\"),\"\"),\"\")","v":""},{"$f":"IFERROR(IF(ShowHolidays,IF(INDEX(tblHolidays[],MATCH(DATE(CalYear,MONTH(F7),DAY(F7)),IF(ShowObserved,tblHolidays[الصحيح],tblHolidays[اليوم]),0),6),INDEX(tblHolidays[],MATCH(DATE(CalYear,MONTH(F7),DAY(F7)),IF(ShowObserved,tblHolidays[الصحيح],tblHolidays[اليوم]),0),2),\"\"),\"\"),\"\")","v":""},{"$f":"IFERROR(IF(ShowHolidays,IF(INDEX(tblHolidays[],MATCH(DATE(CalYear,MONTH(G7),DAY(G7)),IF(ShowObserved,tblHolidays[الصحيح],tblHolidays[اليوم]),0),6),INDEX(tblHolidays[],MATCH(DATE(CalYear,MONTH(G7),DAY(G7)),IF(ShowObserved,tblHolidays[الصحيح],tblHolidays[اليوم]),0),2),\"\"),\"\"),\"\")","v":""},{"$f":"IFERROR(IF(ShowHolidays,IF(INDEX(tblHolidays[],MATCH(DATE(CalYear,MONTH(H7),DAY(H7)),IF(ShowObserved,tblHolidays[الصحيح],tblHolidays[اليوم]),0),6),INDEX(tblHolidays[],MATCH(DATE(CalYear,MONTH(H7),DAY(H7)),IF(ShowObserved,tblHolidays[الصحيح],tblHolidays[اليوم]),0),2),\"\"),\"\"),\"\")","v":""}]
[null,{"$f":"الأيام+DATE(CalYear,8,1)-WEEKDAY(DATE(CalYear,8,1),(WeekStart=\"الإثنين\")+1)+15","v":"2018-08-12"},"2018-08-13","2018-08-14","2018-08-15","2018-08-16","2018-08-17","2018-08-18"]
[null,{"$f":"IFERROR(IF(ShowHolidays,IF(INDEX(tblHolidays[],MATCH(DATE(CalYear,MONTH(B9),DAY(B9)),IF(ShowObserved,tblHolidays[الصحيح],tblHolidays[اليوم]),0),6),INDEX(tblHolidays[],MATCH(DATE(CalYear,MONTH(B9),DAY(B9)),IF(ShowObserved,tblHolidays[الصحيح],tblHolidays[اليوم]),0),2),\"\"),\"\"),\"\")","v":""},{"$f":"IFERROR(IF(ShowHolidays,IF(INDEX(tblHolidays[],MATCH(DATE(CalYear,MONTH(C9),DAY(C9)),IF(ShowObserved,tblHolidays[الصحيح],tblHolidays[اليوم]),0),6),INDEX(tblHolidays[],MATCH(DATE(CalYear,MONTH(C9),DAY(C9)),IF(ShowObserved,tblHolidays[الصحيح],tblHolidays[اليوم]),0),2),\"\"),\"\"),\"\")","v":""},{"$f":"IFERROR(IF(ShowHolidays,IF(INDEX(tblHolidays[],MATCH(DATE(CalYear,MONTH(D9),DAY(D9)),IF(ShowObserved,tblHolidays[الصحيح],tblHolidays[اليوم]),0),6),INDEX(tblHolidays[],MATCH(DATE(CalYear,MONTH(D9),DAY(D9)),IF(ShowObserved,tblHolidays[الصحيح],tblHolidays[اليوم]),0),2),\"\"),\"\"),\"\")","v":""},{"$f":"IFERROR(IF(ShowHolidays,IF(INDEX(tblHolidays[],MATCH(DATE(CalYear,MONTH(E9),DAY(E9)),IF(ShowObserved,tblHolidays[الصحيح],tblHolidays[اليوم]),0),6),INDEX(tblHolidays[],MATCH(DATE(CalYear,MONTH(E9),DAY(E9)),IF(ShowObserved,tblHolidays[الصحيح],tblHolidays[اليوم]),0),2),\"\"),\"\"),\"\")","v":""},{"$f":"IFERROR(IF(ShowHolidays,IF(INDEX(tblHolidays[],MATCH(DATE(CalYear,MONTH(F9),DAY(F9)),IF(ShowObserved,tblHolidays[الصحيح],tblHolidays[اليوم]),0),6),INDEX(tblHolidays[],MATCH(DATE(CalYear,MONTH(F9),DAY(F9)),IF(ShowObserved,tblHolidays[الصحيح],tblHolidays[اليوم]),0),2),\"\"),\"\"),\"\")","v":""},{"$f":"IFERROR(IF(ShowHolidays,IF(INDEX(tblHolidays[],MATCH(DATE(CalYear,MONTH(G9),DAY(G9)),IF(ShowObserved,tblHolidays[الصحيح],tblHolidays[اليوم]),0),6),INDEX(tblHolidays[],MATCH(DATE(CalYear,MONTH(G9),DAY(G9)),IF(ShowObserved,tblHolidays[الصحيح],tblHolidays[اليوم]),0),2),\"\"),\"\"),\"\")","v":""},{"$f":"IFERROR(IF(ShowHolidays,IF(INDEX(tblHolidays[],MATCH(DATE(CalYear,MONTH(H9),DAY(H9)),IF(ShowObserved,tblHolidays[الصحيح],tblHolidays[اليوم]),0),6),INDEX(tblHolidays[],MATCH(DATE(CalYear,MONTH(H9),DAY(H9)),IF(ShowObserved,tblHolidays[الصحيح],tblHolidays[اليوم]),0),2),\"\"),\"\"),\"\")","v":""}]
[null,{"$f":"الأيام+DATE(CalYear,8,1)-WEEKDAY(DATE(CalYear,8,1),(WeekStart=\"الإثنين\")+1)+22","v":"2018-08-19"},"2018-08-20","2018-08-21","2018-08-22","2018-08-23","2018-08-24","2018-08-25"]
[null,{"$f":"IFERROR(IF(ShowHolidays,IF(INDEX(tblHolidays[],MATCH(DATE(CalYear,MONTH(B11),DAY(B11)),IF(ShowObserved,tblHolidays[الصحيح],tblHolidays[اليوم]),0),6),INDEX(tblHolidays[],MATCH(DATE(CalYear,MONTH(B11),DAY(B11)),IF(ShowObserved,tblHolidays[الصحيح],tblHolidays[اليوم]),0),2),\"\"),\"\"),\"\")","v":""},{"$f":"IFERROR(IF(ShowHolidays,IF(INDEX(tblHolidays[],MATCH(DATE(CalYear,MONTH(C11),DAY(C11)),IF(ShowObserved,tblHolidays[الصحيح],tblHolidays[اليوم]),0),6),INDEX(tblHolidays[],MATCH(DATE(CalYear,MONTH(C11),DAY(C11)),IF(ShowObserved,tblHolidays[الصحيح],tblHolidays[اليوم]),0),2),\"\"),\"\"),\"\")","v":""},{"$f":"IFERROR(IF(ShowHolidays,IF(INDEX(tblHolidays[],MATCH(DATE(CalYear,MONTH(D11),DAY(D11)),IF(ShowObserved,tblHolidays[الصحيح],tblHolidays[اليوم]),0),6),INDEX(tblHolidays[],MATCH(DATE(CalYear,MONTH(D11),DAY(D11)),IF(ShowObserved,tblHolidays[الصحيح],tblHolidays[اليوم]),0),2),\"\"),\"\"),\"\")","v":""},{"$f":"IFERROR(IF(ShowHolidays,IF(INDEX(tblHolidays[],MATCH(DATE(CalYear,MONTH(E11),DAY(E11)),IF(ShowObserved,tblHolidays[الصحيح],tblHolidays[اليوم]),0),6),INDEX(tblHolidays[],MATCH(DATE(CalYear,MONTH(E11),DAY(E11)),IF(ShowObserved,tblHolidays[الصحيح],tblHolidays[اليوم]),0),2),\"\"),\"\"),\"\")","v":""},{"$f":"IFERROR(IF(ShowHolidays,IF(INDEX(tblHolidays[],MATCH(DATE(CalYear,MONTH(F11),DAY(F11)),IF(ShowObserved,tblHolidays[الصحيح],tblHolidays[اليوم]),0),6),INDEX(tblHolidays[],MATCH(DATE(CalYear,MONTH(F11),DAY(F11)),IF(ShowObserved,tblHolidays[الصحيح],tblHolidays[اليوم]),0),2),\"\"),\"\"),\"\")","v":""},{"$f":"IFERROR(IF(ShowHolidays,IF(INDEX(tblHolidays[],MATCH(DATE(CalYear,MONTH(G11),DAY(G11)),IF(ShowObserved,tblHolidays[الصحيح],tblHolidays[اليوم]),0),6),INDEX(tblHolidays[],MATCH(DATE(CalYear,MONTH(G11),DAY(G11)),IF(ShowObserved,tblHolidays[الصحيح],tblHolidays[اليوم]),0),2),\"\"),\"\"),\"\")","v":""},{"$f":"IFERROR(IF(ShowHolidays,IF(INDEX(tblHolidays[],MATCH(DATE(CalYear,MONTH(H11),DAY(H11)),IF(ShowObserved,tblHolidays[الصحيح],tblHolidays[اليوم]),0),6),INDEX(tblHolidays[],MATCH(DATE(CalYear,MONTH(H11),DAY(H11)),IF(ShowObserved,tblHolidays[الصحيح],tblHolidays[اليوم]),0),2),\"\"),\"\"),\"\")","v":""}]
[null,{"$f":"الأيام+DATE(CalYear,8,1)-WEEKDAY(DATE(CalYear,8,1),(WeekStart=\"الإثنين\")+1)+29","v":"2018-08-26"},"2018-08-27","2018-08-28","2018-08-29","2018-08-30","2018-08-31","2018-09-01"]
[null,{"$f":"IFERROR(IF(ShowHolidays,IF(INDEX(tblHolidays[],MATCH(DATE(CalYear,MONTH(B13),DAY(B13)),IF(ShowObserved,tblHolidays[الصحيح],tblHolidays[اليوم]),0),6),INDEX(tblHolidays[],MATCH(DATE(CalYear,MONTH(B13),DAY(B13)),IF(ShowObserved,tblHolidays[الصحيح],tblHolidays[اليوم]),0),2),\"\"),\"\"),\"\")","v":""},{"$f":"IFERROR(IF(ShowHolidays,IF(INDEX(tblHolidays[],MATCH(DATE(CalYear,MONTH(C13),DAY(C13)),IF(ShowObserved,tblHolidays[الصحيح],tblHolidays[اليوم]),0),6),INDEX(tblHolidays[],MATCH(DATE(CalYear,MONTH(C13),DAY(C13)),IF(ShowObserved,tblHolidays[الصحيح],tblHolidays[اليوم]),0),2),\"\"),\"\"),\"\")","v":""},{"$f":"IFERROR(IF(ShowHolidays,IF(INDEX(tblHolidays[],MATCH(DATE(CalYear,MONTH(D13),DAY(D13)),IF(ShowObserved,tblHolidays[الصحيح],tblHolidays[اليوم]),0),6),INDEX(tblHolidays[],MATCH(DATE(CalYear,MONTH(D13),DAY(D13)),IF(ShowObserved,tblHolidays[الصحيح],tblHolidays[اليوم]),0),2),\"\"),\"\"),\"\")","v":""},{"$f":"IFERROR(IF(ShowHolidays,IF(INDEX(tblHolidays[],MATCH(DATE(CalYear,MONTH(E13),DAY(E13)),IF(ShowObserved,tblHolidays[الصحيح],tblHolidays[اليوم]),0),6),INDEX(tblHolidays[],MATCH(DATE(CalYear,MONTH(E13),DAY(E13)),IF(ShowObserved,tblHolidays[الصحيح],tblHolidays[اليوم]),0),2),\"\"),\"\"),\"\")","v":""},{"$f":"IFERROR(IF(ShowHolidays,IF(INDEX(tblHolidays[],MATCH(DATE(CalYear,MONTH(F13),DAY(F13)),IF(ShowObserved,tblHolidays[الصحيح],tblHolidays[اليوم]),0),6),INDEX(tblHolidays[],MATCH(DATE(CalYear,MONTH(F13),DAY(F13)),IF(ShowObserved,tblHolidays[الصحيح],tblHolidays[اليوم]),0),2),\"\"),\"\"),\"\")","v":""},{"$f":"IFERROR(IF(ShowHolidays,IF(INDEX(tblHolidays[],MATCH(DATE(CalYear,MONTH(G13),DAY(G13)),IF(ShowObserved,tblHolidays[الصحيح],tblHolidays[اليوم]),0),6),INDEX(tblHolidays[],MATCH(DATE(CalYear,MONTH(G13),DAY(G13)),IF(ShowObserved,tblHolidays[الصحيح],tblHolidays[اليوم]),0),2),\"\"),\"\"),\"\")","v":""},{"$f":"IFERROR(IF(ShowHolidays,IF(INDEX(tblHolidays[],MATCH(DATE(CalYear,MONTH(H13),DAY(H13)),IF(ShowObserved,tblHolidays[الصحيح],tblHolidays[اليوم]),0),6),INDEX(tblHolidays[],MATCH(DATE(CalYear,MONTH(H13),DAY(H13)),IF(ShowObserved,tblHolidays[الصحيح],tblHolidays[اليوم]),0),2),\"\"),\"\"),\"\")","v":""}]
[null,{"$f":"الأيام+DATE(CalYear,8,1)-WEEKDAY(DATE(CalYear,8,1),(WeekStart=\"الإثنين\")+1)+36","v":"2018-09-02"},"2018-09-03","الملاحظات"]
[null,{"$f":"IFERROR(IF(ShowHolidays,IF(INDEX(tblHolidays[],MATCH(DATE(CalYear,MONTH(B15),DAY(B15)),IF(ShowObserved,tblHolidays[الصحيح],tblHolidays[اليوم]),0),6),INDEX(tblHolidays[],MATCH(DATE(CalYear,MONTH(B15),DAY(B15)),IF(ShowObserved,tblHolidays[الصحيح],tblHolidays[اليوم]),0),2),\"\"),\"\"),\"\")","v":""},{"$f":"IFERROR(IF(ShowHolidays,IF(INDEX(tblHolidays[],MATCH(DATE(CalYear,MONTH(C15),DAY(C15)),IF(ShowObserved,tblHolidays[الصحيح],tblHolidays[اليوم]),0),6),INDEX(tblHolidays[],MATCH(DATE(CalYear,MONTH(C15),DAY(C15)),IF(ShowObserved,tblHolidays[الصحيح],tblHolidays[اليوم]),0),2),\"\"),\"\"),\"\")","v":"عيد العمّال"}]

{"sheet":"سبتمبر","index":9,"n_rows":16,"n_cols":8,"rows_kept":16,"merged":[[1,1,1,3],[14,3,14,7],[15,3,15,7],[16,1,16,7]]}
[]
[null,{"$f":"B9","v":"2018-09-09"}]
[]
[null,{"$f":"WeekStart","v":"الأحد"},{"$f":"UPPER(TEXT(C5,\"dddd\"))","v":"الإثنين"},"الثلاثاء","الأربعاء","الخميس","الجمعة","السبت"]
[null,{"$f":"الأيام+DATE(CalYear,9,1)-WEEKDAY(DATE(CalYear,9,1),(WeekStart=\"الإثنين\")+1)+1","v":"2018-08-26"},"2018-08-27","2018-08-28","2018-08-29","2018-08-30","2018-08-31","2018-09-01"]
[null,{"$f":"IFERROR(IF(ShowHolidays,IF(INDEX(tblHolidays[],MATCH(DATE(CalYear-(DAY(B5)>15)+(ROW()>6),MONTH(B5),DAY(B5)),IF(ShowObserved,tblHolidays[الصحيح],tblHolidays[اليوم]),0),6),INDEX(tblHolidays[],MATCH(DATE(CalYear-(DAY(B5)>15)+(ROW()>6),MONTH(B5),DAY(B5)),IF(ShowObserved,tblHolidays[الصحيح],tblHolidays[اليوم]),0),2),\"\"),\"\"),\"\")","v":""},{"$f":"IFERROR(IF(ShowHolidays,IF(INDEX(tblHolidays[],MATCH(DATE(CalYear-(DAY(C5)>15)+(ROW()>6),MONTH(C5),DAY(C5)),IF(ShowObserved,tblHolidays[الصحيح],tblHolidays[اليوم]),0),6),INDEX(tblHolidays[],MATCH(DATE(CalYear-(DAY(C5)>15)+(ROW()>6),MONTH(C5),DAY(C5)),IF(ShowObserved,tblHolidays[الصحيح],tblHolidays[اليوم]),0),2),\"\"),\"\"),\"\")","v":""},{"$f":"IFERROR(IF(ShowHolidays,IF(INDEX(tblHolidays[],MATCH(DATE(CalYear-(DAY(D5)>15)+(ROW()>6),MONTH(D5),DAY(D5)),IF(ShowObserved,tblHolidays[الصحيح],tblHolidays[اليوم]),0),6),INDEX(tblHolidays[],MATCH(DATE(CalYear-(DAY(D5)>15)+(ROW()>6),MONTH(D5),DAY(D5)),IF(ShowObserved,tblHolidays[الصحيح],tblHolidays[اليوم]),0),2),\"\"),\"\"),\"\")","v":""},{"$f":"IFERROR(IF(ShowHolidays,IF(INDEX(tblHolidays[],MATCH(DATE(CalYear-(DAY(E5)>15)+(ROW()>6),MONTH(E5),DAY(E5)),IF(ShowObserved,tblHolidays[الصحيح],tblHolidays[اليوم]),0),6),INDEX(tblHolidays[],MATCH(DATE(CalYear-(DAY(E5)>15)+(ROW()>6),MONTH(E5),DAY(E5)),IF(ShowObserved,tblHolidays[الصحيح],tblHolidays[اليوم]),0),2),\"\"),\"\"),\"\")","v":""},{"$f":"IFERROR(IF(ShowHolidays,IF(INDEX(tblHolidays[],MATCH(DATE(CalYear-(DAY(F5)>15)+(ROW()>6),MONTH(F5),DAY(F5)),IF(ShowObserved,tblHolidays[الصحيح],tblHolidays[اليوم]),0),6),INDEX(tblHolidays[],MATCH(DATE(CalYear-(DAY(F5)>15)+(ROW()>6),MONTH(F5),DAY(F5)),IF(ShowObserved,tblHolidays[الصحيح],tblHolidays[اليوم]),0),2),\"\"),\"\"),\"\")","v":""},{"$f":"IFERROR(IF(ShowHolidays,IF(INDEX(tblHolidays[],MATCH(DATE(CalYear-(DAY(G5)>15)+(ROW()>6),MONTH(G5),DAY(G5)),IF(ShowObserved,tblHolidays[الصحيح],tblHolidays[اليوم]),0),6),INDEX(tblHolidays[],MATCH(DATE(CalYear-(DAY(G5)>15)+(ROW()>6),MONTH(G5),DAY(G5)),IF(ShowObserved,tblHolidays[الصحيح],tblHolidays[اليوم]),0),2),\"\"),\"\"),\"\")","v":""},{"$f":"IFERROR(IF(ShowHolidays,IF(INDEX(tblHolidays[],MATCH(DATE(CalYear-(DAY(H5)>15)+(ROW()>6),MONTH(H5),DAY(H5)),IF(ShowObserved,tblHolidays[الصحيح],tblHolidays[اليوم]),0),6),INDEX(tblHolidays[],MATCH(DATE(CalYear-(DAY(H5)>15)+(ROW()>6),MONTH(H5),DAY(H5)),IF(ShowObserved,tblHolidays[الصحيح],tblHolidays[اليوم]),0),2),\"\"),\"\"),\"\")","v":""}]
[null,{"$f":"الأيام+DATE(CalYear,9,1)-WEEKDAY(DATE(CalYear,9,1),(WeekStart=\"الإثنين\")+1)+8","v":"2018-09-02"},"2018-09-03","2018-09-04","2018-09-05","2018-09-06","2018-09-07","2018-09-08"]
[null,{"$f":"IFERROR(IF(ShowHolidays,IF(INDEX(tblHolidays[],MATCH(DATE(CalYear,MONTH(B7),DAY(B7)),IF(ShowObserved,tblHolidays[الصحيح],tblHolidays[اليوم]),0),6),INDEX(tblHolidays[],MATCH(DATE(CalYear,MONTH(B7),DAY(B7)),IF(ShowObserved,tblHolidays[الصحيح],tblHolidays[اليوم]),0),2),\"\"),\"\"),\"\")","v":""},{"$f":"IFERROR(IF(ShowHolidays,IF(INDEX(tblHolidays[],MATCH(DATE(CalYear,MONTH(C7),DAY(C7)),IF(ShowObserved,tblHolidays[الصحيح],tblHolidays[اليوم]),0),6),INDEX(tblHolidays[],MATCH(DATE(CalYear,MONTH(C7),DAY(C7)),IF(ShowObserved,tblHolidays[الصحيح],tblHolidays[اليوم]),0),2),\"\"),\"\"),\"\")","v":"عيد العمّال"},{"$f":"IFERROR(IF(ShowHolidays,IF(INDEX(tblHolidays[],MATCH(DATE(CalYear,MONTH(D7),DAY(D7)),IF(ShowObserved,tblHolidays[الصحيح],tblHolidays[اليوم]),0),6),INDEX(tblHolidays[],MATCH(DATE(CalYear,MONTH(D7),DAY(D7)),IF(ShowObserved,tblHolidays[الصحيح],tblHolidays[اليوم]),0),2),\"\"),\"\"),\"\")","v":""},{"$f":"IFERROR(IF(ShowHolidays,IF(INDEX(tblHolidays[],MATCH(DATE(CalYear,MONTH(E7),DAY(E7)),IF(ShowObserved,tblHolidays[الصحيح],tblHolidays[اليوم]),0),6),INDEX(tblHolidays[],MATCH(DATE(CalYear,MONTH(E7),DAY(E7)),IF(ShowObserved,tblHolidays[الصحيح],tblHolidays[اليوم]),0),2),\"\"),\"\"),\"\")","v":""},{"$f":"IFERROR(IF(ShowHolidays,IF(INDEX(tblHolidays[],MATCH(DATE(CalYear,MONTH(F7),DAY(F7)),IF(ShowObserved,tblHolidays[الصحيح],tblHolidays[اليوم]),0),6),INDEX(tblHolidays[],MATCH(DATE(CalYear,MONTH(F7),DAY(F7)),IF(ShowObserved,tblHolidays[الصحيح],tblHolidays[اليوم]),0),2),\"\"),\"\"),\"\")","v":""},{"$f":"IFERROR(IF(ShowHolidays,IF(INDEX(tblHolidays[],MATCH(DATE(CalYear,MONTH(G7),DAY(G7)),IF(ShowObserved,tblHolidays[الصحيح],tblHolidays[اليوم]),0),6),INDEX(tblHolidays[],MATCH(DATE(CalYear,MONTH(G7),DAY(G7)),IF(ShowObserved,tblHolidays[الصحيح],tblHolidays[اليوم]),0),2),\"\"),\"\"),\"\")","v":""},{"$f":"IFERROR(IF(ShowHolidays,IF(INDEX(tblHolidays[],MATCH(DATE(CalYear,MONTH(H7),DAY(H7)),IF(ShowObserved,tblHolidays[الصحيح],tblHolidays[اليوم]),0),6),INDEX(tblHolidays[],MATCH(DATE(CalYear,MONTH(H7),DAY(H7)),IF(ShowObserved,tblHolidays[الصحيح],tblHolidays[اليوم]),0),2),\"\"),\"\"),\"\")","v":""}]
[null,{"$f":"الأيام+DATE(CalYear,9,1)-WEEKDAY(DATE(CalYear,9,1),(WeekStart=\"الإثنين\")+1)+15","v":"2018-09-09"},"2018-09-10","2018-09-11","2018-09-12","2018-09-13","2018-09-14","2018-09-15"]
[null,{"$f":"IFERROR(IF(ShowHolidays,IF(INDEX(tblHolidays[],MATCH(DATE(CalYear,MONTH(B9),DAY(B9)),IF(ShowObserved,tblHolidays[الصحيح],tblHolidays[اليوم]),0),6),INDEX(tblHolidays[],MATCH(DATE(CalYear,MONTH(B9),DAY(B9)),IF(ShowObserved,tblHolidays[الصحيح],tblHolidays[اليوم]),0),2),\"\"),\"\"),\"\")","v":""},{"$f":"IFERROR(IF(ShowHolidays,IF(INDEX(tblHolidays[],MATCH(DATE(CalYear,MONTH(C9),DAY(C9)),IF(ShowObserved,tblHolidays[الصحيح],tblHolidays[اليوم]),0),6),INDEX(tblHolidays[],MATCH(DATE(CalYear,MONTH(C9),DAY(C9)),IF(ShowObserved,tblHolidays[الصحيح],tblHolidays[اليوم]),0),2),\"\"),\"\"),\"\")","v":""},{"$f":"IFERROR(IF(ShowHolidays,IF(INDEX(tblHolidays[],MATCH(DATE(CalYear,MONTH(D9),DAY(D9)),IF(ShowObserved,tblHolidays[الصحيح],tblHolidays[اليوم]),0),6),INDEX(tblHolidays[],MATCH(DATE(CalYear,MONTH(D9),DAY(D9)),IF(ShowObserved,tblHolidays[الصحيح],tblHolidays[اليوم]),0),2),\"\"),\"\"),\"\")","v":""},{"$f":"IFERROR(IF(ShowHolidays,IF(INDEX(tblHolidays[],MATCH(DATE(CalYear,MONTH(E9),DAY(E9)),IF(ShowObserved,tblHolidays[الصحيح],tblHolidays[اليوم]),0),6),INDEX(tblHolidays[],MATCH(DATE(CalYear,MONTH(E9),DAY(E9)),IF(ShowObserved,tblHolidays[الصحيح],tblHolidays[اليوم]),0),2),\"\"),\"\"),\"\")","v":""},{"$f":"IFERROR(IF(ShowHolidays,IF(INDEX(tblHolidays[],MATCH(DATE(CalYear,MONTH(F9),DAY(F9)),IF(ShowObserved,tblHolidays[الصحيح],tblHolidays[اليوم]),0),6),INDEX(tblHolidays[],MATCH(DATE(CalYear,MONTH(F9),DAY(F9)),IF(ShowObserved,tblHolidays[الصحيح],tblHolidays[اليوم]),0),2),\"\"),\"\"),\"\")","v":""},{"$f":"IFERROR(IF(ShowHolidays,IF(INDEX(tblHolidays[],MATCH(DATE(CalYear,MONTH(G9),DAY(G9)),IF(ShowObserved,tblHolidays[الصحيح],tblHolidays[اليوم]),0),6),INDEX(tblHolidays[],MATCH(DATE(CalYear,MONTH(G9),DAY(G9)),IF(ShowObserved,tblHolidays[الصحيح],tblHolidays[اليوم]),0),2),\"\"),\"\"),\"\")","v":""},{"$f":"IFERROR(IF(ShowHolidays,IF(INDEX(tblHolidays[],MATCH(DATE(CalYear,MONTH(H9),DAY(H9)),IF(ShowObserved,tblHolidays[الصحيح],tblHolidays[اليوم]),0),6),INDEX(tblHolidays[],MATCH(DATE(CalYear,MONTH(H9),DAY(H9)),IF(ShowObserved,tblHolidays[الصحيح],tblHolidays[اليوم]),0),2),\"\"),\"\"),\"\")","v":""}]
[null,{"$f":"الأيام+DATE(CalYear,9,1)-WEEKDAY(DATE(CalYear,9,1),(WeekStart=\"الإثنين\")+1)+22","v":"2018-09-16"},"2018-09-17","2018-09-18","2018-09-19","2018-09-20","2018-09-21","2018-09-22"]
[null,{"$f":"IFERROR(IF(ShowHolidays,IF(INDEX(tblHolidays[],MATCH(DATE(CalYear,MONTH(B11),DAY(B11)),IF(ShowObserved,tblHolidays[الصحيح],tblHolidays[اليوم]),0),6),INDEX(tblHolidays[],MATCH(DATE(CalYear,MONTH(B11),DAY(B11)),IF(ShowObserved,tblHolidays[الصحيح],tblHolidays[اليوم]),0),2),\"\"),\"\"),\"\")","v":""},{"$f":"IFERROR(IF(ShowHolidays,IF(INDEX(tblHolidays[],MATCH(DATE(CalYear,MONTH(C11),DAY(C11)),IF(ShowObserved,tblHolidays[الصحيح],tblHolidays[اليوم]),0),6),INDEX(tblHolidays[],MATCH(DATE(CalYear,MONTH(C11),DAY(C11)),IF(ShowObserved,tblHolidays[الصحيح],tblHolidays[اليوم]),0),2),\"\"),\"\"),\"\")","v":""},{"$f":"IFERROR(IF(ShowHolidays,IF(INDEX(tblHolidays[],MATCH(DATE(CalYear,MONTH(D11),DAY(D11)),IF(ShowObserved,tblHolidays[الصحيح],tblHolidays[اليوم]),0),6),INDEX(tblHolidays[],MATCH(DATE(CalYear,MONTH(D11),DAY(D11)),IF(ShowObserved,tblHolidays[الصحيح],tblHolidays[اليوم]),0),2),\"\"),\"\"),\"\")","v":""},{"$f":"IFERROR(IF(ShowHolidays,IF(INDEX(tblHolidays[],MATCH(DATE(CalYear,MONTH(E11),DAY(E11)),IF(ShowObserved,tblHolidays[الصحيح],tblHolidays[اليوم]),0),6),INDEX(tblHolidays[],MATCH(DATE(CalYear,MONTH(E11),DAY(E11)),IF(ShowObserved,tblHolidays[الصحيح],tblHolidays[اليوم]),0),2),\"\"),\"\"),\"\")","v":""},{"$f":"IFERROR(IF(ShowHolidays,IF(INDEX(tblHolidays[],MATCH(DATE(CalYear,MONTH(F11),DAY(F11)),IF(ShowObserved,tblHolidays[الصحيح],tblHolidays[اليوم]),0),6),INDEX(tblHolidays[],MATCH(DATE(CalYear,MONTH(F11),DAY(F11)),IF(ShowObserved,tblHolidays[الصحيح],tblHolidays[اليوم]),0),2),\"\"),\"\"),\"\")","v":""},{"$f":"IFERROR(IF(ShowHolidays,IF(INDEX(tblHolidays[],MATCH(DATE(CalYear,MONTH(G11),DAY(G11)),IF(ShowObserved,tblHolidays[الصحيح],tblHolidays[اليوم]),0),6),INDEX(tblHolidays[],MATCH(DATE(CalYear,MONTH(G11),DAY(G11)),IF(ShowObserved,tblHolidays[الصحيح],tblHolidays[اليوم]),0),2),\"\"),\"\"),\"\")","v":""},{"$f":"IFERROR(IF(ShowHolidays,IF(INDEX(tblHolidays[],MATCH(DATE(CalYear,MONTH(H11),DAY(H11)),IF(ShowObserved,tblHolidays[الصحيح],tblHolidays[اليوم]),0),6),INDEX(tblHolidays[],MATCH(DATE(CalYear,MONTH(H11),DAY(H11)),IF(ShowObserved,tblHolidays[الصحيح],tblHolidays[اليوم]),0),2),\"\"),\"\"),\"\")","v":""}]
[null,{"$f":"الأيام+DATE(CalYear,9,1)-WEEKDAY(DATE(CalYear,9,1),(WeekStart=\"الإثنين\")+1)+29","v":"2018-09-23"},"2018-09-24","2018-09-25","2018-09-26","2018-09-27","2018-09-28","2018-09-29"]
[null,{"$f":"IFERROR(IF(ShowHolidays,IF(INDEX(tblHolidays[],MATCH(DATE(CalYear,MONTH(B13),DAY(B13)),IF(ShowObserved,tblHolidays[الصحيح],tblHolidays[اليوم]),0),6),INDEX(tblHolidays[],MATCH(DATE(CalYear,MONTH(B13),DAY(B13)),IF(ShowObserved,tblHolidays[الصحيح],tblHolidays[اليوم]),0),2),\"\"),\"\"),\"\")","v":""},{"$f":"IFERROR(IF(ShowHolidays,IF(INDEX(tblHolidays[],MATCH(DATE(CalYear,MONTH(C13),DAY(C13)),IF(ShowObserved,tblHolidays[الصحيح],tblHolidays[اليوم]),0),6),INDEX(tblHolidays[],MATCH(DATE(CalYear,MONTH(C13),DAY(C13)),IF(ShowObserved,tblHolidays[الصحيح],tblHolidays[اليوم]),0),2),\"\"),\"\"),\"\")","v":""},{"$f":"IFERROR(IF(ShowHolidays,IF(INDEX(tblHolidays[],MATCH(DATE(CalYear,MONTH(D13),DAY(D13)),IF(ShowObserved,tblHolidays[الصحيح],tblHolidays[اليوم]),0),6),INDEX(tblHolidays[],MATCH(DATE(CalYear,MONTH(D13),DAY(D13)),IF(ShowObserved,tblHolidays[الصحيح],tblHolidays[اليوم]),0),2),\"\"),\"\"),\"\")","v":""},{"$f":"IFERROR(IF(ShowHolidays,IF(INDEX(tblHolidays[],MATCH(DATE(CalYear,MONTH(E13),DAY(E13)),IF(ShowObserved,tblHolidays[الصحيح],tblHolidays[اليوم]),0),6),INDEX(tblHolidays[],MATCH(DATE(CalYear,MONTH(E13),DAY(E13)),IF(ShowObserved,tblHolidays[الصحيح],tblHolidays[اليوم]),0),2),\"\"),\"\"),\"\")","v":""},{"$f":"IFERROR(IF(ShowHolidays,IF(INDEX(tblHolidays[],MATCH(DATE(CalYear,MONTH(F13),DAY(F13)),IF(ShowObserved,tblHolidays[الصحيح],tblHolidays[اليوم]),0),6),INDEX(tblHolidays[],MATCH(DATE(CalYear,MONTH(F13),DAY(F13)),IF(ShowObserved,tblHolidays[الصحيح],tblHolidays[اليوم]),0),2),\"\"),\"\"),\"\")","v":""},{"$f":"IFERROR(IF(ShowHolidays,IF(INDEX(tblHolidays[],MATCH(DATE(CalYear,MONTH(G13),DAY(G13)),IF(ShowObserved,tblHolidays[الصحيح],tblHolidays[اليوم]),0),6),INDEX(tblHolidays[],MATCH(DATE(CalYear,MONTH(G13),DAY(G13)),IF(ShowObserved,tblHolidays[الصحيح],tblHolidays[اليوم]),0),2),\"\"),\"\"),\"\")","v":""},{"$f":"IFERROR(IF(ShowHolidays,IF(INDEX(tblHolidays[],MATCH(DATE(CalYear,MONTH(H13),DAY(H13)),IF(ShowObserved,tblHolidays[الصحيح],tblHolidays[اليوم]),0),6),INDEX(tblHolidays[],MATCH(DATE(CalYear,MONTH(H13),DAY(H13)),IF(ShowObserved,tblHolidays[الصحيح],tblHolidays[اليوم]),0),2),\"\"),\"\"),\"\")","v":""}]
[null,{"$f":"الأيام+DATE(CalYear,9,1)-WEEKDAY(DATE(CalYear,9,1),(WeekStart=\"الإثنين\")+1)+36","v":"2018-09-30"},"2018-10-01","الملاحظات"]
[null,{"$f":"IFERROR(IF(ShowHolidays,IF(INDEX(tblHolidays[],MATCH(DATE(CalYear,MONTH(B15),DAY(B15)),IF(ShowObserved,tblHolidays[الصحيح],tblHolidays[اليوم]),0),6),INDEX(tblHolidays[],MATCH(DATE(CalYear,MONTH(B15),DAY(B15)),IF(ShowObserved,tblHolidays[الصحيح],tblHolidays[اليوم]),0),2),\"\"),\"\"),\"\")","v":""},{"$f":"IFERROR(IF(ShowHolidays,IF(INDEX(tblHolidays[],MATCH(DATE(CalYear,MONTH(C15),DAY(C15)),IF(ShowObserved,tblHolidays[الصحيح],tblHolidays[اليوم]),0),6),INDEX(tblHolidays[],MATCH(DATE(CalYear,MONTH(C15),DAY(C15)),IF(ShowObserved,tblHolidays[الصحيح],tblHolidays[اليوم]),0),2),\"\"),\"\"),\"\")","v":""}]

{"sheet":"أكتوبر","index":10,"n_rows":16,"n_cols":8,"rows_kept":16,"merged":[[1,1,1,3],[14,3,14,7],[15,3,15,7],[16,1,16,7]]}
[]
[null,{"$f":"B9","v":"2018-10-14"}]
[]
[null,{"$f":"WeekStart","v":"الأحد"},{"$f":"UPPER(TEXT(C5,\"dddd\"))","v":"الإثنين"},"الثلاثاء","الأربعاء","الخميس","الجمعة","السبت"]
[null,{"$f":"الأيام+DATE(CalYear,10,1)-WEEKDAY(DATE(CalYear,10,1),(WeekStart=\"الإثنين\")+1)+1","v":"2018-09-30"},"2018-10-01","2018-10-02","2018-10-03","2018-10-04","2018-10-05","2018-10-06"]
[null,{"$f":"IFERROR(IF(ShowHolidays,IF(INDEX(tblHolidays[],MATCH(DATE(CalYear-(DAY(B5)>15)+(ROW()>6),MONTH(B5),DAY(B5)),IF(ShowObserved,tblHolidays[الصحيح],tblHolidays[اليوم]),0),6),INDEX(tblHolidays[],MATCH(DATE(CalYear-(DAY(B5)>15)+(ROW()>6),MONTH(B5),DAY(B5)),IF(ShowObserved,tblHolidays[الصحيح],tblHolidays[اليوم]),0),2),\"\"),\"\"),\"\")","v":""},{"$f":"IFERROR(IF(ShowHolidays,IF(INDEX(tblHolidays[],MATCH(DATE(CalYear-(DAY(C5)>15)+(ROW()>6),MONTH(C5),DAY(C5)),IF(ShowObserved,tblHolidays[الصحيح],tblHolidays[اليوم]),0),6),INDEX(tblHolidays[],MATCH(DATE(CalYear-(DAY(C5)>15)+(ROW()>6),MONTH(C5),DAY(C5)),IF(ShowObserved,tblHolidays[الصحيح],tblHolidays[اليوم]),0),2),\"\"),\"\"),\"\")","v":""},{"$f":"IFERROR(IF(ShowHolidays,IF(INDEX(tblHolidays[],MATCH(DATE(CalYear-(DAY(D5)>15)+(ROW()>6),MONTH(D5),DAY(D5)),IF(ShowObserved,tblHolidays[الصحيح],tblHolidays[اليوم]),0),6),INDEX(tblHolidays[],MATCH(DATE(CalYear-(DAY(D5)>15)+(ROW()>6),MONTH(D5),DAY(D5)),IF(ShowObserved,tblHolidays[الصحيح],tblHolidays[اليوم]),0),2),\"\"),\"\"),\"\")","v":""},{"$f":"IFERROR(IF(ShowHolidays,IF(INDEX(tblHolidays[],MATCH(DATE(CalYear-(DAY(E5)>15)+(ROW()>6),MONTH(E5),DAY(E5)),IF(ShowObserved,tblHolidays[الصحيح],tblHolidays[اليوم]),0),6),INDEX(tblHolidays[],MATCH(DATE(CalYear-(DAY(E5)>15)+(ROW()>6),MONTH(E5),DAY(E5)),IF(ShowObserved,tblHolidays[الصحيح],tblHolidays[اليوم]),0),2),\"\"),\"\"),\"\")","v":""},{"$f":"IFERROR(IF(ShowHolidays,IF(INDEX(tblHolidays[],MATCH(DATE(CalYear-(DAY(F5)>15)+(ROW()>6),MONTH(F5),DAY(F5)),IF(ShowObserved,tblHolidays[الصحيح],tblHolidays[اليوم]),0),6),INDEX(tblHolidays[],MATCH(DATE(CalYear-(DAY(F5)>15)+(ROW()>6),MONTH(F5),DAY(F5)),IF(ShowObserved,tblHolidays[الصحيح],tblHolidays[اليوم]),0),2),\"\"),\"\"),\"\")","v":""},{"$f":"IFERROR(IF(ShowHolidays,IF(INDEX(tblHolidays[],MATCH(DATE(CalYear-(DAY(G5)>15)+(ROW()>6),MONTH(G5),DAY(G5)),IF(ShowObserved,tblHolidays[الصحيح],tblHolidays[اليوم]),0),6),INDEX(tblHolidays[],MATCH(DATE(CalYear-(DAY(G5)>15)+(ROW()>6),MONTH(G5),DAY(G5)),IF(ShowObserved,tblHolidays[الصحيح],tblHolidays[اليوم]),0),2),\"\"),\"\"),\"\")","v":""},{"$f":"IFERROR(IF(ShowHolidays,IF(INDEX(tblHolidays[],MATCH(DATE(CalYear-(DAY(H5)>15)+(ROW()>6),MONTH(H5),DAY(H5)),IF(ShowObserved,tblHolidays[الصحيح],tblHolidays[اليوم]),0),6),INDEX(tblHolidays[],MATCH(DATE(CalYear-(DAY(H5)>15)+(ROW()>6),MONTH(H5),DAY(H5)),IF(ShowObserved,tblHolidays[الصحيح],tblHolidays[اليوم]),0),2),\"\"),\"\"),\"\")","v":""}]
[null,{"$f":"الأيام+DATE(CalYear,10,1)-WEEKDAY(DATE(CalYear,10,1),(WeekStart=\"الإثنين\")+1)+8","v":"2018-10-07"},"2018-10-08","2018-10-09","2018-10-10","2018-10-11","2018-10-12","2018-10-13"]
[null,{"$f":"IFERROR(IF(ShowHolidays,IF(INDEX(tblHolidays[],MATCH(DATE(CalYear,MONTH(B7),DAY(B7)),IF(ShowObserved,tblHolidays[الصحيح],tblHolidays[اليوم]),0),6),INDEX(tblHolidays[],MATCH(DATE(CalYear,MONTH(B7),DAY(B7)),IF(ShowObserved,tblHolidays[الصحيح],tblHolidays[اليوم]),0),2),\"\"),\"\"),\"\")","v":""},{"$f":"IFERROR(IF(ShowHolidays,IF(INDEX(tblHolidays[],MATCH(DATE(CalYear,MONTH(C7),DAY(C7)),IF(ShowObserved,tblHolidays[الصحيح],tblHolidays[اليوم]),0),6),INDEX(tblHolidays[],MATCH(DATE(CalYear,MONTH(C7),DAY(C7)),IF(ShowObserved,tblHolidays[الصحيح],tblHolidays[اليوم]),0),2),\"\"),\"\"),\"\")","v":"يوم كولومبوس"},{"$f":"IFERROR(IF(ShowHolidays,IF(INDEX(tblHolidays[],MATCH(DATE(CalYear,MONTH(D7),DAY(D7)),IF(ShowObserved,tblHolidays[الصحيح],tblHolidays[اليوم]),0),6),INDEX(tblHolidays[],MATCH(DATE(CalYear,MONTH(D7),DAY(D7)),IF(ShowObserved,tblHolidays[الصحيح],tblHolidays[اليوم]),0),2),\"\"),\"\"),\"\")","v":""},{"$f":"IFERROR(IF(ShowHolidays,IF(INDEX(tblHolidays[],MATCH(DATE(CalYear,MONTH(E7),DAY(E7)),IF(ShowObserved,tblHolidays[الصحيح],tblHolidays[اليوم]),0),6),INDEX(tblHolidays[],MATCH(DATE(CalYear,MONTH(E7),DAY(E7)),IF(ShowObserved,tblHolidays[الصحيح],tblHolidays[اليوم]),0),2),\"\"),\"\"),\"\")","v":""},{"$f":"IFERROR(IF(ShowHolidays,IF(INDEX(tblHolidays[],MATCH(DATE(CalYear,MONTH(F7),DAY(F7)),IF(ShowObserved,tblHolidays[الصحيح],tblHolidays[اليوم]),0),6),INDEX(tblHolidays[],MATCH(DATE(CalYear,MONTH(F7),DAY(F7)),IF(ShowObserved,tblHolidays[الصحيح],tblHolidays[اليوم]),0),2),\"\"),\"\"),\"\")","v":""},{"$f":"IFERROR(IF(ShowHolidays,IF(INDEX(tblHolidays[],MATCH(DATE(CalYear,MONTH(G7),DAY(G7)),IF(ShowObserved,tblHolidays[الصحيح],tblHolidays[اليوم]),0),6),INDEX(tblHolidays[],MATCH(DATE(CalYear,MONTH(G7),DAY(G7)),IF(ShowObserved,tblHolidays[الصحيح],tblHolidays[اليوم]),0),2),\"\"),\"\"),\"\")","v":""},{"$f":"IFERROR(IF(ShowHolidays,IF(INDEX(tblHolidays[],MATCH(DATE(CalYear,MONTH(H7),DAY(H7)),IF(ShowObserved,tblHolidays[الصحيح],tblHolidays[اليوم]),0),6),INDEX(tblHolidays[],MATCH(DATE(CalYear,MONTH(H7),DAY(H7)),IF(ShowObserved,tblHolidays[الصحيح],tblHolidays[اليوم]),0),2),\"\"),\"\"),\"\")","v":""}]
[null,{"$f":"الأيام+DATE(CalYear,10,1)-WEEKDAY(DATE(CalYear,10,1),(WeekStart=\"الإثنين\")+1)+15","v":"2018-10-14"},"2018-10-15","2018-10-16","2018-10-17","2018-10-18","2018-10-19","2018-10-20"]
[null,{"$f":"IFERROR(IF(ShowHolidays,IF(INDEX(tblHolidays[],MATCH(DATE(CalYear,MONTH(B9),DAY(B9)),IF(ShowObserved,tblHolidays[الصحيح],tblHolidays[اليوم]),0),6),INDEX(tblHolidays[],MATCH(DATE(CalYear,MONTH(B9),DAY(B9)),IF(ShowObserved,tblHolidays[الصحيح],tblHolidays[اليوم]),0),2),\"\"),\"\"),\"\")","v":""},{"$f":"IFERROR(IF(ShowHolidays,IF(INDEX(tblHolidays[],MATCH(DATE(CalYear,MONTH(C9),DAY(C9)),IF(ShowObserved,tblHolidays[الصحيح],tblHolidays[اليوم]),0),6),INDEX(tblHolidays[],MATCH(DATE(CalYear,MONTH(C9),DAY(C9)),IF(ShowObserved,tblHolidays[الصحيح],tblHolidays[اليوم]),0),2),\"\"),\"\"),\"\")","v":""},{"$f":"IFERROR(IF(ShowHolidays,IF(INDEX(tblHolidays[],MATCH(DATE(CalYear,MONTH(D9),DAY(D9)),IF(ShowObserved,tblHolidays[الصحيح],tblHolidays[اليوم]),0),6),INDEX(tblHolidays[],MATCH(DATE(CalYear,MONTH(D9),DAY(D9)),IF(ShowObserved,tblHolidays[الصحيح],tblHolidays[اليوم]),0),2),\"\"),\"\"),\"\")","v":""},{"$f":"IFERROR(IF(ShowHolidays,IF(INDEX(tblHolidays[],MATCH(DATE(CalYear,MONTH(E9),DAY(E9)),IF(ShowObserved,tblHolidays[الصحيح],tblHolidays[اليوم]),0),6),INDEX(tblHolidays[],MATCH(DATE(CalYear,MONTH(E9),DAY(E9)),IF(ShowObserved,tblHolidays[الصحيح],tblHolidays[اليوم]),0),2),\"\"),\"\"),\"\")","v":""},{"$f":"IFERROR(IF(ShowHolidays,IF(INDEX(tblHolidays[],MATCH(DATE(CalYear,MONTH(F9),DAY(F9)),IF(ShowObserved,tblHolidays[الصحيح],tblHolidays[اليوم]),0),6),INDEX(tblHolidays[],MATCH(DATE(CalYear,MONTH(F9),DAY(F9)),IF(ShowObserved,tblHolidays[الصحيح],tblHolidays[اليوم]),0),2),\"\"),\"\"),\"\")","v":""},{"$f":"IFERROR(IF(ShowHolidays,IF(INDEX(tblHolidays[],MATCH(DATE(CalYear,MONTH(G9),DAY(G9)),IF(ShowObserved,tblHolidays[الصحيح],tblHolidays[اليوم]),0),6),INDEX(tblHolidays[],MATCH(DATE(CalYear,MONTH(G9),DAY(G9)),IF(ShowObserved,tblHolidays[الصحيح],tblHolidays[اليوم]),0),2),\"\"),\"\"),\"\")","v":""},{"$f":"IFERROR(IF(ShowHolidays,IF(INDEX(tblHolidays[],MATCH(DATE(CalYear,MONTH(H9),DAY(H9)),IF(ShowObserved,tblHolidays[الصحيح],tblHolidays[اليوم]),0),6),INDEX(tblHolidays[],MATCH(DATE(CalYear,MONTH(H9),DAY(H9)),IF(ShowObserved,tblHolidays[الصحيح],tblHolidays[اليوم]),0),2),\"\"),\"\"),\"\")","v":""}]
[null,{"$f":"الأيام+DATE(CalYear,10,1)-WEEKDAY(DATE(CalYear,10,1),(WeekStart=\"الإثنين\")+1)+22","v":"2018-10-21"},"2018-10-22","2018-10-23","2018-10-24","2018-10-25","2018-10-26","2018-10-27"]
[null,{"$f":"IFERROR(IF(ShowHolidays,IF(INDEX(tblHolidays[],MATCH(DATE(CalYear,MONTH(B11),DAY(B11)),IF(ShowObserved,tblHolidays[الصحيح],tblHolidays[اليوم]),0),6),INDEX(tblHolidays[],MATCH(DATE(CalYear,MONTH(B11),DAY(B11)),IF(ShowObserved,tblHolidays[الصحيح],tblHolidays[اليوم]),0),2),\"\"),\"\"),\"\")","v":""},{"$f":"IFERROR(IF(ShowHolidays,IF(INDEX(tblHolidays[],MATCH(DATE(CalYear,MONTH(C11),DAY(C11)),IF(ShowObserved,tblHolidays[الصحيح],tblHolidays[اليوم]),0),6),INDEX(tblHolidays[],MATCH(DATE(CalYear,MONTH(C11),DAY(C11)),IF(ShowObserved,tblHolidays[الصحيح],tblHolidays[اليوم]),0),2),\"\"),\"\"),\"\")","v":""},{"$f":"IFERROR(IF(ShowHolidays,IF(INDEX(tblHolidays[],MATCH(DATE(CalYear,MONTH(D11),DAY(D11)),IF(ShowObserved,tblHolidays[الصحيح],tblHolidays[اليوم]),0),6),INDEX(tblHolidays[],MATCH(DATE(CalYear,MONTH(D11),DAY(D11)),IF(ShowObserved,tblHolidays[الصحيح],tblHolidays[اليوم]),0),2),\"\"),\"\"),\"\")","v":""},{"$f":"IFERROR(IF(ShowHolidays,IF(INDEX(tblHolidays[],MATCH(DATE(CalYear,MONTH(E11),DAY(E11)),IF(ShowObserved,tblHolidays[الصحيح],tblHolidays[اليوم]),0),6),INDEX(tblHolidays[],MATCH(DATE(CalYear,MONTH(E11),DAY(E11)),IF(ShowObserved,tblHolidays[الصحيح],tblHolidays[اليوم]),0),2),\"\"),\"\"),\"\")","v":""},{"$f":"IFERROR(IF(ShowHolidays,IF(INDEX(tblHolidays[],MATCH(DATE(CalYear,MONTH(F11),DAY(F11)),IF(ShowObserved,tblHolidays[الصحيح],tblHolidays[اليوم]),0),6),INDEX(tblHolidays[],MATCH(DATE(CalYear,MONTH(F11),DAY(F11)),IF(ShowObserved,tblHolidays[الصحيح],tblHolidays[اليوم]),0),2),\"\"),\"\"),\"\")","v":""},{"$f":"IFERROR(IF(ShowHolidays,IF(INDEX(tblHolidays[],MATCH(DATE(CalYear,MONTH(G11),DAY(G11)),IF(ShowObserved,tblHolidays[الصحيح],tblHolidays[اليوم]),0),6),INDEX(tblHolidays[],MATCH(DATE(CalYear,MONTH(G11),DAY(G11)),IF(ShowObserved,tblHolidays[الصحيح],tblHolidays[اليوم]),0),2),\"\"),\"\"),\"\")","v":""},{"$f":"IFERROR(IF(ShowHolidays,IF(INDEX(tblHolidays[],MATCH(DATE(CalYear,MONTH(H11),DAY(H11)),IF(ShowObserved,tblHolidays[الصحيح],tblHolidays[اليوم]),0),6),INDEX(tblHolidays[],MATCH(DATE(CalYear,MONTH(H11),DAY(H11)),IF(ShowObserved,tblHolidays[الصحيح],tblHolidays[اليوم]),0),2),\"\"),\"\"),\"\")","v":""}]
[null,{"$f":"الأيام+DATE(CalYear,10,1)-WEEKDAY(DATE(CalYear,10,1),(WeekStart=\"الإثنين\")+1)+29","v":"2018-10-28"},"2018-10-29","2018-10-30","2018-10-31","2018-11-01","2018-11-02","2018-11-03"]
[null,{"$f":"IFERROR(IF(ShowHolidays,IF(INDEX(tblHolidays[],MATCH(DATE(CalYear,MONTH(B13),DAY(B13)),IF(ShowObserved,tblHolidays[الصحيح],tblHolidays[اليوم]),0),6),INDEX(tblHolidays[],MATCH(DATE(CalYear,MONTH(B13),DAY(B13)),IF(ShowObserved,tblHolidays[الصحيح],tblHolidays[اليوم]),0),2),\"\"),\"\"),\"\")","v":""},{"$f":"IFERROR(IF(ShowHolidays,IF(INDEX(tblHolidays[],MATCH(DATE(CalYear,MONTH(C13),DAY(C13)),IF(ShowObserved,tblHolidays[الصحيح],tblHolidays[اليوم]),0),6),INDEX(tblHolidays[],MATCH(DATE(CalYear,MONTH(C13),DAY(C13)),IF(ShowObserved,tblHolidays[الصحيح],tblHolidays[اليوم]),0),2),\"\"),\"\"),\"\")","v":""},{"$f":"IFERROR(IF(ShowHolidays,IF(INDEX(tblHolidays[],MATCH(DATE(CalYear,MONTH(D13),DAY(D13)),IF(ShowObserved,tblHolidays[الصحيح],tblHolidays[اليوم]),0),6),INDEX(tblHolidays[],MATCH(DATE(CalYear,MONTH(D13),DAY(D13)),IF(ShowObserved,tblHolidays[الصحيح],tblHolidays[اليوم]),0),2),\"\"),\"\"),\"\")","v":""},{"$f":"IFERROR(IF(ShowHolidays,IF(INDEX(tblHolidays[],MATCH(DATE(CalYear,MONTH(E13),DAY(E13)),IF(ShowObserved,tblHolidays[الصحيح],tblHolidays[اليوم]),0),6),INDEX(tblHolidays[],MATCH(DATE(CalYear,MONTH(E13),DAY(E13)),IF(ShowObserved,tblHolidays[الصحيح],tblHolidays[اليوم]),0),2),\"\"),\"\"),\"\")","v":""},{"$f":"IFERROR(IF(ShowHolidays,IF(INDEX(tblHolidays[],MATCH(DATE(CalYear,MONTH(F13),DAY(F13)),IF(ShowObserved,tblHolidays[الصحيح],tblHolidays[اليوم]),0),6),INDEX(tblHolidays[],MATCH(DATE(CalYear,MONTH(F13),DAY(F13)),IF(ShowObserved,tblHolidays[الصحيح],tblHolidays[اليوم]),0),2),\"\"),\"\"),\"\")","v":""},{"$f":"IFERROR(IF(ShowHolidays,IF(INDEX(tblHolidays[],MATCH(DATE(CalYear,MONTH(G13),DAY(G13)),IF(ShowObserved,tblHolidays[الصحيح],tblHolidays[اليوم]),0),6),INDEX(tblHolidays[],MATCH(DATE(CalYear,MONTH(G13),DAY(G13)),IF(ShowObserved,tblHolidays[الصحيح],tblHolidays[اليوم]),0),2),\"\"),\"\"),\"\")","v":""},{"$f":"IFERROR(IF(ShowHolidays,IF(INDEX(tblHolidays[],MATCH(DATE(CalYear,MONTH(H13),DAY(H13)),IF(ShowObserved,tblHolidays[الصحيح],tblHolidays[اليوم]),0),6),INDEX(tblHolidays[],MATCH(DATE(CalYear,MONTH(H13),DAY(H13)),IF(ShowObserved,tblHolidays[الصحيح],tblHolidays[اليوم]),0),2),\"\"),\"\"),\"\")","v":""}]
[null,{"$f":"الأيام+DATE(CalYear,10,1)-WEEKDAY(DATE(CalYear,10,1),(WeekStart=\"الإثنين\")+1)+36","v":"2018-11-04"},"2018-11-05","الملاحظات"]
[null,{"$f":"IFERROR(IF(ShowHolidays,IF(INDEX(tblHolidays[],MATCH(DATE(CalYear,MONTH(B15),DAY(B15)),IF(ShowObserved,tblHolidays[الصحيح],tblHolidays[اليوم]),0),6),INDEX(tblHolidays[],MATCH(DATE(CalYear,MONTH(B15),DAY(B15)),IF(ShowObserved,tblHolidays[الصحيح],tblHolidays[اليوم]),0),2),\"\"),\"\"),\"\")","v":""},{"$f":"IFERROR(IF(ShowHolidays,IF(INDEX(tblHolidays[],MATCH(DATE(CalYear,MONTH(C15),DAY(C15)),IF(ShowObserved,tblHolidays[الصحيح],tblHolidays[اليوم]),0),6),INDEX(tblHolidays[],MATCH(DATE(CalYear,MONTH(C15),DAY(C15)),IF(ShowObserved,tblHolidays[الصحيح],tblHolidays[اليوم]),0),2),\"\"),\"\"),\"\")","v":""}]

{"sheet":"نوفمبر","index":11,"n_rows":16,"n_cols":8,"rows_kept":16,"merged":[[1,1,1,3],[14,3,14,7],[15,3,15,7],[16,1,16,7]]}
[]
[null,{"$f":"B9","v":"2018-11-11"}]
[]
[null,{"$f":"WeekStart","v":"الأحد"},{"$f":"UPPER(TEXT(C5,\"dddd\"))","v":"الإثنين"},"الثلاثاء","الأربعاء","الخميس","الجمعة","السبت"]
[null,{"$f":"الأيام+DATE(CalYear,11,1)-WEEKDAY(DATE(CalYear,11,1),(WeekStart=\"الإثنين\")+1)+1","v":"2018-10-28"},"2018-10-29","2018-10-30","2018-10-31","2018-11-01","2018-11-02","2018-11-03"]
[null,{"$f":"IFERROR(IF(ShowHolidays,IF(INDEX(tblHolidays[],MATCH(DATE(CalYear-(DAY(B5)>15)+(ROW()>6),MONTH(B5),DAY(B5)),IF(ShowObserved,tblHolidays[الصحيح],tblHolidays[اليوم]),0),6),INDEX(tblHolidays[],MATCH(DATE(CalYear-(DAY(B5)>15)+(ROW()>6),MONTH(B5),DAY(B5)),IF(ShowObserved,tblHolidays[الصحيح],tblHolidays[اليوم]),0),2),\"\"),\"\"),\"\")","v":""},{"$f":"IFERROR(IF(ShowHolidays,IF(INDEX(tblHolidays[],MATCH(DATE(CalYear-(DAY(C5)>15)+(ROW()>6),MONTH(C5),DAY(C5)),IF(ShowObserved,tblHolidays[الصحيح],tblHolidays[اليوم]),0),6),INDEX(tblHolidays[],MATCH(DATE(CalYear-(DAY(C5)>15)+(ROW()>6),MONTH(C5),DAY(C5)),IF(ShowObserved,tblHolidays[الصحيح],tblHolidays[اليوم]),0),2),\"\"),\"\"),\"\")","v":""},{"$f":"IFERROR(IF(ShowHolidays,IF(INDEX(tblHolidays[],MATCH(DATE(CalYear-(DAY(D5)>15)+(ROW()>6),MONTH(D5),DAY(D5)),IF(ShowObserved,tblHolidays[الصحيح],tblHolidays[اليوم]),0),6),INDEX(tblHolidays[],MATCH(DATE(CalYear-(DAY(D5)>15)+(ROW()>6),MONTH(D5),DAY(D5)),IF(ShowObserved,tblHolidays[الصحيح],tblHolidays[اليوم]),0),2),\"\"),\"\"),\"\")","v":""},{"$f":"IFERROR(IF(ShowHolidays,IF(INDEX(tblHolidays[],MATCH(DATE(CalYear-(DAY(E5)>15)+(ROW()>6),MONTH(E5),DAY(E5)),IF(ShowObserved,tblHolidays[الصحيح],tblHolidays[اليوم]),0),6),INDEX(tblHolidays[],MATCH(DATE(CalYear-(DAY(E5)>15)+(ROW()>6),MONTH(E5),DAY(E5)),IF(ShowObserved,tblHolidays[الصحيح],tblHolidays[اليوم]),0),2),\"\"),\"\"),\"\")","v":""},{"$f":"IFERROR(IF(ShowHolidays,IF(INDEX(tblHolidays[],MATCH(DATE(CalYear-(DAY(F5)>15)+(ROW()>6),MONTH(F5),DAY(F5)),IF(ShowObserved,tblHolidays[الصحيح],tblHolidays[اليوم]),0),6),INDEX(tblHolidays[],MATCH(DATE(CalYear-(DAY(F5)>15)+(ROW()>6),MONTH(F5),DAY(F5)),IF(ShowObserved,tblHolidays[الصحيح],tblHolidays[اليوم]),0),2),\"\"),\"\"),\"\")","v":""},{"$f":"IFERROR(IF(ShowHolidays,IF(INDEX(tblHolidays[],MATCH(DATE(CalYear-(DAY(G5)>15)+(ROW()>6),MONTH(G5),DAY(G5)),IF(ShowObserved,tblHolidays[الصحيح],tblHolidays[اليوم]),0),6),INDEX(tblHolidays[],MATCH(DATE(CalYear-(DAY(G5)>15)+(ROW()>6),MONTH(G5),DAY(G5)),IF(ShowObserved,tblHolidays[الصحيح],tblHolidays[اليوم]),0),2),\"\"),\"\"),\"\")","v":""},{"$f":"IFERROR(IF(ShowHolidays,IF(INDEX(tblHolidays[],MATCH(DATE(CalYear-(DAY(H5)>15)+(ROW()>6),MONTH(H5),DAY(H5)),IF(ShowObserved,tblHolidays[الصحيح],tblHolidays[اليوم]),0),6),INDEX(tblHolidays[],MATCH(DATE(CalYear-(DAY(H5)>15)+(ROW()>6),MONTH(H5),DAY(H5)),IF(ShowObserved,tblHolidays[الصحيح],tblHolidays[اليوم]),0),2),\"\"),\"\"),\"\")","v":""}]
[null,{"$f":"الأيام+DATE(CalYear,11,1)-WEEKDAY(DATE(CalYear,11,1),(WeekStart=\"الإثنين\")+1)+8","v":"2018-11-04"},"2018-11-05","2018-11-06","2018-11-07","2018-11-08","2018-11-09","2018-11-10"]
[null,{"$f":"IFERROR(IF(ShowHolidays,IF(INDEX(tblHolidays[],MATCH(DATE(CalYear,MONTH(B7),DAY(B7)),IF(ShowObserved,tblHolidays[الصحيح],tblHolidays[اليوم]),0),6),INDEX(tblHolidays[],MATCH(DATE(CalYear,MONTH(B7),DAY(B7)),IF(ShowObserved,tblHolidays[الصحيح],tblHolidays[اليوم]),0),2),\"\"),\"\"),\"\")","v":""},{"$f":"IFERROR(IF(ShowHolidays,IF(INDEX(tblHolidays[],MATCH(DATE(CalYear,MONTH(C7),DAY(C7)),IF(ShowObserved,tblHolidays[الصحيح],tblHolidays[اليوم]),0),6),INDEX(tblHolidays[],MATCH(DATE(CalYear,MONTH(C7),DAY(C7)),IF(ShowObserved,tblHolidays[الصحيح],tblHolidays[اليوم]),0),2),\"\"),\"\"),\"\")","v":""},{"$f":"IFERROR(IF(ShowHolidays,IF(INDEX(tblHolidays[],MATCH(DATE(CalYear,MONTH(D7),DAY(D7)),IF(ShowObserved,tblHolidays[الصحيح],tblHolidays[اليوم]),0),6),INDEX(tblHolidays[],MATCH(DATE(CalYear,MONTH(D7),DAY(D7)),IF(ShowObserved,tblHolidays[الصحيح],tblHolidays[اليوم]),0),2),\"\"),\"\"),\"\")","v":""},{"$f":"IFERROR(IF(ShowHolidays,IF(INDEX(tblHolidays[],MATCH(DATE(CalYear,MONTH(E7),DAY(E7)),IF(ShowObserved,tblHolidays[الصحيح],tblHolidays[اليوم]),0),6),INDEX(tblHolidays[],MATCH(DATE(CalYear,MONTH(E7),DAY(E7)),IF(ShowObserved,tblHolidays[الصحيح],tblHolidays[اليوم]),0),2),\"\"),\"\"),\"\")","v":""},{"$f":"IFERROR(IF(ShowHolidays,IF(INDEX(tblHolidays[],MATCH(DATE(CalYear,MONTH(F7),DAY(F7)),IF(ShowObserved,tblHolidays[الصحيح],tblHolidays[اليوم]),0),6),INDEX(tblHolidays[],MATCH(DATE(CalYear,MONTH(F7),DAY(F7)),IF(ShowObserved,tblHolidays[الصحيح],tblHolidays[اليوم]),0),2),\"\"),\"\"),\"\")","v":""},{"$f":"IFERROR(IF(ShowHolidays,IF(INDEX(tblHolidays[],MATCH(DATE(CalYear,MONTH(G7),DAY(G7)),IF(ShowObserved,tblHolidays[الصحيح],tblHolidays[اليوم]),0),6),INDEX(tblHolidays[],MATCH(DATE(CalYear,MONTH(G7),DAY(G7)),IF(ShowObserved,tblHolidays[الصحيح],tblHolidays[اليوم]),0),2),\"\"),\"\"),\"\")","v":""},{"$f":"IFERROR(IF(ShowHolidays,IF(INDEX(tblHolidays[],MATCH(DATE(CalYear,MONTH(H7),DAY(H7)),IF(ShowObserved,tblHolidays[الصحيح],tblHolidays[اليوم]),0),6),INDEX(tblHolidays[],MATCH(DATE(CalYear,MONTH(H7),DAY(H7)),IF(ShowObserved,tblHolidays[الصحيح],tblHolidays[اليوم]),0),2),\"\"),\"\"),\"\")","v":""}]
[null,{"$f":"الأيام+DATE(CalYear,11,1)-WEEKDAY(DATE(CalYear,11,1),(WeekStart=\"الإثنين\")+1)+15","v":"2018-11-11"},"2018-11-12","2018-11-13","2018-11-14","2018-11-15","2018-11-16","2018-11-17"]
[null,{"$f":"IFERROR(IF(ShowHolidays,IF(INDEX(tblHolidays[],MATCH(DATE(CalYear,MONTH(B9),DAY(B9)),IF(ShowObserved,tblHolidays[الصحيح],tblHolidays[اليوم]),0),6),INDEX(tblHolidays[],MATCH(DATE(CalYear,MONTH(B9),DAY(B9)),IF(ShowObserved,tblHolidays[الصحيح],tblHolidays[اليوم]),0),2),\"\"),\"\"),\"\")","v":""},{"$f":"IFERROR(IF(ShowHolidays,IF(INDEX(tblHolidays[],MATCH(DATE(CalYear,MONTH(C9),DAY(C9)),IF(ShowObserved,tblHolidays[الصحيح],tblHolidays[اليوم]),0),6),INDEX(tblHolidays[],MATCH(DATE(CalYear,MONTH(C9),DAY(C9)),IF(ShowObserved,tblHolidays[الصحيح],tblHolidays[اليوم]),0),2),\"\"),\"\"),\"\")","v":"يوم المحاربين القدامى"},{"$f":"IFERROR(IF(ShowHolidays,IF(INDEX(tblHolidays[],MATCH(DATE(CalYear,MONTH(D9),DAY(D9)),IF(ShowObserved,tblHolidays[الصحيح],tblHolidays[اليوم]),0),6),INDEX(tblHolidays[],MATCH(DATE(CalYear,MONTH(D9),DAY(D9)),IF(ShowObserved,tblHolidays[الصحيح],tblHolidays[اليوم]),0),2),\"\"),\"\"),\"\")","v":""},{"$f":"IFERROR(IF(ShowHolidays,IF(INDEX(tblHolidays[],MATCH(DATE(CalYear,MONTH(E9),DAY(E9)),IF(ShowObserved,tblHolidays[الصحيح],tblHolidays[اليوم]),0),6),INDEX(tblHolidays[],MATCH(DATE(CalYear,MONTH(E9),DAY(E9)),IF(ShowObserved,tblHolidays[الصحيح],tblHolidays[اليوم]),0),2),\"\"),\"\"),\"\")","v":""},{"$f":"IFERROR(IF(ShowHolidays,IF(INDEX(tblHolidays[],MATCH(DATE(CalYear,MONTH(F9),DAY(F9)),IF(ShowObserved,tblHolidays[الصحيح],tblHolidays[اليوم]),0),6),INDEX(tblHolidays[],MATCH(DATE(CalYear,MONTH(F9),DAY(F9)),IF(ShowObserved,tblHolidays[الصحيح],tblHolidays[اليوم]),0),2),\"\"),\"\"),\"\")","v":""},{"$f":"IFERROR(IF(ShowHolidays,IF(INDEX(tblHolidays[],MATCH(DATE(CalYear,MONTH(G9),DAY(G9)),IF(ShowObserved,tblHolidays[الصحيح],tblHolidays[اليوم]),0),6),INDEX(tblHolidays[],MATCH(DATE(CalYear,MONTH(G9),DAY(G9)),IF(ShowObserved,tblHolidays[الصحيح],tblHolidays[اليوم]),0),2),\"\"),\"\"),\"\")","v":""},{"$f":"IFERROR(IF(ShowHolidays,IF(INDEX(tblHolidays[],MATCH(DATE(CalYear,MONTH(H9),DAY(H9)),IF(ShowObserved,tblHolidays[الصحيح],tblHolidays[اليوم]),0),6),INDEX(tblHolidays[],MATCH(DATE(CalYear,MONTH(H9),DAY(H9)),IF(ShowObserved,tblHolidays[الصحيح],tblHolidays[اليوم]),0),2),\"\"),\"\"),\"\")","v":""}]
[null,{"$f":"الأيام+DATE(CalYear,11,1)-WEEKDAY(DATE(CalYear,11,1),(WeekStart=\"الإثنين\")+1)+22","v":"2018-11-18"},"2018-11-19","2018-11-20","2018-11-21","2018-11-22","2018-11-23","2018-11-24"]
[null,{"$f":"IFERROR(IF(ShowHolidays,IF(INDEX(tblHolidays[],MATCH(DATE(CalYear,MONTH(B11),DAY(B11)),IF(ShowObserved,tblHolidays[الصحيح],tblHolidays[اليوم]),0),6),INDEX(tblHolidays[],MATCH(DATE(CalYear,MONTH(B11),DAY(B11)),IF(ShowObserved,tblHolidays[الصحيح],tblHolidays[اليوم]),0),2),\"\"),\"\"),\"\")","v":""},{"$f":"IFERROR(IF(ShowHolidays,IF(INDEX(tblHolidays[],MATCH(DATE(CalYear,MONTH(C11),DAY(C11)),IF(ShowObserved,tblHolidays[الصحيح],tblHolidays[اليوم]),0),6),INDEX(tblHolidays[],MATCH(DATE(CalYear,MONTH(C11),DAY(C11)),IF(ShowObserved,tblHolidays[الصحيح],tblHolidays[اليوم]),0),2),\"\"),\"\"),\"\")","v":""},{"$f":"IFERROR(IF(ShowHolidays,IF(INDEX(tblHolidays[],MATCH(DATE(CalYear,MONTH(D11),DAY(D11)),IF(ShowObserved,tblHolidays[الصحيح],tblHolidays[اليوم]),0),6),INDEX(tblHolidays[],MATCH(DATE(CalYear,MONTH(D11),DAY(D11)),IF(ShowObserved,tblHolidays[الصحيح],tblHolidays[اليوم]),0),2),\"\"),\"\"),\"\")","v":""},{"$f":"IFERROR(IF(ShowHolidays,IF(INDEX(tblHolidays[],MATCH(DATE(CalYear,MONTH(E11),DAY(E11)),IF(ShowObserved,tblHolidays[الصحيح],tblHolidays[اليوم]),0),6),INDEX(tblHolidays[],MATCH(DATE(CalYear,MONTH(E11),DAY(E11)),IF(ShowObserved,tblHolidays[الصحيح],tblHolidays[اليوم]),0),2),\"\"),\"\"),\"\")","v":""},{"$f":"IFERROR(IF(ShowHolidays,IF(INDEX(tblHolidays[],MATCH(DATE(CalYear,MONTH(F11),DAY(F11)),IF(ShowObserved,tblHolidays[الصحيح],tblHolidays[اليوم]),0),6),INDEX(tblHolidays[],MATCH(DATE(CalYear,MONTH(F11),DAY(F11)),IF(ShowObserved,tblHolidays[الصحيح],tblHolidays[اليوم]),0),2),\"\"),\"\"),\"\")","v":"يوم الشكر"},{"$f":"IFERROR(IF(ShowHolidays,IF(INDEX(tblHolidays[],MATCH(DATE(CalYear,MONTH(G11),DAY(G11)),IF(ShowObserved,tblHolidays[الصحيح],tblHolidays[اليوم]),0),6),INDEX(tblHolidays[],MATCH(DATE(CalYear,MONTH(G11),DAY(G11)),IF(ShowObserved,tblHolidays[الصحيح],tblHolidays[اليوم]),0),2),\"\"),\"\"),\"\")","v":""},{"$f":"IFERROR(IF(ShowHolidays,IF(INDEX(tblHolidays[],MATCH(DATE(CalYear,MONTH(H11),DAY(H11)),IF(ShowObserved,tblHolidays[الصحيح],tblHolidays[اليوم]),0),6),INDEX(tblHolidays[],MATCH(DATE(CalYear,MONTH(H11),DAY(H11)),IF(ShowObserved,tblHolidays[الصحيح],tblHolidays[اليوم]),0),2),\"\"),\"\"),\"\")","v":""}]
[null,{"$f":"الأيام+DATE(CalYear,11,1)-WEEKDAY(DATE(CalYear,11,1),(WeekStart=\"الإثنين\")+1)+29","v":"2018-11-25"},"2018-11-26","2018-11-27","2018-11-28","2018-11-29","2018-11-30","2018-12-01"]
[null,{"$f":"IFERROR(IF(ShowHolidays,IF(INDEX(tblHolidays[],MATCH(DATE(CalYear,MONTH(B13),DAY(B13)),IF(ShowObserved,tblHolidays[الصحيح],tblHolidays[اليوم]),0),6),INDEX(tblHolidays[],MATCH(DATE(CalYear,MONTH(B13),DAY(B13)),IF(ShowObserved,tblHolidays[الصحيح],tblHolidays[اليوم]),0),2),\"\"),\"\"),\"\")","v":""},{"$f":"IFERROR(IF(ShowHolidays,IF(INDEX(tblHolidays[],MATCH(DATE(CalYear,MONTH(C13),DAY(C13)),IF(ShowObserved,tblHolidays[الصحيح],tblHolidays[اليوم]),0),6),INDEX(tblHolidays[],MATCH(DATE(CalYear,MONTH(C13),DAY(C13)),IF(ShowObserved,tblHolidays[الصحيح],tblHolidays[اليوم]),0),2),\"\"),\"\"),\"\")","v":""},{"$f":"IFERROR(IF(ShowHolidays,IF(INDEX(tblHolidays[],MATCH(DATE(CalYear,MONTH(D13),DAY(D13)),IF(ShowObserved,tblHolidays[الصحيح],tblHolidays[اليوم]),0),6),INDEX(tblHolidays[],MATCH(DATE(CalYear,MONTH(D13),DAY(D13)),IF(ShowObserved,tblHolidays[الصحيح],tblHolidays[اليوم]),0),2),\"\"),\"\"),\"\")","v":""},{"$f":"IFERROR(IF(ShowHolidays,IF(INDEX(tblHolidays[],MATCH(DATE(CalYear,MONTH(E13),DAY(E13)),IF(ShowObserved,tblHolidays[الصحيح],tblHolidays[اليوم]),0),6),INDEX(tblHolidays[],MATCH(DATE(CalYear,MONTH(E13),DAY(E13)),IF(ShowObserved,tblHolidays[الصحيح],tblHolidays[اليوم]),0),2),\"\"),\"\"),\"\")","v":""},{"$f":"IFERROR(IF(ShowHolidays,IF(INDEX(tblHolidays[],MATCH(DATE(CalYear,MONTH(F13),DAY(F13)),IF(ShowObserved,tblHolidays[الصحيح],tblHolidays[اليوم]),0),6),INDEX(tblHolidays[],MATCH(DATE(CalYear,MONTH(F13),DAY(F13)),IF(ShowObserved,tblHolidays[الصحيح],tblHolidays[اليوم]),0),2),\"\"),\"\"),\"\")","v":""},{"$f":"IFERROR(IF(ShowHolidays,IF(INDEX(tblHolidays[],MATCH(DATE(CalYear,MONTH(G13),DAY(G13)),IF(ShowObserved,tblHolidays[الصحيح],tblHolidays[اليوم]),0),6),INDEX(tblHolidays[],MATCH(DATE(CalYear,MONTH(G13),DAY(G13)),IF(ShowObserved,tblHolidays[الصحيح],tblHolidays[اليوم]),0),2),\"\"),\"\"),\"\")","v":""},{"$f":"IFERROR(IF(ShowHolidays,IF(INDEX(tblHolidays[],MATCH(DATE(CalYear,MONTH(H13),DAY(H13)),IF(ShowObserved,tblHolidays[الصحيح],tblHolidays[اليوم]),0),6),INDEX(tblHolidays[],MATCH(DATE(CalYear,MONTH(H13),DAY(H13)),IF(ShowObserved,tblHolidays[الصحيح],tblHolidays[اليوم]),0),2),\"\"),\"\"),\"\")","v":""}]
[null,{"$f":"الأيام+DATE(CalYear,11,1)-WEEKDAY(DATE(CalYear,11,1),(WeekStart=\"الإثنين\")+1)+36","v":"2018-12-02"},"2018-12-03","الملاحظات"]
[null,{"$f":"IFERROR(IF(ShowHolidays,IF(INDEX(tblHolidays[],MATCH(DATE(CalYear,MONTH(B15),DAY(B15)),IF(ShowObserved,tblHolidays[الصحيح],tblHolidays[اليوم]),0),6),INDEX(tblHolidays[],MATCH(DATE(CalYear,MONTH(B15),DAY(B15)),IF(ShowObserved,tblHolidays[الصحيح],tblHolidays[اليوم]),0),2),\"\"),\"\"),\"\")","v":""},{"$f":"IFERROR(IF(ShowHolidays,IF(INDEX(tblHolidays[],MATCH(DATE(CalYear,MONTH(C15),DAY(C15)),IF(ShowObserved,tblHolidays[الصحيح],tblHolidays[اليوم]),0),6),INDEX(tblHolidays[],MATCH(DATE(CalYear,MONTH(C15),DAY(C15)),IF(ShowObserved,tblHolidays[الصحيح],tblHolidays[اليوم]),0),2),\"\"),\"\"),\"\")","v":""}]

{"sheet":"ديسمبر","index":12,"n_rows":16,"n_cols":8,"rows_kept":16,"merged":[[1,1,1,3],[14,3,14,7],[15,3,15,7],[16,1,16,7]]}
[]
[null,{"$f":"B9","v":"2018-12-09"}]
[]
[null,{"$f":"WeekStart","v":"الأحد"},{"$f":"UPPER(TEXT(C5,\"dddd\"))","v":"الإثنين"},"الثلاثاء","الأربعاء","الخميس","الجمعة","السبت"]
[null,{"$f":"الأيام+DATE(CalYear,12,1)-WEEKDAY(DATE(CalYear,12,1),(WeekStart=\"الإثنين\")+1)+1","v":"2018-11-25"},"2018-11-26","2018-11-27","2018-11-28","2018-11-29","2018-11-30","2018-12-01"]
[null,{"$f":"IFERROR(IF(ShowHolidays,IF(INDEX(tblHolidays[],MATCH(DATE(CalYear-(DAY(B5)>15)+(ROW()>6),MONTH(B5),DAY(B5)),IF(ShowObserved,tblHolidays[الصحيح],tblHolidays[اليوم]),0),6),INDEX(tblHolidays[],MATCH(DATE(CalYear-(DAY(B5)>15)+(ROW()>6),MONTH(B5),DAY(B5)),IF(ShowObserved,tblHolidays[الصحيح],tblHolidays[اليوم]),0),2),\"\"),\"\"),\"\")","v":""},{"$f":"IFERROR(IF(ShowHolidays,IF(INDEX(tblHolidays[],MATCH(DATE(CalYear-(DAY(C5)>15)+(ROW()>6),MONTH(C5),DAY(C5)),IF(ShowObserved,tblHolidays[الصحيح],tblHolidays[اليوم]),0),6),INDEX(tblHolidays[],MATCH(DATE(CalYear-(DAY(C5)>15)+(ROW()>6),MONTH(C5),DAY(C5)),IF(ShowObserved,tblHolidays[الصحيح],tblHolidays[اليوم]),0),2),\"\"),\"\"),\"\")","v":""},{"$f":"IFERROR(IF(ShowHolidays,IF(INDEX(tblHolidays[],MATCH(DATE(CalYear-(DAY(D5)>15)+(ROW()>6),MONTH(D5),DAY(D5)),IF(ShowObserved,tblHolidays[الصحيح],tblHolidays[اليوم]),0),6),INDEX(tblHolidays[],MATCH(DATE(CalYear-(DAY(D5)>15)+(ROW()>6),MONTH(D5),DAY(D5)),IF(ShowObserved,tblHolidays[الصحيح],tblHolidays[اليوم]),0),2),\"\"),\"\"),\"\")","v":""},{"$f":"IFERROR(IF(ShowHolidays,IF(INDEX(tblHolidays[],MATCH(DATE(CalYear-(DAY(E5)>15)+(ROW()>6),MONTH(E5),DAY(E5)),IF(ShowObserved,tblHolidays[الصحيح],tblHolidays[اليوم]),0),6),INDEX(tblHolidays[],MATCH(DATE(CalYear-(DAY(E5)>15)+(ROW()>6),MONTH(E5),DAY(E5)),IF(ShowObserved,tblHolidays[الصحيح],tblHolidays[اليوم]),0),2),\"\"),\"\"),\"\")","v":""},{"$f":"IFERROR(IF(ShowHolidays,IF(INDEX(tblHolidays[],MATCH(DATE(CalYear-(DAY(F5)>15)+(ROW()>6),MONTH(F5),DAY(F5)),IF(ShowObserved,tblHolidays[الصحيح],tblHolidays[اليوم]),0),6),INDEX(tblHolidays[],MATCH(DATE(CalYear-(DAY(F5)>15)+(ROW()>6),MONTH(F5),DAY(F5)),IF(ShowObserved,tblHolidays[الصحيح],tblHolidays[اليوم]),0),2),\"\"),\"\"),\"\")","v":""},{"$f":"IFERROR(IF(ShowHolidays,IF(INDEX(tblHolidays[],MATCH(DATE(CalYear-(DAY(G5)>15)+(ROW()>6),MONTH(G5),DAY(G5)),IF(ShowObserved,tblHolidays[الصحيح],tblHolidays[اليوم]),0),6),INDEX(tblHolidays[],MATCH(DATE(CalYear-(DAY(G5)>15)+(ROW()>6),MONTH(G5),DAY(G5)),IF(ShowObserved,tblHolidays[الصحيح],tblHolidays[اليوم]),0),2),\"\"),\"\"),\"\")","v":""},{"$f":"IFERROR(IF(ShowHolidays,IF(INDEX(tblHolidays[],MATCH(DATE(CalYear-(DAY(H5)>15)+(ROW()>6),MONTH(H5),DAY(H5)),IF(ShowObserved,tblHolidays[الصحيح],tblHolidays[اليوم]),0),6),INDEX(tblHolidays[],MATCH(DATE(CalYear-(DAY(H5)>15)+(ROW()>6),MONTH(H5),DAY(H5)),IF(ShowObserved,tblHolidays[الصحيح],tblHolidays[اليوم]),0),2),\"\"),\"\"),\"\")","v":""}]
[null,{"$f":"الأيام+DATE(CalYear,12,1)-WEEKDAY(DATE(CalYear,12,1),(WeekStart=\"الإثنين\")+1)+8","v":"2018-12-02"},"2018-12-03","2018-12-04","2018-12-05","2018-12-06","2018-12-07","2018-12-08"]
[null,{"$f":"IFERROR(IF(ShowHolidays,IF(INDEX(tblHolidays[],MATCH(DATE(CalYear,MONTH(B7),DAY(B7)),IF(ShowObserved,tblHolidays[الصحيح],tblHolidays[اليوم]),0),6),INDEX(tblHolidays[],MATCH(DATE(CalYear,MONTH(B7),DAY(B7)),IF(ShowObserved,tblHolidays[الصحيح],tblHolidays[اليوم]),0),2),\"\"),\"\"),\"\")","v":""},{"$f":"IFERROR(IF(ShowHolidays,IF(INDEX(tblHolidays[],MATCH(DATE(CalYear,MONTH(C7),DAY(C7)),IF(ShowObserved,tblHolidays[الصحيح],tblHolidays[اليوم]),0),6),INDEX(tblHolidays[],MATCH(DATE(CalYear,MONTH(C7),DAY(C7)),IF(ShowObserved,tblHolidays[الصحيح],tblHolidays[اليوم]),0),2),\"\"),\"\"),\"\")","v":""},{"$f":"IFERROR(IF(ShowHolidays,IF(INDEX(tblHolidays[],MATCH(DATE(CalYear,MONTH(D7),DAY(D7)),IF(ShowObserved,tblHolidays[الصحيح],tblHolidays[اليوم]),0),6),INDEX(tblHolidays[],MATCH(DATE(CalYear,MONTH(D7),DAY(D7)),IF(ShowObserved,tblHolidays[الصحيح],tblHolidays[اليوم]),0),2),\"\"),\"\"),\"\")","v":""},{"$f":"IFERROR(IF(ShowHolidays,IF(INDEX(tblHolidays[],MATCH(DATE(CalYear,MONTH(E7),DAY(E7)),IF(ShowObserved,tblHolidays[الصحيح],tblHolidays[اليوم]),0),6),INDEX(tblHolidays[],MATCH(DATE(CalYear,MONTH(E7),DAY(E7)),IF(ShowObserved,tblHolidays[الصحيح],tblHolidays[اليوم]),0),2),\"\"),\"\"),\"\")","v":""},{"$f":"IFERROR(IF(ShowHolidays,IF(INDEX(tblHolidays[],MATCH(DATE(CalYear,MONTH(F7),DAY(F7)),IF(ShowObserved,tblHolidays[الصحيح],tblHolidays[اليوم]),0),6),INDEX(tblHolidays[],MATCH(DATE(CalYear,MONTH(F7),DAY(F7)),IF(ShowObserved,tblHolidays[الصحيح],tblHolidays[اليوم]),0),2),\"\"),\"\"),\"\")","v":""},{"$f":"IFERROR(IF(ShowHolidays,IF(INDEX(tblHolidays[],MATCH(DATE(CalYear,MONTH(G7),DAY(G7)),IF(ShowObserved,tblHolidays[الصحيح],tblHolidays[اليوم]),0),6),INDEX(tblHolidays[],MATCH(DATE(CalYear,MONTH(G7),DAY(G7)),IF(ShowObserved,tblHolidays[الصحيح],tblHolidays[اليوم]),0),2),\"\"),\"\"),\"\")","v":""},{"$f":"IFERROR(IF(ShowHolidays,IF(INDEX(tblHolidays[],MATCH(DATE(CalYear,MONTH(H7),DAY(H7)),IF(ShowObserved,tblHolidays[الصحيح],tblHolidays[اليوم]),0),6),INDEX(tblHolidays[],MATCH(DATE(CalYear,MONTH(H7),DAY(H7)),IF(ShowObserved,tblHolidays[الصحيح],tblHolidays[اليوم]),0),2),\"\"),\"\"),\"\")","v":""}]
[null,{"$f":"الأيام+DATE(CalYear,12,1)-WEEKDAY(DATE(CalYear,12,1),(WeekStart=\"الإثنين\")+1)+15","v":"2018-12-09"},"2018-12-10","2018-12-11","2018-12-12","2018-12-13","2018-12-14","2018-12-15"]
[null,{"$f":"IFERROR(IF(ShowHolidays,IF(INDEX(tblHolidays[],MATCH(DATE(CalYear,MONTH(B9),DAY(B9)),IF(ShowObserved,tblHolidays[الصحيح],tblHolidays[اليوم]),0),6),INDEX(tblHolidays[],MATCH(DATE(CalYear,MONTH(B9),DAY(B9)),IF(ShowObserved,tblHolidays[الصحيح],tblHolidays[اليوم]),0),2),\"\"),\"\"),\"\")","v":""},{"$f":"IFERROR(IF(ShowHolidays,IF(INDEX(tblHolidays[],MATCH(DATE(CalYear,MONTH(C9),DAY(C9)),IF(ShowObserved,tblHolidays[الصحيح],tblHolidays[اليوم]),0),6),INDEX(tblHolidays[],MATCH(DATE(CalYear,MONTH(C9),DAY(C9)),IF(ShowObserved,tblHolidays[الصحيح],tblHolidays[اليوم]),0),2),\"\"),\"\"),\"\")","v":""},{"$f":"IFERROR(IF(ShowHolidays,IF(INDEX(tblHolidays[],MATCH(DATE(CalYear,MONTH(D9),DAY(D9)),IF(ShowObserved,tblHolidays[الصحيح],tblHolidays[اليوم]),0),6),INDEX(tblHolidays[],MATCH(DATE(CalYear,MONTH(D9),DAY(D9)),IF(ShowObserved,tblHolidays[الصحيح],tblHolidays[اليوم]),0),2),\"\"),\"\"),\"\")","v":""},{"$f":"IFERROR(IF(ShowHolidays,IF(INDEX(tblHolidays[],MATCH(DATE(CalYear,MONTH(E9),DAY(E9)),IF(ShowObserved,tblHolidays[الصحيح],tblHolidays[اليوم]),0),6),INDEX(tblHolidays[],MATCH(DATE(CalYear,MONTH(E9),DAY(E9)),IF(ShowObserved,tblHolidays[الصحيح],tblHolidays[اليوم]),0),2),\"\"),\"\"),\"\")","v":""},{"$f":"IFERROR(IF(ShowHolidays,IF(INDEX(tblHolidays[],MATCH(DATE(CalYear,MONTH(F9),DAY(F9)),IF(ShowObserved,tblHolidays[الصحيح],tblHolidays[اليوم]),0),6),INDEX(tblHolidays[],MATCH(DATE(CalYear,MONTH(F9),DAY(F9)),IF(ShowObserved,tblHolidays[الصحيح],tblHolidays[اليوم]),0),2),\"\"),\"\"),\"\")","v":""},{"$f":"IFERROR(IF(ShowHolidays,IF(INDEX(tblHolidays[],MATCH(DATE(CalYear,MONTH(G9),DAY(G9)),IF(ShowObserved,tblHolidays[الصحيح],tblHolidays[اليوم]),0),6),INDEX(tblHolidays[],MATCH(DATE(CalYear,MONTH(G9),DAY(G9)),IF(ShowObserved,tblHolidays[الصحيح],tblHolidays[اليوم]),0),2),\"\"),\"\"),\"\")","v":""},{"$f":"IFERROR(IF(ShowHolidays,IF(INDEX(tblHolidays[],MATCH(DATE(CalYear,MONTH(H9),DAY(H9)),IF(ShowObserved,tblHolidays[الصحيح],tblHolidays[اليوم]),0),6),INDEX(tblHolidays[],MATCH(DATE(CalYear,MONTH(H9),DAY(H9)),IF(ShowObserved,tblHolidays[الصحيح],tblHolidays[اليوم]),0),2),\"\"),\"\"),\"\")","v":""}]
[null,{"$f":"الأيام+DATE(CalYear,12,1)-WEEKDAY(DATE(CalYear,12,1),(WeekStart=\"الإثنين\")+1)+22","v":"2018-12-16"},"2018-12-17","2018-12-18","2018-12-19","2018-12-20","2018-12-21","2018-12-22"]
[null,{"$f":"IFERROR(IF(ShowHolidays,IF(INDEX(tblHolidays[],MATCH(DATE(CalYear,MONTH(B11),DAY(B11)),IF(ShowObserved,tblHolidays[الصحيح],tblHolidays[اليوم]),0),6),INDEX(tblHolidays[],MATCH(DATE(CalYear,MONTH(B11),DAY(B11)),IF(ShowObserved,tblHolidays[الصحيح],tblHolidays[اليوم]),0),2),\"\"),\"\"),\"\")","v":""},{"$f":"IFERROR(IF(ShowHolidays,IF(INDEX(tblHolidays[],MATCH(DATE(CalYear,MONTH(C11),DAY(C11)),IF(ShowObserved,tblHolidays[الصحيح],tblHolidays[اليوم]),0),6),INDEX(tblHolidays[],MATCH(DATE(CalYear,MONTH(C11),DAY(C11)),IF(ShowObserved,tblHolidays[الصحيح],tblHolidays[اليوم]),0),2),\"\"),\"\"),\"\")","v":""},{"$f":"IFERROR(IF(ShowHolidays,IF(INDEX(tblHolidays[],MATCH(DATE(CalYear,MONTH(D11),DAY(D11)),IF(ShowObserved,tblHolidays[الصحيح],tblHolidays[اليوم]),0),6),INDEX(tblHolidays[],MATCH(DATE(CalYear,MONTH(D11),DAY(D11)),IF(ShowObserved,tblHolidays[الصحيح],tblHolidays[اليوم]),0),2),\"\"),\"\"),\"\")","v":""},{"$f":"IFERROR(IF(ShowHolidays,IF(INDEX(tblHolidays[],MATCH(DATE(CalYear,MONTH(E11),DAY(E11)),IF(ShowObserved,tblHolidays[الصحيح],tblHolidays[اليوم]),0),6),INDEX(tblHolidays[],MATCH(DATE(CalYear,MONTH(E11),DAY(E11)),IF(ShowObserved,tblHolidays[الصحيح],tblHolidays[اليوم]),0),2),\"\"),\"\"),\"\")","v":""},{"$f":"IFERROR(IF(ShowHolidays,IF(INDEX(tblHolidays[],MATCH(DATE(CalYear,MONTH(F11),DAY(F11)),IF(ShowObserved,tblHolidays[الصحيح],tblHolidays[اليوم]),0),6),INDEX(tblHolidays[],MATCH(DATE(CalYear,MONTH(F11),DAY(F11)),IF(ShowObserved,tblHolidays[الصحيح],tblHolidays[اليوم]),0),2),\"\"),\"\"),\"\")","v":""},{"$f":"IFERROR(IF(ShowHolidays,IF(INDEX(tblHolidays[],MATCH(DATE(CalYear,MONTH(G11),DAY(G11)),IF(ShowObserved,tblHolidays[الصحيح],tblHolidays[اليوم]),0),6),INDEX(tblHolidays[],MATCH(DATE(CalYear,MONTH(G11),DAY(G11)),IF(ShowObserved,tblHolidays[الصحيح],tblHolidays[اليوم]),0),2),\"\"),\"\"),\"\")","v":""},{"$f":"IFERROR(IF(ShowHolidays,IF(INDEX(tblHolidays[],MATCH(DATE(CalYear,MONTH(H11),DAY(H11)),IF(ShowObserved,tblHolidays[الصحيح],tblHolidays[اليوم]),0),6),INDEX(tblHolidays[],MATCH(DATE(CalYear,MONTH(H11),DAY(H11)),IF(ShowObserved,tblHolidays[الصحيح],tblHolidays[اليوم]),0),2),\"\"),\"\"),\"\")","v":""}]
[null,{"$f":"الأيام+DATE(CalYear,12,1)-WEEKDAY(DATE(CalYear,12,1),(WeekStart=\"الإثنين\")+1)+29","v":"2018-12-23"},"2018-12-24","2018-12-25","2018-12-26","2018-12-27","2018-12-28","2018-12-29"]
[null,{"$f":"IFERROR(IF(ShowHolidays,IF(INDEX(tblHolidays[],MATCH(DATE(CalYear,MONTH(B13),DAY(B13)),IF(ShowObserved,tblHolidays[الصحيح],tblHolidays[اليوم]),0),6),INDEX(tblHolidays[],MATCH(DATE(CalYear,MONTH(B13),DAY(B13)),IF(ShowObserved,tblHolidays[الصحيح],tblHolidays[اليوم]),0),2),\"\"),\"\"),\"\")","v":""},{"$f":"IFERROR(IF(ShowHolidays,IF(INDEX(tblHolidays[],MATCH(DATE(CalYear,MONTH(C13),DAY(C13)),IF(ShowObserved,tblHolidays[الصحيح],tblHolidays[اليوم]),0),6),INDEX(tblHolidays[],MATCH(DATE(CalYear,MONTH(C13),DAY(C13)),IF(ShowObserved,tblHolidays[الصحيح],tblHolidays[اليوم]),0),2),\"\"),\"\"),\"\")","v":""},{"$f":"IFERROR(IF(ShowHolidays,IF(INDEX(tblHolidays[],MATCH(DATE(CalYear,MONTH(D13),DAY(D13)),IF(ShowObserved,tblHolidays[الصحيح],tblHolidays[اليوم]),0),6),INDEX(tblHolidays[],MATCH(DATE(CalYear,MONTH(D13),DAY(D13)),IF(ShowObserved,tblHolidays[الصحيح],tblHolidays[اليوم]),0),2),\"\"),\"\"),\"\")","v":"يوم عيد الميلاد"},{"$f":"IFERROR(IF(ShowHolidays,IF(INDEX(tblHolidays[],MATCH(DATE(CalYear,MONTH(E13),DAY(E13)),IF(ShowObserved,tblHolidays[الصحيح],tblHolidays[اليوم]),0),6),INDEX(tblHolidays[],MATCH(DATE(CalYear,MONTH(E13),DAY(E13)),IF(ShowObserved,tblHolidays[الصحيح],tblHolidays[اليوم]),0),2),\"\"),\"\"),\"\")","v":""},{"$f":"IFERROR(IF(ShowHolidays,IF(INDEX(tblHolidays[],MATCH(DATE(CalYear,MONTH(F13),DAY(F13)),IF(ShowObserved,tblHolidays[الصحيح],tblHolidays[اليوم]),0),6),INDEX(tblHolidays[],MATCH(DATE(CalYear,MONTH(F13),DAY(F13)),IF(ShowObserved,tblHolidays[الصحيح],tblHolidays[اليوم]),0),2),\"\"),\"\"),\"\")","v":""},{"$f":"IFERROR(IF(ShowHolidays,IF(INDEX(tblHolidays[],MATCH(DATE(CalYear,MONTH(G13),DAY(G13)),IF(ShowObserved,tblHolidays[الصحيح],tblHolidays[اليوم]),0),6),INDEX(tblHolidays[],MATCH(DATE(CalYear,MONTH(G13),DAY(G13)),IF(ShowObserved,tblHolidays[الصحيح],tblHolidays[اليوم]),0),2),\"\"),\"\"),\"\")","v":""},{"$f":"IFERROR(IF(ShowHolidays,IF(INDEX(tblHolidays[],MATCH(DATE(CalYear,MONTH(H13),DAY(H13)),IF(ShowObserved,tblHolidays[الصحيح],tblHolidays[اليوم]),0),6),INDEX(tblHolidays[],MATCH(DATE(CalYear,MONTH(H13),DAY(H13)),IF(ShowObserved,tblHolidays[الصحيح],tblHolidays[اليوم]),0),2),\"\"),\"\"),\"\")","v":""}]
[null,{"$f":"الأيام+DATE(CalYear,12,1)-WEEKDAY(DATE(CalYear,12,1),(WeekStart=\"الإثنين\")+1)+36","v":"2018-12-30"},"2018-12-31","الملاحظات"]
[null,{"$f":"IFERROR(IF(ShowHolidays,IF(INDEX(tblHolidays[],MATCH(DATE(CalYear,MONTH(B15),DAY(B15)),IF(ShowObserved,tblHolidays[الصحيح],tblHolidays[اليوم]),0),6),INDEX(tblHolidays[],MATCH(DATE(CalYear,MONTH(B15),DAY(B15)),IF(ShowObserved,tblHolidays[الصحيح],tblHolidays[اليوم]),0),2),\"\"),\"\"),\"\")","v":""},{"$f":"IFERROR(IF(ShowHolidays,IF(INDEX(tblHolidays[],MATCH(DATE(CalYear,MONTH(C15),DAY(C15)),IF(ShowObserved,tblHolidays[الصحيح],tblHolidays[اليوم]),0),6),INDEX(tblHolidays[],MATCH(DATE(CalYear,MONTH(C15),DAY(C15)),IF(ShowObserved,tblHolidays[الصحيح],tblHolidays[اليوم]),0),2),\"\"),\"\"),\"\")","v":""}]

{"sheet":"أيام العطلات","index":13,"n_rows":14,"n_cols":8,"rows_kept":14}
[]
[null,"أيام العطلات في الولايات المتحدة",{"$nulls":5}," "]
[]
[null,"اليوم","يوم العطلة","الموافق","يوم من أيام الأسبوع","الصحيح","عرض"]
[null,{"$f":"DATE(CalYear,1,1)","v":"2018-01-01"},"رأس السنة الجديدة","1 يناير",{"$f":"IFERROR(WEEKDAY(tblHolidays[[#This Row],[اليوم]],IF(WeekStart=\"الإثنين\",2,1)),0)","v":2},{"$f":"IF(ISTEXT(tblHolidays[[#This Row],[اليوم]]),\"لم تتم ملاحظته\",IF(tblHolidays[[#This Row],[يوم من أيام الأسبوع]]=1,tblHolidays[[#This Row],[اليوم]]+1,IF(tblHolidays[[#This Row],[يوم من أيام الأسبوع]]=7,tblHolidays[[#This Row],[اليوم]]-1,tblHolidays[[#This Row],[اليوم]])))","v":"2018-01-01"},true]
[null,{"$f":"IF(MOD(CalYear,4)=1,DATE(CalYear,1,20)+(WEEKDAY(DATE(CalYear,1,20))=1),\"لم تتم ملاحظته\")","v":"لم تتم ملاحظته"},"يوم التنصيب","20 يناير، كل أربع سنوات، بعد الانتخابات الرئاسية",{"$f":"IFERROR(WEEKDAY(tblHolidays[[#This Row],[اليوم]],IF(WeekStart=\"الإثنين\",2,1)),0)","v":0},{"$f":"IF(ISTEXT(tblHolidays[[#This Row],[اليوم]]),\"لم تتم ملاحظته\",IF(tblHolidays[[#This Row],[يوم من أيام الأسبوع]]=1,tblHolidays[[#This Row],[اليوم]]+1,IF(tblHolidays[[#This Row],[يوم من أيام الأسبوع]]=7,tblHolidays[[#This Row],[اليوم]]-1,tblHolidays[[#This Row],[اليوم]])))","v":"لم تتم ملاحظته"},true]
[null,{"$f":"DATE(CalYear,2,1+((3-(2>=WEEKDAY(DATE(CalYear,2,1))))*7)+(2-WEEKDAY(DATE(CalYear,2,1))))","v":"2018-02-19"},"يوم الرؤساء","الاثنين الثالث في شهر فبراير",{"$f":"IFERROR(WEEKDAY(tblHolidays[[#This Row],[اليوم]],IF(WeekStart=\"الإثنين\",2,1)),0)","v":2},{"$f":"IF(ISTEXT(tblHolidays[[#This Row],[اليوم]]),\"لم تتم ملاحظته\",IF(tblHolidays[[#This Row],[يوم من أيام الأسبوع]]=1,tblHolidays[[#This Row],[اليوم]]+1,IF(tblHolidays[[#This Row],[يوم من أيام الأسبوع]]=7,tblHolidays[[#This Row],[اليوم]]-1,tblHolidays[[#This Row],[اليوم]])))","v":"2018-02-19"},true]
[null,{"$f":"DATE(CalYear,5,1+((MayMondays-(2>=WEEKDAY(DATE(CalYear,5,1))))*7)+(2-WEEKDAY(DATE(CalYear,5,1))))","v":"2018-05-28"},"يوم الذكرى","الاثنين الأخير في شهر مايو",{"$f":"IFERROR(WEEKDAY(tblHolidays[[#This Row],[اليوم]],IF(WeekStart=\"الإثنين\",2,1)),0)","v":2},{"$f":"IF(ISTEXT(tblHolidays[[#This Row],[اليوم]]),\"لم تتم ملاحظته\",IF(tblHolidays[[#This Row],[يوم من أيام الأسبوع]]=1,tblHolidays[[#This Row],[اليوم]]+1,IF(tblHolidays[[#This Row],[يوم من أيام الأسبوع]]=7,tblHolidays[[#This Row],[اليوم]]-1,tblHolidays[[#This Row],[اليوم]])))","v":"2018-05-28"},true]
[null,{"$f":"DATE(CalYear,7,4)","v":"2018-07-04"},"يوم عيد الاستقلال","4 يوليو",{"$f":"IFERROR(WEEKDAY(tblHolidays[[#This Row],[اليوم]],IF(WeekStart=\"الإثنين\",2,1)),0)","v":4},{"$f":"IF(ISTEXT(tblHolidays[[#This Row],[اليوم]]),\"لم تتم ملاحظته\",IF(tblHolidays[[#This Row],[يوم من أيام الأسبوع]]=1,tblHolidays[[#This Row],[اليوم]]+1,IF(tblHolidays[[#This Row],[يوم من أيام الأسبوع]]=7,tblHolidays[[#This Row],[اليوم]]-1,tblHolidays[[#This Row],[اليوم]])))","v":"2018-07-04"},true]
[null,{"$f":"DATE(CalYear,9,1+((1-(2>=WEEKDAY(DATE(CalYear,9,1))))*7)+(2-WEEKDAY(DATE(CalYear,9,1))))","v":"2018-09-03"},"عيد العمّال","الاثنين الأول في شهر سبتمبر",{"$f":"IFERROR(WEEKDAY(tblHolidays[[#This Row],[اليوم]],IF(WeekStart=\"الإثنين\",2,1)),0)","v":2},{"$f":"IF(ISTEXT(tblHolidays[[#This Row],[اليوم]]),\"لم تتم ملاحظته\",IF(tblHolidays[[#This Row],[يوم من أيام الأسبوع]]=1,tblHolidays[[#This Row],[اليوم]]+1,IF(tblHolidays[[#This Row],[يوم من أيام الأسبوع]]=7,tblHolidays[[#This Row],[اليوم]]-1,tblHolidays[[#This Row],[اليوم]])))","v":"2018-09-03"},true]
[null,{"$f":"DATE(CalYear,10,1+((2-(2>=WEEKDAY(DATE(CalYear,10,1))))*7)+(2-WEEKDAY(DATE(CalYear,10,1))))","v":"2018-10-08"},"يوم كولومبوس","الاثنين الثاني في شهر أكتوبر",{"$f":"IFERROR(WEEKDAY(tblHolidays[[#This Row],[اليوم]],IF(WeekStart=\"الإثنين\",2,1)),0)","v":2},{"$f":"IF(ISTEXT(tblHolidays[[#This Row],[اليوم]]),\"لم تتم ملاحظته\",IF(tblHolidays[[#This Row],[يوم من أيام الأسبوع]]=1,tblHolidays[[#This Row],[اليوم]]+1,IF(tblHolidays[[#This Row],[يوم من أيام الأسبوع]]=7,tblHolidays[[#This Row],[اليوم]]-1,tblHolidays[[#This Row],[اليوم]])))","v":"2018-10-08"},true]
[null,{"$f":"DATE(CalYear,11,11)","v":"2018-11-11"},"يوم المحاربين القدامى","11 نوفمبر",{"$f":"IFERROR(WEEKDAY(tblHolidays[[#This Row],[اليوم]],IF(WeekStart=\"الإثنين\",2,1)),0)","v":1},{"$f":"IF(ISTEXT(tblHolidays[[#This Row],[اليوم]]),\"لم تتم ملاحظته\",IF(tblHolidays[[#This Row],[يوم من أيام الأسبوع]]=1,tblHolidays[[#This Row],[اليوم]]+1,IF(tblHolidays[[#This Row],[يوم من أيام الأسبوع]]=7,tblHolidays[[#This Row],[اليوم]]-1,tblHolidays[[#This Row],[اليوم]])))","v":"2018-11-12"},true]
[null,{"$f":"DATE(CalYear,11,1+((4-(5>=WEEKDAY(DATE(CalYear,11,1))))*7)+(5-WEEKDAY(DATE(CalYear,11,1))))","v":"2018-11-22"},"يوم الشكر","الخميس الرابع في شهر نوفمبر",{"$f":"IFERROR(WEEKDAY(tblHolidays[[#This Row],[اليوم]],IF(WeekStart=\"الإثنين\",2,1)),0)","v":5},{"$f":"IF(ISTEXT(tblHolidays[[#This Row],[اليوم]]),\"لم تتم ملاحظته\",IF(tblHolidays[[#This Row],[يوم من أيام الأسبوع]]=1,tblHolidays[[#This Row],[اليوم]]+1,IF(tblHolidays[[#This Row],[يوم من أيام الأسبوع]]=7,tblHolidays[[#This Row],[اليوم]]-1,tblHolidays[[#This Row],[اليوم]])))","v":"2018-11-22"},true]
[null,{"$f":"DATE(CalYear,12,25)","v":"2018-12-25"},"يوم عيد الميلاد","25 ديسمبر",{"$f":"IFERROR(WEEKDAY(tblHolidays[[#This Row],[اليوم]],IF(WeekStart=\"الإثنين\",2,1)),0)","v":3},{"$f":"IF(ISTEXT(tblHolidays[[#This Row],[اليوم]]),\"لم تتم ملاحظته\",IF(tblHolidays[[#This Row],[يوم من أيام الأسبوع]]=1,tblHolidays[[#This Row],[اليوم]]+1,IF(tblHolidays[[#This Row],[يوم من أيام الأسبوع]]=7,tblHolidays[[#This Row],[اليوم]]-1,tblHolidays[[#This Row],[اليوم]])))","v":"2018-12-25"},true]